Body,Body Name,Date,Transaction Number,Invoice Number,Amount,Supplier Name,Supplier ID ,VAT Registration Number ,Expense Area,Expense Type,Expense Code,Purchase Order
http://statistics.data.gov.uk/id/local-authority/29UP,Tonbridge & Malling Borough Council,7/6/2021,0022025565/1,22025565, 22933.50,Social & Community Care,01768400,,Temporary Accommodation,Homelessness,C01AA000044051,
http://statistics.data.gov.uk/id/local-authority/29UP,Tonbridge & Malling Borough Council,7/7/2021,0011042797/1,11042797, 64.96,Viridor Waste Management Ltd,00682900,,Trade Refuse Charges,Cleaning & Security,D21FD000044008,
http://statistics.data.gov.uk/id/local-authority/29UP,Tonbridge & Malling Borough Council,7/7/2021,0011042835/1,11042835, 6404.54,Scottish Water Business Stream Ltd,01641100,,Water Charges (Metered),Buildings,D21FEDD6024001,
http://statistics.data.gov.uk/id/local-authority/29UP,Tonbridge & Malling Borough Council,7/7/2021,0011042839/1,11042839, 4995.00,Frontline Data,01375000,,BRREP Response - General,Kings Hill Offices - Ext Areas,M15KAP50001997,110069093
http://statistics.data.gov.uk/id/local-authority/29UP,Tonbridge & Malling Borough Council,7/7/2021,0011042840/1,11042840, 290.00,G C Industrial Heating Services,00578100,,BRREP Response - General,Gibson Building West,M15KBP50001997,110069091
http://statistics.data.gov.uk/id/local-authority/29UP,Tonbridge & Malling Borough Council,7/7/2021,0011042841/1,11042841, 542.00,DORMA UK Ltd,00413500,549361128,BRREP Servicing-entrance doors,Tonbridge Castle / CAB,M15KFP20001927,110069042
http://statistics.data.gov.uk/id/local-authority/29UP,Tonbridge & Malling Borough Council,7/7/2021,0011042842/1,11042842, 1286.00,BML Building Services Ltd,01505000,,BRREP Response - General,Angel Centre,M15HAP50001997,110069096
http://statistics.data.gov.uk/id/local-authority/29UP,Tonbridge & Malling Borough Council,7/7/2021,0011042843/1,11042843, 79.00,BML Building Services Ltd,01505000,,BRREP Response - General,PC - General,M15JAP50001997,110069026
http://statistics.data.gov.uk/id/local-authority/29UP,Tonbridge & Malling Borough Council,7/7/2021,0011042844/1,11042844, 181.00,Loxton Installations Ltd,01278800,,BRREP IEE Testing,Larkfield Leisure Centre,M15HDP30001991,110068905
http://statistics.data.gov.uk/id/local-authority/29UP,Tonbridge & Malling Borough Council,7/7/2021,0011042845/1,11042845, 416.30,Broadwater Technologies,01534500,,BRREP Servicing - pool plant,Tonbridge Swimming Pool,M15HBP20001910,110069114
http://statistics.data.gov.uk/id/local-authority/29UP,Tonbridge & Malling Borough Council,7/7/2021,0011042846/1,11042846, 13.65,KCS,00054200,,Cleaning & Domestic Supplies,Cleaning & Security,D21FD000026001,110069099
http://statistics.data.gov.uk/id/local-authority/29UP,Tonbridge & Malling Borough Council,7/7/2021,0011042847/1,11042847, 54.00,Kent Crisps Ltd,01806500,,Purchases,TIC Stock Account,K18AX000001002,
http://statistics.data.gov.uk/id/local-authority/29UP,Tonbridge & Malling Borough Council,7/7/2021,0011042848/1,11042848, 533.68,Papo UK Ltd,01238600,,Purchases,TIC Stock Account,K18AX000001002,
http://statistics.data.gov.uk/id/local-authority/29UP,Tonbridge & Malling Borough Council,7/7/2021,0011042849/1,11042849, 125.00,A One Event Services,01776600,,Re-opening High Streets,Eco Dev & Reg Gen Bus Support,D52TDCV1948076,
http://statistics.data.gov.uk/id/local-authority/29UP,Tonbridge & Malling Borough Council,7/7/2021,0011042850/1,11042850, 871.50,Encore Envelopes Ltd,01750600,,Stationery,Electoral Registration,D31MF000043003,
http://statistics.data.gov.uk/id/local-authority/29UP,Tonbridge & Malling Borough Council,7/7/2021,0011042851/1,11042851, 101.94,EDF Energy Customers plc,01035000,,Estate Management Charge,Land Review,D40PS000020400,
http://statistics.data.gov.uk/id/local-authority/29UP,Tonbridge & Malling Borough Council,7/7/2021,0011042852/1,11042852, 588.00,Venn Group Ltd,00914300,,Temporary Staff,Legal Sals&Overheads,D01ARDR0011300,
http://statistics.data.gov.uk/id/local-authority/29UP,Tonbridge & Malling Borough Council,7/7/2021,0011042853/1,11042853, 771.00,Hardys Wine Store,01794300,,H&CG Fund Council Specific,Eco Dev & Reg Gen Bus Support,D52TD000047027,
http://statistics.data.gov.uk/id/local-authority/29UP,Tonbridge & Malling Borough Council,7/7/2021,0011042854/1,11042854, 1650.00,KH Recruitment Ltd,01738900,,Temporary Staff,Admin & Prop Sals&Overheads,D01AADA1211300,
http://statistics.data.gov.uk/id/local-authority/29UP,Tonbridge & Malling Borough Council,7/7/2021,0011042855/1,11042855, 5000.00,Sevenoaks District Council,00089300,,West Kent Leader,Community Development,D30MB000048250,
http://statistics.data.gov.uk/id/local-authority/29UP,Tonbridge & Malling Borough Council,7/7/2021,0011042855/2,11042855, 1500.00,Sevenoaks District Council,00089300,,H&CG Fund Council Specific,Eco Dev & Reg Gen Bus Support,D52TD000047027,
http://statistics.data.gov.uk/id/local-authority/29UP,Tonbridge & Malling Borough Council,7/7/2021,0011042855/3,11042855, 10000.00,Sevenoaks District Council,00089300,,Business Growth Programme,Eco Dev & Reg Gen Bus Support,D52TD000048026,
http://statistics.data.gov.uk/id/local-authority/29UP,Tonbridge & Malling Borough Council,7/7/2021,0011042855/4,11042855, 3000.00,Sevenoaks District Council,00089300,,Economic Development Expenses,Eco Dev & Reg Gen Bus Support,D52TD000048050,
http://statistics.data.gov.uk/id/local-authority/29UP,Tonbridge & Malling Borough Council,7/7/2021,0011042856/1,11042856, 416.67,Hadlow Manor Hotel,00885000,,Meeting Expenses,Committee Administration,D29LL000048020,
http://statistics.data.gov.uk/id/local-authority/29UP,Tonbridge & Malling Borough Council,7/7/2021,0011042857/1,11042857, 672.00,Venn Group Ltd,00914300,,Temporary Staff,Legal Sals&Overheads,D01ARDR0011300,
http://statistics.data.gov.uk/id/local-authority/29UP,Tonbridge & Malling Borough Council,7/7/2021,0011042858/1,11042858, 672.00,Venn Group Ltd,00914300,,Temporary Staff,Legal Sals&Overheads,D01ARDR0011300,
http://statistics.data.gov.uk/id/local-authority/29UP,Tonbridge & Malling Borough Council,7/7/2021,0011042859/1,11042859, 782.00,BML Building Services Ltd,01505000,,BRREP General Maintenance,PC - General,M15JAP10001900,
http://statistics.data.gov.uk/id/local-authority/29UP,Tonbridge & Malling Borough Council,7/7/2021,0011042860/1,11042860, 316.97,Premier Paper Group,01421800,,Purchases - Paper,Printing,D22GA000040102,
http://statistics.data.gov.uk/id/local-authority/29UP,Tonbridge & Malling Borough Council,7/7/2021,0011042861/1,11042861, 63.83,Scottish Water Business Stream Ltd,01641100,,Sewerage Charges,Land Review,D40PS000024003,
http://statistics.data.gov.uk/id/local-authority/29UP,Tonbridge & Malling Borough Council,7/7/2021,0011042862/3,11042862, 28.80,EDF Energy Customers plc,01035000,,Estate Management Charge,Land Review,D40PS000020400,
http://statistics.data.gov.uk/id/local-authority/29UP,Tonbridge & Malling Borough Council,7/7/2021,0011042863/3,11042863, 29.01,EDF Energy Customers plc,01035000,,Estate Management Charge,Land Review,D40PS000020400,
http://statistics.data.gov.uk/id/local-authority/29UP,Tonbridge & Malling Borough Council,7/7/2021,0011042864/3,11042864, 137.87,Viridor Waste Management Ltd,00682900,,Trade Refuse Charges,Cleaning & Security,D21FD000044008,
http://statistics.data.gov.uk/id/local-authority/29UP,Tonbridge & Malling Borough Council,7/7/2021,0011042865/3,11042865, 4.68,Royal Mail,00086200,,Purchases,Central Stationery Stock A/c,K03AD000001002,
http://statistics.data.gov.uk/id/local-authority/29UP,Tonbridge & Malling Borough Council,7/7/2021,0011042865/4,11042865, 1692.56,Royal Mail,00086200,,Purchases,Central Stationery Stock A/c,K03AD000001002,
http://statistics.data.gov.uk/id/local-authority/29UP,Tonbridge & Malling Borough Council,7/7/2021,0011042866/3,11042866, 172.00,Coloursped Services Ltd,01806600,,Purchases,Printing,D22GA000040101,
http://statistics.data.gov.uk/id/local-authority/29UP,Tonbridge & Malling Borough Council,7/7/2021,0011042867/3,11042867, 19.75,Coloursped Services Ltd,01806600,,Purchases,Printing,D22GA000040101,
http://statistics.data.gov.uk/id/local-authority/29UP,Tonbridge & Malling Borough Council,7/7/2021,0011042868/3,11042868, 69.19,Royal Mail,00086200,,Postages - Business Reply,Conduct of Elections,D31MG000045003,
http://statistics.data.gov.uk/id/local-authority/29UP,Tonbridge & Malling Borough Council,7/7/2021,0011042868/4,11042868, 48.40,Royal Mail,00086200,,Purchases,Business Reply Stock Account,K14AT000001002,
http://statistics.data.gov.uk/id/local-authority/29UP,Tonbridge & Malling Borough Council,7/7/2021,0011042869/3,11042869, 1440.09,Royal Mail,00086200,,Purchases,Mailsort Stock Account,K37BR000001002,
http://statistics.data.gov.uk/id/local-authority/29UP,Tonbridge & Malling Borough Council,7/7/2021,0011042869/4,11042869, 4.00,Royal Mail,00086200,,Purchases,Mailsort Stock Account,K37BR000001002,
http://statistics.data.gov.uk/id/local-authority/29UP,Tonbridge & Malling Borough Council,7/7/2021,0011042870/3,11042870, 35.00,Cornerstones Barristers,01359100,,Other Planning Enq - Legal Cos,Legal Sals&Overheads,D01ARDR0044146,
http://statistics.data.gov.uk/id/local-authority/29UP,Tonbridge & Malling Borough Council,7/7/2021,0012008016/1,12008016, 4.96,Amazon EU SARL,01738400,,Purchases,Information Technology,D27KD000040101,410031987
http://statistics.data.gov.uk/id/local-authority/29UP,Tonbridge & Malling Borough Council,7/7/2021,0012008016/2,12008016, 4.16,Amazon EU SARL,01738400,,Delivery Expenses,Information Technology,D27KD000044069,410031987
http://statistics.data.gov.uk/id/local-authority/29UP,Tonbridge & Malling Borough Council,7/7/2021,0012008017/1,12008017, 2926.51,KHIPU Networks Limited,01191500,,Software Hire & Support,Information Technology,D27KD000044059,410031990
http://statistics.data.gov.uk/id/local-authority/29UP,Tonbridge & Malling Borough Council,7/7/2021,0012008017/2,12008017, 2985.43,KHIPU Networks Limited,01191500,,Software Hire & Support,Information Technology,D27KD000044059,410031990
http://statistics.data.gov.uk/id/local-authority/29UP,Tonbridge & Malling Borough Council,7/7/2021,0012008017/3,12008017, 2926.51,KHIPU Networks Limited,01191500,,Software Hire & Support,Information Technology,D27KD000044059,410031990
http://statistics.data.gov.uk/id/local-authority/29UP,Tonbridge & Malling Borough Council,7/7/2021,0012008017/4,12008017, 2926.51,KHIPU Networks Limited,01191500,,Software Hire & Support,Information Technology,D27KD000044059,410031990
http://statistics.data.gov.uk/id/local-authority/29UP,Tonbridge & Malling Borough Council,7/7/2021,0012008018/3,12008018, 1049.25,KH Recruitment Ltd,01738900,,Salaries & On Costs,Information Technology,D27KD000015100,
http://statistics.data.gov.uk/id/local-authority/29UP,Tonbridge & Malling Borough Council,7/7/2021,0012008019/3,12008019, 14.37,Esendex Limited,01008900,,Leased Lines & Modems,Information Technology,D27KD000045011,
http://statistics.data.gov.uk/id/local-authority/29UP,Tonbridge & Malling Borough Council,7/7/2021,0012008020/1,12008020, 576.00,Insight Direct (UK) Ltd,01092700,,Software Hire & Support,Information Technology,D27KD000044059,410031986
http://statistics.data.gov.uk/id/local-authority/29UP,Tonbridge & Malling Borough Council,7/7/2021,0012008021/3,12008021, 159.90,British Telecommunications Plc,00012800,,Telephones - Rentals,General Admin Telephones,D24GT000045005,
http://statistics.data.gov.uk/id/local-authority/29UP,Tonbridge & Malling Borough Council,7/7/2021,0012008021/4,12008021, 40.00,British Telecommunications Plc,00012800,,Telephones - Rentals,General Admin Telephones,D24GT000045005,
http://statistics.data.gov.uk/id/local-authority/29UP,Tonbridge & Malling Borough Council,7/7/2021,0012008022/3,12008022, 951.32,KH Recruitment Ltd,01738900,,Salaries & On Costs,Information Technology,D27KD000015100,
http://statistics.data.gov.uk/id/local-authority/29UP,Tonbridge & Malling Borough Council,7/7/2021,0012008023/1,12008023, 39.09,Amazon EU SARL,01738400,,Purchases,Information Technology,D27KD000040101,410031983
http://statistics.data.gov.uk/id/local-authority/29UP,Tonbridge & Malling Borough Council,7/7/2021,0012008024/1,12008024, 71.94,CCS Media Ltd,00018000,,Purchases,Information Technology,D27KD000040101,410031980
http://statistics.data.gov.uk/id/local-authority/29UP,Tonbridge & Malling Borough Council,7/7/2021,0012008025/1,12008025, 1019.94,CCS Media Ltd,00018000,,Purchases,Information Technology,D27KD000040101,410031980
http://statistics.data.gov.uk/id/local-authority/29UP,Tonbridge & Malling Borough Council,7/7/2021,0012008025/2,12008025, 2.00,CCS Media Ltd,00018000,,Delivery Expenses,Information Technology,D27KD000044069,410031980
http://statistics.data.gov.uk/id/local-authority/29UP,Tonbridge & Malling Borough Council,7/7/2021,0012008026/1,12008026, 839.94,CCS Media Ltd,00018000,,Purchases,Information Technology,D27KD000040101,410031980
http://statistics.data.gov.uk/id/local-authority/29UP,Tonbridge & Malling Borough Council,7/7/2021,0012008027/1,12008027, 39.99,CCS Media Ltd,00018000,,Purchases,Information Technology,D27KD000040101,410031981
http://statistics.data.gov.uk/id/local-authority/29UP,Tonbridge & Malling Borough Council,7/7/2021,0012008027/2,12008027, 2.00,CCS Media Ltd,00018000,,Delivery Expenses,Information Technology,D27KD000044069,410031981
http://statistics.data.gov.uk/id/local-authority/29UP,Tonbridge & Malling Borough Council,7/7/2021,0012008028/1,12008028, 125.97,CCS Media Ltd,00018000,,Purchases,Information Technology,D27KD000040101,410031988
http://statistics.data.gov.uk/id/local-authority/29UP,Tonbridge & Malling Borough Council,7/7/2021,0012008028/2,12008028, 2.00,CCS Media Ltd,00018000,,Delivery Expenses,Information Technology,D27KD000044069,410031988
http://statistics.data.gov.uk/id/local-authority/29UP,Tonbridge & Malling Borough Council,7/7/2021,0012008029/1,12008029, 74.98,CCS Media Ltd,00018000,,Purchases,Information Technology,D27KD000040101,410031988
http://statistics.data.gov.uk/id/local-authority/29UP,Tonbridge & Malling Borough Council,7/7/2021,0012008030/7,12008030, 928.77,Hewlett Packard Ltd,01152800,,Purchases,Information Technology,D27KD000040101,
http://statistics.data.gov.uk/id/local-authority/29UP,Tonbridge & Malling Borough Council,7/7/2021,0012008031/7,12008031, 386.00,iHub UK Limited,01287000,,Telephones - Rentals,General Admin Telephones,D24GT000045005,
http://statistics.data.gov.uk/id/local-authority/29UP,Tonbridge & Malling Borough Council,7/7/2021,0012008031/8,12008031, 41.40,iHub UK Limited,01287000,,Telephones - Call Costs,General Admin Telephones,D24GT000045006,
http://statistics.data.gov.uk/id/local-authority/29UP,Tonbridge & Malling Borough Council,7/7/2021,0012008034/3,12008034, 386.00,iHub UK Limited,01287000,,Telephones - Rentals,General Admin Telephones,D24GT000045005,
http://statistics.data.gov.uk/id/local-authority/29UP,Tonbridge & Malling Borough Council,7/7/2021,0012008034/4,12008034, 26.93,iHub UK Limited,01287000,,Telephones - Rentals,General Admin Telephones,D24GT000045005,
http://statistics.data.gov.uk/id/local-authority/29UP,Tonbridge & Malling Borough Council,7/7/2021,0012008034/5,12008034, 356.43,iHub UK Limited,01287000,,Telephones - Call Costs,General Admin Telephones,D24GT000045006,
http://statistics.data.gov.uk/id/local-authority/29UP,Tonbridge & Malling Borough Council,7/7/2021,0021037260/3,21037260, 161.24,Castle Water,01696500,,Water Charges (Metered),Cemetery,B26MP000024001,
http://statistics.data.gov.uk/id/local-authority/29UP,Tonbridge & Malling Borough Council,7/7/2021,0021037261/3,21037261, 3.56,B&Q/Screwfix Direct,00141300,,Maintenance of Grounds,Haysden Country Park,B22LC000020402,
http://statistics.data.gov.uk/id/local-authority/29UP,Tonbridge & Malling Borough Council,7/7/2021,0021037262/3,21037262, 6.08,B&Q/Screwfix Direct,00141300,,Maintenance of Grounds,Haysden Country Park,B22LC000020402,
http://statistics.data.gov.uk/id/local-authority/29UP,Tonbridge & Malling Borough Council,7/7/2021,0021037263/10,21037263, 4341.07,Landscape Services Ltd,00057600,,Grounds Maintenance Contract,Cemetery,B26MP000050103,
http://statistics.data.gov.uk/id/local-authority/29UP,Tonbridge & Malling Borough Council,7/7/2021,0021037263/11,21037263, 205.04,Landscape Services Ltd,00057600,,Grounds Maintenance Contract,Churchyards St Peter & St Paul,B28MX000050103,
http://statistics.data.gov.uk/id/local-authority/29UP,Tonbridge & Malling Borough Council,7/7/2021,0021037263/12,21037263, 149.11,Landscape Services Ltd,00057600,,Grounds Maintenance Contract,Churchyards St Stephens,B28MY000050103,
http://statistics.data.gov.uk/id/local-authority/29UP,Tonbridge & Malling Borough Council,7/7/2021,0021037263/13,21037263, 164.81,Landscape Services Ltd,00057600,,Grounds Maintenance Contract,Grounds,D21FF000050103,
http://statistics.data.gov.uk/id/local-authority/29UP,Tonbridge & Malling Borough Council,7/7/2021,0021037263/14,21037263, 312.58,Landscape Services Ltd,00057600,,Maintenance of Grounds,Parking Off-Street,E10HA000020402,
http://statistics.data.gov.uk/id/local-authority/29UP,Tonbridge & Malling Borough Council,7/7/2021,0021037263/15,21037263, 980.27,Landscape Services Ltd,00057600,,Maintenance of Grounds,Parking Off-Street,E10HAE00120402,
http://statistics.data.gov.uk/id/local-authority/29UP,Tonbridge & Malling Borough Council,7/7/2021,0021037263/16,21037263, 93.08,Landscape Services Ltd,00057600,,Maintenance of Grounds,Parking Off-Street,E10HAE00220402,
http://statistics.data.gov.uk/id/local-authority/29UP,Tonbridge & Malling Borough Council,7/7/2021,0021037263/17,21037263, 84.41,Landscape Services Ltd,00057600,,Maintenance of Grounds,Parking Off-Street,E10HAE00320402,
http://statistics.data.gov.uk/id/local-authority/29UP,Tonbridge & Malling Borough Council,7/7/2021,0021037263/18,21037263, 21.05,Landscape Services Ltd,00057600,,Maintenance of Grounds,Parking Off-Street,E10HAE00420402,
http://statistics.data.gov.uk/id/local-authority/29UP,Tonbridge & Malling Borough Council,7/7/2021,0021037263/19,21037263, 0.54,Landscape Services Ltd,00057600,,Maintenance of Grounds,Parking Off-Street,E10HAE00520402,
http://statistics.data.gov.uk/id/local-authority/29UP,Tonbridge & Malling Borough Council,7/7/2021,0021037263/20,21037263, 58.93,Landscape Services Ltd,00057600,,Maintenance of Grounds,Parking Off-Street,E10HAE00620402,
http://statistics.data.gov.uk/id/local-authority/29UP,Tonbridge & Malling Borough Council,7/7/2021,0021037263/21,21037263, 137.58,Landscape Services Ltd,00057600,,Maintenance of Grounds,Parking Off-Street,E10HAE01020402,
http://statistics.data.gov.uk/id/local-authority/29UP,Tonbridge & Malling Borough Council,7/7/2021,0021037263/22,21037263, 3.05,Landscape Services Ltd,00057600,,Maintenance of Grounds,Parking Off-Street,E10HAE01220402,
http://statistics.data.gov.uk/id/local-authority/29UP,Tonbridge & Malling Borough Council,7/7/2021,0021037263/23,21037263, 6.73,Landscape Services Ltd,00057600,,Maintenance of Grounds,Parking Off-Street,E10HAE01320402,
http://statistics.data.gov.uk/id/local-authority/29UP,Tonbridge & Malling Borough Council,7/7/2021,0021037263/24,21037263, 27.99,Landscape Services Ltd,00057600,,Maintenance of Grounds,Parking Off-Street,E10HAE01520402,
http://statistics.data.gov.uk/id/local-authority/29UP,Tonbridge & Malling Borough Council,7/7/2021,0021037263/25,21037263, 54.69,Landscape Services Ltd,00057600,,Maintenance of Grounds,Parking Off-Street,E10HAE01620402,
http://statistics.data.gov.uk/id/local-authority/29UP,Tonbridge & Malling Borough Council,7/7/2021,0021037263/26,21037263, 13.65,Landscape Services Ltd,00057600,,Maintenance of Grounds,Parking Off-Street,E10HAE02120402,
http://statistics.data.gov.uk/id/local-authority/29UP,Tonbridge & Malling Borough Council,7/7/2021,0021037263/27,21037263, 21.74,Landscape Services Ltd,00057600,,Maintenance of Grounds,Parking Off-Street,E10HAE02320402,
http://statistics.data.gov.uk/id/local-authority/29UP,Tonbridge & Malling Borough Council,7/7/2021,0021037263/28,21037263, 83.33,Landscape Services Ltd,00057600,,Maintenance of Grounds,Parking Off-Street,E10HAE02820402,
http://statistics.data.gov.uk/id/local-authority/29UP,Tonbridge & Malling Borough Council,7/7/2021,0021037263/29,21037263, 22.56,Landscape Services Ltd,00057600,,Maintenance of Grounds,Parking Off-Street,E10HAE04020402,
http://statistics.data.gov.uk/id/local-authority/29UP,Tonbridge & Malling Borough Council,7/7/2021,0021037263/3,21037263, 20341.80,Landscape Services Ltd,00057600,,Grounds Maintenance Contract,Sports Grounds,B13ET000050103,
http://statistics.data.gov.uk/id/local-authority/29UP,Tonbridge & Malling Borough Council,7/7/2021,0021037263/30,21037263, 74.40,Landscape Services Ltd,00057600,,Maintenance of Grounds,Parking Off-Street,E10HAE04520402,
http://statistics.data.gov.uk/id/local-authority/29UP,Tonbridge & Malling Borough Council,7/7/2021,0021037263/4,21037263, 7076.24,Landscape Services Ltd,00057600,,Grounds Maintenance Contract,Tonbridge Castle Grounds,B22LB000050103,
http://statistics.data.gov.uk/id/local-authority/29UP,Tonbridge & Malling Borough Council,7/7/2021,0021037263/5,21037263, 53.86,Landscape Services Ltd,00057600,,Trade Refuse Charges,Haysden Country Park,B22LC000044008,
http://statistics.data.gov.uk/id/local-authority/29UP,Tonbridge & Malling Borough Council,7/7/2021,0021037263/6,21037263, 462.07,Landscape Services Ltd,00057600,,Litter Collection,Haysden Country Park,B22LC000044061,
http://statistics.data.gov.uk/id/local-authority/29UP,Tonbridge & Malling Borough Council,7/7/2021,0021037263/7,21037263, 1600.71,Landscape Services Ltd,00057600,,Grounds Maintenance Contract,Haysden Country Park,B22LC000050103,
http://statistics.data.gov.uk/id/local-authority/29UP,Tonbridge & Malling Borough Council,7/7/2021,0021037263/8,21037263, 554.05,Landscape Services Ltd,00057600,,Grounds Maintenance Contract,Haysden Country Park,B22LC000050103,
http://statistics.data.gov.uk/id/local-authority/29UP,Tonbridge & Malling Borough Council,7/7/2021,0021037263/9,21037263, 11232.13,Landscape Services Ltd,00057600,,Grounds Maintenance Contract,Open Spaces & Amenity Areas,B22LE000050103,
http://statistics.data.gov.uk/id/local-authority/29UP,Tonbridge & Malling Borough Council,7/7/2021,0021037264/1,21037264, 527.40,G.L. & R.G. Bourne,00737500,,Maintenance of Grounds,Haysden Country Park,B22LC000020402,
http://statistics.data.gov.uk/id/local-authority/29UP,Tonbridge & Malling Borough Council,7/7/2021,0021037265/1,21037265, 72.30,G.L. & R.G. Bourne,00737500,,Gates / Security,Haysden Country Park,B22LC000044017,
http://statistics.data.gov.uk/id/local-authority/29UP,Tonbridge & Malling Borough Council,7/7/2021,0021037266/1,21037266, 4.80,G.L. & R.G. Bourne,00737500,,Gates / Security,Haysden Country Park,B22LC000044017,
http://statistics.data.gov.uk/id/local-authority/29UP,Tonbridge & Malling Borough Council,7/7/2021,0021037267/1,21037267, 271.41,Castle Water,01696500,,Water Charges (Metered),Leybourne Lakes Country Park,B22LK000024001,
http://statistics.data.gov.uk/id/local-authority/29UP,Tonbridge & Malling Borough Council,7/7/2021,0021037276/1,21037276, 31.00,Lawrence Container Hire Ltd,01033800,,Maintenance of Grounds,Leybourne Lakes Country Park,B22LK000020402,
http://statistics.data.gov.uk/id/local-authority/29UP,Tonbridge & Malling Borough Council,7/7/2021,0021037277/1,21037277, 8.24,B&Q/Screwfix Direct,00141300,,Maintenance of Grounds,Haysden Country Park,B22LC000020402,
http://statistics.data.gov.uk/id/local-authority/29UP,Tonbridge & Malling Borough Council,7/7/2021,0021037278/1,21037278, 1.61,B&Q/Screwfix Direct,00141300,,Maintenance of Grounds,Haysden Country Park,B22LC000020402,
http://statistics.data.gov.uk/id/local-authority/29UP,Tonbridge & Malling Borough Council,7/7/2021,0021037279/1,21037279, 67.63,B&Q/Screwfix Direct,00141300,,Maintenance of Grounds,Haysden Country Park,B22LC000020402,
http://statistics.data.gov.uk/id/local-authority/29UP,Tonbridge & Malling Borough Council,7/7/2021,0021037280/1,21037280, 4693.64,Sports & Play Ltd,01798500,,Initial Furniture & Equipment,Capital Renewals Leisure,P05KGBC0309906,210056258
http://statistics.data.gov.uk/id/local-authority/29UP,Tonbridge & Malling Borough Council,7/7/2021,0021037283/1,21037283, 328.96,Westway Fencing and Garden Services,00159700,,Maintenance of Grounds,Countryside/Woodland Mgt,B22LG000020402,210056252
http://statistics.data.gov.uk/id/local-authority/29UP,Tonbridge & Malling Borough Council,7/7/2021,0021037284/1,21037284, 696.94,Wybone Ltd,00815800,,Maintenance of Grounds,Haysden Country Park,B22LC000020402,210056246
http://statistics.data.gov.uk/id/local-authority/29UP,Tonbridge & Malling Borough Council,7/7/2021,0021037284/2,21037284, 696.94,Wybone Ltd,00815800,,Maintenance of Grounds,Open Spaces & Amenity Areas,B22LE000020402,210056246
http://statistics.data.gov.uk/id/local-authority/29UP,Tonbridge & Malling Borough Council,7/7/2021,0022025550/3,22025550, 3735.29,Ward Security LTD,01490000,,Dog Warden,Street Scene,H23SD000044100,
http://statistics.data.gov.uk/id/local-authority/29UP,Tonbridge & Malling Borough Council,7/7/2021,0022025551/1,22025551, 1745.00,Straight Plc,01029400,,Initial Furniture & Equipment,Refuse Bins Growth/Replacement,P02DA000009906,210056181
http://statistics.data.gov.uk/id/local-authority/29UP,Tonbridge & Malling Borough Council,7/7/2021,0022025552/3,22025552, 610.50,KH Recruitment Ltd,01738900,,Temporary Staff,St Scene & Leis Sals&Overheads,D01AGDG3011300,
http://statistics.data.gov.uk/id/local-authority/29UP,Tonbridge & Malling Borough Council,7/7/2021,0022025553/3,22025553, 740.00,G2 Recruitment Solutions,01786000,,Temporary Staff,Env Hlth & Hsg Sals&Overheads,D01AVDV0711300,
http://statistics.data.gov.uk/id/local-authority/29UP,Tonbridge & Malling Borough Council,7/7/2021,0022025554/3,22025554, 1239.50,Vivid Resourcing,01773700,,Temporary Staff,Env Hlth & Hsg Sals&Overheads,D01AVDV0911300,
http://statistics.data.gov.uk/id/local-authority/29UP,Tonbridge & Malling Borough Council,7/7/2021,0022025555/1,22025555, 700.00,Orange Property Services,01806200,,Homelessness Reduction Initiat,Homelessness,C01AA000048019,
http://statistics.data.gov.uk/id/local-authority/29UP,Tonbridge & Malling Borough Council,7/7/2021,0022025556/1,22025556, 2255.00,1st  Steps Housing Kent,01716100,,Temporary Accommodation,Homelessness,C01AA000044051,
http://statistics.data.gov.uk/id/local-authority/29UP,Tonbridge & Malling Borough Council,7/7/2021,0022025558/1,22025558, 4608.00,House to Home Lettings Ltd ,01647600,,Temporary Accommodation,Homelessness,C01AA000044051,
http://statistics.data.gov.uk/id/local-authority/29UP,Tonbridge & Malling Borough Council,7/7/2021,0022025559/1,22025559, 13899.00,Less Homeless Ltd,01489300,,Temporary Accommodation,Homelessness,C01AA000044051,
http://statistics.data.gov.uk/id/local-authority/29UP,Tonbridge & Malling Borough Council,7/7/2021,0022025560/3,22025560, 9720.00,Simon Niblett Lettings,00072600,,Temporary Accommodation,Homelessness,C01AA000044051,
http://statistics.data.gov.uk/id/local-authority/29UP,Tonbridge & Malling Borough Council,7/7/2021,0022025561/1,22025561, 3300.00,Simon Niblett Lettings,00072600,,Temporary Accommodation,Homelessness,C01AA000044051,
http://statistics.data.gov.uk/id/local-authority/29UP,Tonbridge & Malling Borough Council,7/7/2021,0022025562/1,22025562, 2154.83,The Care Group-Housing & Care Trust,01699600,,Temporary Accommodation,Homelessness,C01AA000044051,
http://statistics.data.gov.uk/id/local-authority/29UP,Tonbridge & Malling Borough Council,7/7/2021,0022025563/1,22025563, 18765.00,SPA CAFFE LIMITED,00127100,,Temporary Accommodation,Homelessness,C01AA000044051,
http://statistics.data.gov.uk/id/local-authority/29UP,Tonbridge & Malling Borough Council,7/7/2021,0022025564/1,22025564, 32.18,Viridor Waste Management Ltd,00682900,,Trade Refuse Charges,Cleaning & Security,D21FD000044008,
http://statistics.data.gov.uk/id/local-authority/29UP,Tonbridge & Malling Borough Council,7/7/2021,0022025566/1,22025566, 2897.00,Ascendit Lifts Ltd,00446600,,Other Expenses,Disabled Facilities Grant Mand,P03AC000009908,
http://statistics.data.gov.uk/id/local-authority/29UP,Tonbridge & Malling Borough Council,7/7/2021,0022025567/1,22025567, 1265.26,Peabody South East LTD,01680900,,Other Expenses,Disabled Facilities Grant Mand,P03AC000009908,
http://statistics.data.gov.uk/id/local-authority/29UP,Tonbridge & Malling Borough Council,7/7/2021,0022025568/1,22025568, 612.40,Green Recycling LTD,01563000,,Paper Recycling,Dry Recycling,H34SR000054024,
http://statistics.data.gov.uk/id/local-authority/29UP,Tonbridge & Malling Borough Council,7/7/2021,0022025569/1,22025569, 8250.00,Kent Accommodation Ltd,01722000,,Temporary Accommodation,Homelessness,C01AA000044051,
http://statistics.data.gov.uk/id/local-authority/29UP,Tonbridge & Malling Borough Council,7/7/2021,0022025570/1,22025570, 930.00,Kent Property Services,01722500,,Temporary Accommodation,Homelessness,C01AA000044051,
http://statistics.data.gov.uk/id/local-authority/29UP,Tonbridge & Malling Borough Council,7/7/2021,0022025571/1,22025571, 396.00,Monitor Pest Control Ltd,01476700,,Other Expenses,Pest Control,H24SE000048010,
http://statistics.data.gov.uk/id/local-authority/29UP,Tonbridge & Malling Borough Council,7/7/2021,0022025572/1,22025572, 677.98,Peabody South East LTD,01680900,,Countywide DFG Project,Private Sector Housing Renewal,C03BD000044031,
http://statistics.data.gov.uk/id/local-authority/29UP,Tonbridge & Malling Borough Council,7/7/2021,0022025573/1,22025573, 622.34,Peabody South East LTD,01680900,,Countywide DFG Project,Private Sector Housing Renewal,C03BD000044031,
http://statistics.data.gov.uk/id/local-authority/29UP,Tonbridge & Malling Borough Council,7/7/2021,0022025574/1,22025574, 74701.00,Paramount Independent Property Suppliers,01595300,,Temporary Accommodation,Homelessness,C01AA000044051,
http://statistics.data.gov.uk/id/local-authority/29UP,Tonbridge & Malling Borough Council,7/7/2021,0022025575/1,22025575, 4640.00,Premier Property Providers,01785400,,Temporary Accommodation,Homelessness,C01AA000044051,
http://statistics.data.gov.uk/id/local-authority/29UP,Tonbridge & Malling Borough Council,7/7/2021,0022025576/1,22025576, 140.00,Riley's Removals,01695900,,Homelessness Reduction Initiat,Homelessness,C01AA000048019,
http://statistics.data.gov.uk/id/local-authority/29UP,Tonbridge & Malling Borough Council,7/7/2021,0022025577/1,22025577, 5850.00,Simply Rented Ltd ,01691400,,Temporary Accommodation,Homelessness,C01AA000044051,
http://statistics.data.gov.uk/id/local-authority/29UP,Tonbridge & Malling Borough Council,7/7/2021,0022025578/1,22025578, 2115.75,Ward Security LTD,01490000,,Dog Warden,Street Scene,H23SD000044100,
http://statistics.data.gov.uk/id/local-authority/29UP,Tonbridge & Malling Borough Council,7/7/2021,0022025579/1,22025579, 1169.70,Ward Security LTD,01490000,,Dog Warden,Street Scene,H23SD000044100,
http://statistics.data.gov.uk/id/local-authority/29UP,Tonbridge & Malling Borough Council,7/7/2021,0022025580/1,22025580, 4266.20,On Site Wheelie Washers,01069700,,Other Expenses,Garden Waste Recycling,H34ST000048010,
http://statistics.data.gov.uk/id/local-authority/29UP,Tonbridge & Malling Borough Council,7/7/2021,0022025581/1,22025581, 23703.50,Social & Community Care,01768400,,Temporary Accommodation,Homelessness,C01AA000044051,
http://statistics.data.gov.uk/id/local-authority/29UP,Tonbridge & Malling Borough Council,7/7/2021,0022025582/1,22025582, 2920.00,Elite Complete Build LTD,01625900,,Other Expenses,Disabled Facilities Grant Mand,P03AC000009908,
http://statistics.data.gov.uk/id/local-authority/29UP,Tonbridge & Malling Borough Council,7/7/2021,0022025583/1,22025583, 1475.23,Peabody South East LTD,01680900,,Other Expenses,Disabled Facilities Grant Mand,P03AC000009908,
http://statistics.data.gov.uk/id/local-authority/29UP,Tonbridge & Malling Borough Council,7/7/2021,0031018024/3,31018024, 3785.00,Marston,01485000,,Adjudication & Enforcement Ser,Parking Off-Street,E10HA000044230,
http://statistics.data.gov.uk/id/local-authority/29UP,Tonbridge & Malling Borough Council,7/7/2021,0031018025/3,31018025, 65.47,Shell U.K. Oil Products Limited,01673300,,"Petrol, Diesel & Oil",Patrolling,B22LF000030106,
http://statistics.data.gov.uk/id/local-authority/29UP,Tonbridge & Malling Borough Council,7/7/2021,0031018025/4,31018025, 98.34,Shell U.K. Oil Products Limited,01673300,,"Petrol, Diesel & Oil",Parking Off-Street,E10HA000030106,
http://statistics.data.gov.uk/id/local-authority/29UP,Tonbridge & Malling Borough Council,7/7/2021,0031018025/5,31018025, 98.34,Shell U.K. Oil Products Limited,01673300,,"Petrol, Diesel & Oil",Parking On-Street,E10HD000030106,
http://statistics.data.gov.uk/id/local-authority/29UP,Tonbridge & Malling Borough Council,7/7/2021,0031018026/1,31018026, 600.00,Archway Highway Services Ltd,01398000,,Premises Repairs & Maintenance,Parking Off-Street,E10HA000020601,310042687
http://statistics.data.gov.uk/id/local-authority/29UP,Tonbridge & Malling Borough Council,7/7/2021,0031018027/1,31018027, 945.00,Archway Highway Services Ltd,01398000,,Premises Repairs & Maintenance,Parking On-Street,E10HD000020601,310042671
http://statistics.data.gov.uk/id/local-authority/29UP,Tonbridge & Malling Borough Council,7/7/2021,0031018028/3,31018028, 200.00,Arnold & Court Ltd,01411300,,Bridge Maintenance,Open Spaces & Amenity Areas,B22LE000020505,
http://statistics.data.gov.uk/id/local-authority/29UP,Tonbridge & Malling Borough Council,7/7/2021,0031018030/3,31018030, 156.30,British Telecommunications Plc,00012800,,Maintenance - General,Security Services Management,E09GA000040135,
http://statistics.data.gov.uk/id/local-authority/29UP,Tonbridge & Malling Borough Council,7/7/2021,0031018031/3,31018031, 138.90,British Telecommunications Plc,00012800,,Maintenance - General,Security Services Management,E09GA000040135,
http://statistics.data.gov.uk/id/local-authority/29UP,Tonbridge & Malling Borough Council,7/7/2021,0031018033/1,31018033, 130.00,The East Malling Centre,01168000,,Other Expenses,Civil Contingencies,D33NA000048010,
http://statistics.data.gov.uk/id/local-authority/29UP,Tonbridge & Malling Borough Council,7/7/2021,0031018034/1,31018034, 57.00,Arnold & Court Ltd,01411300,,Repair & Mtce of Fixed Plant,Boro Highways & Emergency Oper,E01AA000020501,
http://statistics.data.gov.uk/id/local-authority/29UP,Tonbridge & Malling Borough Council,7/7/2021,0031018034/2,31018034, 215.00,Arnold & Court Ltd,01411300,,Premises Repairs & Maintenance,Parking Off-Street,E10HAE00420601,
http://statistics.data.gov.uk/id/local-authority/29UP,Tonbridge & Malling Borough Council,7/7/2021,0031018034/3,31018034, 200.00,Arnold & Court Ltd,01411300,,Graffiti Removal,Street Scene,H23SD000044058,
http://statistics.data.gov.uk/id/local-authority/29UP,Tonbridge & Malling Borough Council,7/7/2021,0031018034/4,31018034, 102.00,Arnold & Court Ltd,01411300,,BRREP General Maintenance,Land Review,M15MAP10001900,
http://statistics.data.gov.uk/id/local-authority/29UP,Tonbridge & Malling Borough Council,7/7/2021,0031018035/1,31018035, 114.28,Arnold & Court Ltd,01411300,,Premises Repairs & Maintenance,Parking Off-Street,E10HA000020601,
http://statistics.data.gov.uk/id/local-authority/29UP,Tonbridge & Malling Borough Council,7/7/2021,0031018035/2,31018035, 286.00,Arnold & Court Ltd,01411300,,Premises Repairs & Maintenance,Parking Off-Street,E10HAE00220601,
http://statistics.data.gov.uk/id/local-authority/29UP,Tonbridge & Malling Borough Council,7/7/2021,0031018035/3,31018035, 57.15,Arnold & Court Ltd,01411300,,Premises Repairs & Maintenance,Parking Off-Street,E10HAE01420601,
http://statistics.data.gov.uk/id/local-authority/29UP,Tonbridge & Malling Borough Council,7/7/2021,0031018035/4,31018035, 28.57,Arnold & Court Ltd,01411300,,Premises Repairs & Maintenance,Parking Off-Street,E10HAE02820601,
http://statistics.data.gov.uk/id/local-authority/29UP,Tonbridge & Malling Borough Council,7/7/2021,0031018036/1,31018036, 114.30,Arnold & Court Ltd,01411300,,Premises Repairs & Maintenance,Parking Off-Street,E10HA000020601,
http://statistics.data.gov.uk/id/local-authority/29UP,Tonbridge & Malling Borough Council,7/7/2021,0031018036/2,31018036, 290.70,Arnold & Court Ltd,01411300,,Premises Repairs & Maintenance,Parking Off-Street,E10HAE00220601,
http://statistics.data.gov.uk/id/local-authority/29UP,Tonbridge & Malling Borough Council,7/7/2021,0031018036/3,31018036, 145.00,Arnold & Court Ltd,01411300,,Premises Repairs & Maintenance,Parking Off-Street,E10HAE01320601,
http://statistics.data.gov.uk/id/local-authority/29UP,Tonbridge & Malling Borough Council,7/7/2021,0031018037/1,31018037, 170.72,Arnold & Court Ltd,01411300,,Maintenance of Grounds,Churchyards St Stephens,B28MY000020402,
http://statistics.data.gov.uk/id/local-authority/29UP,Tonbridge & Malling Borough Council,7/7/2021,0031018037/2,31018037, 141.00,Arnold & Court Ltd,01411300,,Repair & Mtce of Fixed Plant,Boro Highways & Emergency Oper,E01AA000020501,
http://statistics.data.gov.uk/id/local-authority/29UP,Tonbridge & Malling Borough Council,7/7/2021,0031018037/3,31018037, 57.14,Arnold & Court Ltd,01411300,,Maintenance of Grounds,Parking Off-Street,E10HA000020402,
http://statistics.data.gov.uk/id/local-authority/29UP,Tonbridge & Malling Borough Council,7/7/2021,0031018037/4,31018037, 57.14,Arnold & Court Ltd,01411300,,Premises Repairs & Maintenance,Parking Off-Street,E10HAE02820601,
http://statistics.data.gov.uk/id/local-authority/29UP,Tonbridge & Malling Borough Council,7/7/2021,0032009177/1,32009177, 1320.00,G2 Recruitment Solutions,01786000,,Temporary Staff,Planning Sals&Overheads,D01AJDJ0111300,320003308
http://statistics.data.gov.uk/id/local-authority/29UP,Tonbridge & Malling Borough Council,7/7/2021,0032009180/1,32009180, 187.38,KM Media Group Ltd,00053900,,Advertising General,Development Management,A01ABZ99944216,320003312
http://statistics.data.gov.uk/id/local-authority/29UP,Tonbridge & Malling Borough Council,7/7/2021,0032009181/1,32009181, 386.25,Charles & Associates,01739200,,Application & Appeals,Development Management,A01AB000044194,320003297
http://statistics.data.gov.uk/id/local-authority/29UP,Tonbridge & Malling Borough Council,7/7/2021,0041033193/3,41033193, 921.01,Rundle & Co Ltd,00087200,,Bailiffs Commission,Local Revenue & NNDR Collect,D41QA000044075,
http://statistics.data.gov.uk/id/local-authority/29UP,Tonbridge & Malling Borough Council,7/7/2021,0041033194/3,41033194, 1113.87,Maidstone Borough Council,01173700,,Bailiffs Commission,Local Revenue & NNDR Collect,D41QA000044075,
http://statistics.data.gov.uk/id/local-authority/29UP,Tonbridge & Malling Borough Council,7/7/2021,0041033195/3,41033195, 888.00,Morgan Hunt UK Ltd,01086900,,Temporary Staff,Finance Sals&Overheads,D01AFDF1111300,
http://statistics.data.gov.uk/id/local-authority/29UP,Tonbridge & Malling Borough Council,7/7/2021,0041033198/1,41033198, 385.00,Integra User Group Ltd,00533100,,Subscriptions,Finance Sals&Overheads,D01AF000047002,
http://statistics.data.gov.uk/id/local-authority/29UP,Tonbridge & Malling Borough Council,7/7/2021,0041033199/1,41033199, 385.00,Integra User Group Ltd,00533100,,Subscriptions,Finance Sals&Overheads,D01AF000047002,
http://statistics.data.gov.uk/id/local-authority/29UP,Tonbridge & Malling Borough Council,7/7/2021,0041033201/3,41033201, 30.10,Tameside Metropolitan Borough,00770200,,Other Expenses,Finance Sals&Overheads,D01AFDF0648010,
http://statistics.data.gov.uk/id/local-authority/29UP,Tonbridge & Malling Borough Council,7/7/2021,0041033201/4,41033201, 5.00,Tameside Metropolitan Borough,00770200,,Other Expenses,Finance Sals&Overheads,D01AFDF0648010,
http://statistics.data.gov.uk/id/local-authority/29UP,Tonbridge & Malling Borough Council,7/7/2021,0041033202/3,41033202, 816.75,Canon (UK) Limited,00298700,,Maintenance - Ancillary Equip,Information Technology,D27KD000040137,
http://statistics.data.gov.uk/id/local-authority/29UP,Tonbridge & Malling Borough Council,7/7/2021,0041033203/3,41033203, 206.25,KH Recruitment Ltd,01738900,,Temporary Staff,Finance Sals&Overheads,D01AFDF1111300,
http://statistics.data.gov.uk/id/local-authority/29UP,Tonbridge & Malling Borough Council,7/7/2021,0041033204/3,41033204, 379.50,KH Recruitment Ltd,01738900,,Temporary Staff,Finance Sals&Overheads,D01AFDF1111300,
http://statistics.data.gov.uk/id/local-authority/29UP,Tonbridge & Malling Borough Council,7/7/2021,0041033205/3,41033205, 280.50,KH Recruitment Ltd,01738900,,Temporary Staff,Finance Sals&Overheads,D01AFDF1111300,
http://statistics.data.gov.uk/id/local-authority/29UP,Tonbridge & Malling Borough Council,7/7/2021,0041033206/1,41033206, 41.97,DG Consultancy,01617000,,Temporary Staff,Finance Sals&Overheads,D01AFDF0811300,410031726
http://statistics.data.gov.uk/id/local-authority/29UP,Tonbridge & Malling Borough Council,7/7/2021,0041033206/2,41033206, 1418.85,DG Consultancy,01617000,,Temporary Staff,Finance Sals&Overheads,D01AFDF0811300,410031726
http://statistics.data.gov.uk/id/local-authority/29UP,Tonbridge & Malling Borough Council,7/7/2021,0041033206/3,41033206, 609.18,DG Consultancy,01617000,,Temporary Staff,Finance Sals&Overheads,D01AFDF0811300,410031726
http://statistics.data.gov.uk/id/local-authority/29UP,Tonbridge & Malling Borough Council,7/7/2021,0041033207/1,41033207, 20.00,Computershare Voucher Services,01212600,,Childcare Scheme,Finance Sals&Overheads,D01AFDF0911136,
http://statistics.data.gov.uk/id/local-authority/29UP,Tonbridge & Malling Borough Council,7/7/2021,0041033207/10,41033207, 9.72,Computershare Voucher Services,01212600,,National Insurance,Env Hlth & Hsg Sals&Overheads,D01AVDV0711191,
http://statistics.data.gov.uk/id/local-authority/29UP,Tonbridge & Malling Borough Council,7/7/2021,0041033207/2,41033207, 0.80,Computershare Voucher Services,01212600,,National Insurance,Finance Sals&Overheads,D01AFDF0911191,
http://statistics.data.gov.uk/id/local-authority/29UP,Tonbridge & Malling Borough Council,7/7/2021,0041033207/3,41033207, 90.00,Computershare Voucher Services,01212600,,Childcare Scheme,St Scene & Leis Sals&Overheads,D01AGDG0411136,
http://statistics.data.gov.uk/id/local-authority/29UP,Tonbridge & Malling Borough Council,7/7/2021,0041033207/4,41033207, 3.60,Computershare Voucher Services,01212600,,National Insurance,St Scene & Leis Sals&Overheads,D01AGDG0411191,
http://statistics.data.gov.uk/id/local-authority/29UP,Tonbridge & Malling Borough Council,7/7/2021,0041033207/5,41033207, 50.00,Computershare Voucher Services,01212600,,Childcare Scheme,Legal Sals&Overheads,D01ARDR0011136,
http://statistics.data.gov.uk/id/local-authority/29UP,Tonbridge & Malling Borough Council,7/7/2021,0041033207/6,41033207, 2.00,Computershare Voucher Services,01212600,,National Insurance,Legal Sals&Overheads,D01ARDR0011191,
http://statistics.data.gov.uk/id/local-authority/29UP,Tonbridge & Malling Borough Council,7/7/2021,0041033207/7,41033207, 20.00,Computershare Voucher Services,01212600,,Childcare Scheme,Env Hlth & Hsg Sals&Overheads,D01AVDV0211136,
http://statistics.data.gov.uk/id/local-authority/29UP,Tonbridge & Malling Borough Council,7/7/2021,0041033207/8,41033207, 0.80,Computershare Voucher Services,01212600,,National Insurance,Env Hlth & Hsg Sals&Overheads,D01AVDV0211191,
http://statistics.data.gov.uk/id/local-authority/29UP,Tonbridge & Malling Borough Council,7/7/2021,0041033207/9,41033207, 243.00,Computershare Voucher Services,01212600,,Childcare Scheme,Env Hlth & Hsg Sals&Overheads,D01AVDV0711136,
http://statistics.data.gov.uk/id/local-authority/29UP,Tonbridge & Malling Borough Council,7/7/2021,0051008571/1,51008571, 60.00,Maidstone & Tun Wells NHS Trust,00067100,,Occuptional Health Medicals,Health Care,D10DBDJ0213311,
http://statistics.data.gov.uk/id/local-authority/29UP,Tonbridge & Malling Borough Council,7/7/2021,0051008572/1,51008572, 255.00,Irrv,00050300,,Ext Fees/Prof & Tech,Training,D10DCDF1113561,510010498
http://statistics.data.gov.uk/id/local-authority/29UP,Tonbridge & Malling Borough Council,7/8/2021,0041033224/1,41033224, 949.00,Oakleigh Flooring Ltd,01806800,,Purchases,Cleaning & Security,D21FDDD6040101,
http://statistics.data.gov.uk/id/local-authority/29UP,Tonbridge & Malling Borough Council,7/9/2021,0041033225/1,41033225, 355.00,HMCTS,01487000,,Estate Management Charge,Land Review,D40PS000020400,
http://statistics.data.gov.uk/id/local-authority/29UP,Tonbridge & Malling Borough Council,7/14/2021,0011042872/1,11042872, 2588.00,Thomson Snell & Passmore,00101700,,Legal Fees,Legal Sals&Overheads,D01ARDR0044002,
http://statistics.data.gov.uk/id/local-authority/29UP,Tonbridge & Malling Borough Council,7/14/2021,0011042873/1,11042873, 810.00,Thomson Snell & Passmore,00101700,,Legal Fees,Legal Sals&Overheads,D01ARDR0044002,
http://statistics.data.gov.uk/id/local-authority/29UP,Tonbridge & Malling Borough Council,7/14/2021,0011042874/1,11042874, 882.00,Bevan Brittan LLP,01096600,,Legal Fees,Legal Sals&Overheads,D01ARDR0044002,
http://statistics.data.gov.uk/id/local-authority/29UP,Tonbridge & Malling Borough Council,7/14/2021,0011042875/1,11042875, 5601.50,Bevan Brittan LLP,01096600,,Legal Fees,Legal Sals&Overheads,D01ARDR0044002,
http://statistics.data.gov.uk/id/local-authority/29UP,Tonbridge & Malling Borough Council,7/14/2021,0011042876/1,11042876, 35.00,Thomson Snell & Passmore,00101700,,Legal Fees,Legal Sals&Overheads,D01ARDR0044002,
http://statistics.data.gov.uk/id/local-authority/29UP,Tonbridge & Malling Borough Council,7/14/2021,0011042877/1,11042877, 1600.10,GSF SANDYLIGHT LTD,01705300,,Temporary Staff,Admin & Prop Sals&Overheads,D01AADA0511300,
http://statistics.data.gov.uk/id/local-authority/29UP,Tonbridge & Malling Borough Council,7/14/2021,0011042878/2,11042878, 277.00,Thomson Snell & Passmore,00101700,,Legal Fees,Legal Sals&Overheads,D01ARDR0044002,
http://statistics.data.gov.uk/id/local-authority/29UP,Tonbridge & Malling Borough Council,7/14/2021,0011042879/1,11042879, 4179.00,TMS Protection Ltd,01744300,,Re-opening High Streets,Eco Dev & Reg Gen Bus Support,D52TDCV1948076,
http://statistics.data.gov.uk/id/local-authority/29UP,Tonbridge & Malling Borough Council,7/14/2021,0011042881/1,11042881, 1200.00,Disclosure & Barring Service,00865900,,Professional Fees,Licences - Fee Paying,H27SH000044001,
http://statistics.data.gov.uk/id/local-authority/29UP,Tonbridge & Malling Borough Council,7/14/2021,0011042882/1,11042882, 1440.09,Royal Mail,00086200,,Purchases,Mailsort Stock Account,K37BR000001002,
http://statistics.data.gov.uk/id/local-authority/29UP,Tonbridge & Malling Borough Council,7/14/2021,0011042882/2,11042882, 4.00,Royal Mail,00086200,,Purchases,Mailsort Stock Account,K37BR000001002,
http://statistics.data.gov.uk/id/local-authority/29UP,Tonbridge & Malling Borough Council,7/14/2021,0011042883/3,11042883, 4.68,Royal Mail,00086200,,Purchases,Mailsort Stock Account,K37BR000001002,
http://statistics.data.gov.uk/id/local-authority/29UP,Tonbridge & Malling Borough Council,7/14/2021,0011042883/4,11042883, 1692.56,Royal Mail,00086200,,Purchases,Mailsort Stock Account,K37BR000001002,
http://statistics.data.gov.uk/id/local-authority/29UP,Tonbridge & Malling Borough Council,7/14/2021,0011042884/1,11042884, 69.19,Royal Mail,00086200,,Postages - Business Reply,Conduct of Elections,D31MG000045003,
http://statistics.data.gov.uk/id/local-authority/29UP,Tonbridge & Malling Borough Council,7/14/2021,0011042884/2,11042884, 48.40,Royal Mail,00086200,,Purchases,Business Reply Stock Account,K14AT000001002,
http://statistics.data.gov.uk/id/local-authority/29UP,Tonbridge & Malling Borough Council,7/14/2021,0011042885/1,11042885, 431.65,LexisNexis UK,00016100,,Reference Books & Publications,Legal Sals&Overheads,D01ARDR0043010,
http://statistics.data.gov.uk/id/local-authority/29UP,Tonbridge & Malling Borough Council,7/14/2021,0011042885/2,11042885, 458.34,LexisNexis UK,00016100,,Reference Books & Publications,Legal Sals&Overheads,D01ARDR0043010,
http://statistics.data.gov.uk/id/local-authority/29UP,Tonbridge & Malling Borough Council,7/14/2021,0011042885/3,11042885, 7.00,LexisNexis UK,00016100,,Reference Books & Publications,Legal Sals&Overheads,D01ARDR0043010,
http://statistics.data.gov.uk/id/local-authority/29UP,Tonbridge & Malling Borough Council,7/14/2021,0011042886/1,11042886, 943.00,Financial Data Management  Plc,00035400,,Stationery,Electoral Registration,D31MF000043003,
http://statistics.data.gov.uk/id/local-authority/29UP,Tonbridge & Malling Borough Council,7/14/2021,0011042887/3,11042887, 250.00,Hadlow Manor Hotel,00885000,,Meeting Expenses,Committee Administration,D29LL000048020,
http://statistics.data.gov.uk/id/local-authority/29UP,Tonbridge & Malling Borough Council,7/14/2021,0012008035/1,12008035, 4566.41,KHIPU Networks Limited,01191500,,Software Hire & Support,Information Technology,D27KD000044059,410031991
http://statistics.data.gov.uk/id/local-authority/29UP,Tonbridge & Malling Borough Council,7/14/2021,0012008036/1,12008036, 1049.25,KH Recruitment Ltd,01738900,,Salaries & On Costs,Information Technology,D27KD000015100,
http://statistics.data.gov.uk/id/local-authority/29UP,Tonbridge & Malling Borough Council,7/14/2021,0012008037/1,12008037, 114.50,Kingsfield Computer Products Ltd,00942800,,Purchases,Information Technology,D27KD000040101,410031994
http://statistics.data.gov.uk/id/local-authority/29UP,Tonbridge & Malling Borough Council,7/14/2021,0012008037/2,12008037, 9.95,Kingsfield Computer Products Ltd,00942800,,Delivery Expenses,Information Technology,D27KD000044069,410031994
http://statistics.data.gov.uk/id/local-authority/29UP,Tonbridge & Malling Borough Council,7/14/2021,0012008038/1,12008038, 2200.00,NEC Software Solutions UK Ltd,01073900,202159745,Consultancy Fees,Information Technology,D27KD000044011,410031973
http://statistics.data.gov.uk/id/local-authority/29UP,Tonbridge & Malling Borough Council,7/14/2021,0012008039/1,12008039, 6371.25,NTT United Kingdom Ltd,01747000,,Initial Furniture & Equipment,CMS Web Sol'n,P06EX000009906,410031955
http://statistics.data.gov.uk/id/local-authority/29UP,Tonbridge & Malling Borough Council,7/14/2021,0012008039/10,12008039, 243.51,NTT United Kingdom Ltd,01747000,,Initial Furniture & Equipment,CMS Web Sol'n,P06EX000009906,410031955
http://statistics.data.gov.uk/id/local-authority/29UP,Tonbridge & Malling Borough Council,7/14/2021,0012008039/11,12008039, 3341.66,NTT United Kingdom Ltd,01747000,,Initial Furniture & Equipment,CMS Web Sol'n,P06EX000009906,410031955
http://statistics.data.gov.uk/id/local-authority/29UP,Tonbridge & Malling Borough Council,7/14/2021,0012008039/2,12008039, 286.66,NTT United Kingdom Ltd,01747000,,Initial Furniture & Equipment,CMS Web Sol'n,P06EX000009906,410031955
http://statistics.data.gov.uk/id/local-authority/29UP,Tonbridge & Malling Borough Council,7/14/2021,0012008039/3,12008039, 1954.56,NTT United Kingdom Ltd,01747000,,Initial Furniture & Equipment,CMS Web Sol'n,P06EX000009906,410031955
http://statistics.data.gov.uk/id/local-authority/29UP,Tonbridge & Malling Borough Council,7/14/2021,0012008039/4,12008039, 1111.65,NTT United Kingdom Ltd,01747000,,Initial Furniture & Equipment,CMS Web Sol'n,P06EX000009906,410031955
http://statistics.data.gov.uk/id/local-authority/29UP,Tonbridge & Malling Borough Council,7/14/2021,0012008039/5,12008039, 43.75,NTT United Kingdom Ltd,01747000,,Initial Furniture & Equipment,CMS Web Sol'n,P06EX000009906,410031955
http://statistics.data.gov.uk/id/local-authority/29UP,Tonbridge & Malling Borough Council,7/14/2021,0012008039/6,12008039, 131.25,NTT United Kingdom Ltd,01747000,,Initial Furniture & Equipment,CMS Web Sol'n,P06EX000009906,410031955
http://statistics.data.gov.uk/id/local-authority/29UP,Tonbridge & Malling Borough Council,7/14/2021,0012008039/7,12008039, 2409.16,NTT United Kingdom Ltd,01747000,,Initial Furniture & Equipment,CMS Web Sol'n,P06EX000009906,410031955
http://statistics.data.gov.uk/id/local-authority/29UP,Tonbridge & Malling Borough Council,7/14/2021,0012008039/8,12008039, 416.66,NTT United Kingdom Ltd,01747000,,Initial Furniture & Equipment,CMS Web Sol'n,P06EX000009906,410031955
http://statistics.data.gov.uk/id/local-authority/29UP,Tonbridge & Malling Borough Council,7/14/2021,0012008039/9,12008039, 343.75,NTT United Kingdom Ltd,01747000,,Initial Furniture & Equipment,CMS Web Sol'n,P06EX000009906,410031955
http://statistics.data.gov.uk/id/local-authority/29UP,Tonbridge & Malling Borough Council,7/14/2021,0012008040/10,12008040, 3.00,O2 UK Ltd,01268000,,Mobile Telephones,Chief Exec Sals&Overheads,D01ACDC0245013,
http://statistics.data.gov.uk/id/local-authority/29UP,Tonbridge & Malling Borough Council,7/14/2021,0012008040/11,12008040, 3.00,O2 UK Ltd,01268000,,Mobile Telephones,Technical Sals&Overheads,D01AEDE0045013,
http://statistics.data.gov.uk/id/local-authority/29UP,Tonbridge & Malling Borough Council,7/14/2021,0012008040/12,12008040, 6.00,O2 UK Ltd,01268000,,Mobile Telephones,Technical Sals&Overheads,D01AEDE0145013,
http://statistics.data.gov.uk/id/local-authority/29UP,Tonbridge & Malling Borough Council,7/14/2021,0012008040/13,12008040, 9.00,O2 UK Ltd,01268000,,Mobile Telephones,Technical Sals&Overheads,D01AEDE0245013,
http://statistics.data.gov.uk/id/local-authority/29UP,Tonbridge & Malling Borough Council,7/14/2021,0012008040/14,12008040, 39.27,O2 UK Ltd,01268000,,Mobile Telephones,Technical Sals&Overheads,D01AEDE0445013,
http://statistics.data.gov.uk/id/local-authority/29UP,Tonbridge & Malling Borough Council,7/14/2021,0012008040/15,12008040, 3.00,O2 UK Ltd,01268000,,Mobile Telephones,Technical Sals&Overheads,D01AEDE0545013,
http://statistics.data.gov.uk/id/local-authority/29UP,Tonbridge & Malling Borough Council,7/14/2021,0012008040/16,12008040, 12.00,O2 UK Ltd,01268000,,Mobile Telephones,Finance Sals&Overheads,D01AFDF0045013,
http://statistics.data.gov.uk/id/local-authority/29UP,Tonbridge & Malling Borough Council,7/14/2021,0012008040/17,12008040, 9.00,O2 UK Ltd,01268000,,Mobile Telephones,Finance Sals&Overheads,D01AFDF0945013,
http://statistics.data.gov.uk/id/local-authority/29UP,Tonbridge & Malling Borough Council,7/14/2021,0012008040/18,12008040, 12.00,O2 UK Ltd,01268000,,Mobile Telephones,St Scene & Leis Sals&Overheads,D01AGDG0045013,
http://statistics.data.gov.uk/id/local-authority/29UP,Tonbridge & Malling Borough Council,7/14/2021,0012008040/19,12008040, 6.00,O2 UK Ltd,01268000,,Mobile Telephones,St Scene & Leis Sals&Overheads,D01AGDG0145013,
http://statistics.data.gov.uk/id/local-authority/29UP,Tonbridge & Malling Borough Council,7/14/2021,0012008040/20,12008040, 9.00,O2 UK Ltd,01268000,,Mobile Telephones,St Scene & Leis Sals&Overheads,D01AGDG0445013,
http://statistics.data.gov.uk/id/local-authority/29UP,Tonbridge & Malling Borough Council,7/14/2021,0012008040/21,12008040, 30.40,O2 UK Ltd,01268000,,Mobile Telephones,St Scene & Leis Sals&Overheads,D01AGDG2045013,
http://statistics.data.gov.uk/id/local-authority/29UP,Tonbridge & Malling Borough Council,7/14/2021,0012008040/22,12008040, 9.00,O2 UK Ltd,01268000,,Mobile Telephones,Planning Sals&Overheads,D01AJDJ0045013,
http://statistics.data.gov.uk/id/local-authority/29UP,Tonbridge & Malling Borough Council,7/14/2021,0012008040/23,12008040, 3.00,O2 UK Ltd,01268000,,Mobile Telephones,Planning Sals&Overheads,D01AJDJ0145013,
http://statistics.data.gov.uk/id/local-authority/29UP,Tonbridge & Malling Borough Council,7/14/2021,0012008040/24,12008040, 6.00,O2 UK Ltd,01268000,,Mobile Telephones,Legal Sals&Overheads,D01ARDR0045013,
http://statistics.data.gov.uk/id/local-authority/29UP,Tonbridge & Malling Borough Council,7/14/2021,0012008040/25,12008040, 12.00,O2 UK Ltd,01268000,,Mobile Telephones,Legal Sals&Overheads,D01ARDR0445013,
http://statistics.data.gov.uk/id/local-authority/29UP,Tonbridge & Malling Borough Council,7/14/2021,0012008040/26,12008040, 3.00,O2 UK Ltd,01268000,,Mobile Telephones,Legal Sals&Overheads,D01ARDR0745013,
http://statistics.data.gov.uk/id/local-authority/29UP,Tonbridge & Malling Borough Council,7/14/2021,0012008040/27,12008040, 3.00,O2 UK Ltd,01268000,,Mobile Telephones,Env Hlth & Hsg Sals&Overheads,D01AVDV0045013,
http://statistics.data.gov.uk/id/local-authority/29UP,Tonbridge & Malling Borough Council,7/14/2021,0012008040/28,12008040, 9.00,O2 UK Ltd,01268000,,Mobile Telephones,Env Hlth & Hsg Sals&Overheads,D01AVDV0145013,
http://statistics.data.gov.uk/id/local-authority/29UP,Tonbridge & Malling Borough Council,7/14/2021,0012008040/29,12008040, 6.00,O2 UK Ltd,01268000,,Mobile Telephones,Env Hlth & Hsg Sals&Overheads,D01AVDV0345013,
http://statistics.data.gov.uk/id/local-authority/29UP,Tonbridge & Malling Borough Council,7/14/2021,0012008040/3,12008040, 3.00,O2 UK Ltd,01268000,,Telephones - General,Open Spaces & Amenity Areas,B22LE000045010,
http://statistics.data.gov.uk/id/local-authority/29UP,Tonbridge & Malling Borough Council,7/14/2021,0012008040/30,12008040, 9.00,O2 UK Ltd,01268000,,Mobile Telephones,Customer Services,D23CS000045013,
http://statistics.data.gov.uk/id/local-authority/29UP,Tonbridge & Malling Borough Council,7/14/2021,0012008040/31,12008040, 3.00,O2 UK Ltd,01268000,,Mobile Telephones,Tonbridge Gateway,D23TG000045013,
http://statistics.data.gov.uk/id/local-authority/29UP,Tonbridge & Malling Borough Council,7/14/2021,0012008040/32,12008040, 624.00,O2 UK Ltd,01268000,,Leased Lines & Modems,Information Technology,D27KD000045011,
http://statistics.data.gov.uk/id/local-authority/29UP,Tonbridge & Malling Borough Council,7/14/2021,0012008040/33,12008040, 3.00,O2 UK Ltd,01268000,,Mobile Telephones,Mayoral & Other Member Support,D29LX000045013,
http://statistics.data.gov.uk/id/local-authority/29UP,Tonbridge & Malling Borough Council,7/14/2021,0012008040/34,12008040, 3.00,O2 UK Ltd,01268000,,Emergency Out of Hours Recharg,Refuse Collection,H20SA000045030,
http://statistics.data.gov.uk/id/local-authority/29UP,Tonbridge & Malling Borough Council,7/14/2021,0012008040/35,12008040, 3.00,O2 UK Ltd,01268000,,Emergency Out of Hours Recharg,Street Scene,H23SD000045030,
http://statistics.data.gov.uk/id/local-authority/29UP,Tonbridge & Malling Borough Council,7/14/2021,0012008040/4,12008040, 6.00,O2 UK Ltd,01268000,,Telephones - General,Leybourne Lakes Country Park,B22LK000045010,
http://statistics.data.gov.uk/id/local-authority/29UP,Tonbridge & Malling Borough Council,7/14/2021,0012008040/5,12008040, 6.00,O2 UK Ltd,01268000,,Mobile Telephones,Admin & Prop Sals&Overheads,D01AADA0045013,
http://statistics.data.gov.uk/id/local-authority/29UP,Tonbridge & Malling Borough Council,7/14/2021,0012008040/6,12008040, 6.00,O2 UK Ltd,01268000,,Mobile Telephones,Admin & Prop Sals&Overheads,D01AADA1045013,
http://statistics.data.gov.uk/id/local-authority/29UP,Tonbridge & Malling Borough Council,7/14/2021,0012008040/7,12008040, 3.00,O2 UK Ltd,01268000,,Mobile Telephones,Admin & Prop Sals&Overheads,D01AADA1245013,
http://statistics.data.gov.uk/id/local-authority/29UP,Tonbridge & Malling Borough Council,7/14/2021,0012008040/8,12008040, 3.00,O2 UK Ltd,01268000,,Mobile Telephones,Chief Exec Sals&Overheads,D01ACDC0045013,
http://statistics.data.gov.uk/id/local-authority/29UP,Tonbridge & Malling Borough Council,7/14/2021,0012008040/9,12008040, 3.00,O2 UK Ltd,01268000,,Mobile Telephones,Chief Exec Sals&Overheads,D01ACDC0145013,
http://statistics.data.gov.uk/id/local-authority/29UP,Tonbridge & Malling Borough Council,7/14/2021,0021037285/1,21037285, 95.00,Fields in Trust,01065400,,Maintenance of Grounds,Open Spaces & Amenity Areas,B22LE000020402,
http://statistics.data.gov.uk/id/local-authority/29UP,Tonbridge & Malling Borough Council,7/14/2021,0021037286/1,21037286, 1000.00,Music at Malling,01326400,,Events Support,Events Development,B41TJ000044041,
http://statistics.data.gov.uk/id/local-authority/29UP,Tonbridge & Malling Borough Council,7/14/2021,0021037287/1,21037287, 925.77,Playdale Playgrounds Ltd,01195000,,Maintenance of Play Equipment,Open Spaces & Amenity Areas,B22LE000020503,210056277
http://statistics.data.gov.uk/id/local-authority/29UP,Tonbridge & Malling Borough Council,7/14/2021,0021037288/3,21037288, 175000.00,Tonbridge & Malling Leisure Trust,01469100,,General,T&M Leisure Trust,B10DA000054012,
http://statistics.data.gov.uk/id/local-authority/29UP,Tonbridge & Malling Borough Council,7/14/2021,0021037289/3,21037289, 765.08,Atlas Facilities Managment Limited ,01075900,,Gates / Security,Leybourne Lakes Country Park,B22LK000044017,
http://statistics.data.gov.uk/id/local-authority/29UP,Tonbridge & Malling Borough Council,7/14/2021,0021037290/3,21037290, 620.00,Atlas Facilities Managment Limited ,01075900,,Gates / Security,Patrolling,B22LF000044017,
http://statistics.data.gov.uk/id/local-authority/29UP,Tonbridge & Malling Borough Council,7/14/2021,0021037291/1,21037291, 287.85,Castleview Enterprises,00017100,,Maintenance of Grounds,Leybourne Lakes Country Park,B22LK000020402,210056354
http://statistics.data.gov.uk/id/local-authority/29UP,Tonbridge & Malling Borough Council,7/14/2021,0021037292/1,21037292, 2050.00,Clear Skies Software Ltd,00579500,,Purchases,Cemetery,B26MP000040101,210056355
http://statistics.data.gov.uk/id/local-authority/29UP,Tonbridge & Malling Borough Council,7/14/2021,0021037293/3,21037293, 137.20,Countrystyle Group,00835900,781981681,Trade Refuse Charges,Leybourne Lakes Country Park,B22LK000044008,
http://statistics.data.gov.uk/id/local-authority/29UP,Tonbridge & Malling Borough Council,7/14/2021,0021037294/1,21037294, 136.68,Royal British Legion Industries Ltd,00139700,,Maintenance of Grounds,Open Spaces & Amenity Areas,B22LE000020402,210056339
http://statistics.data.gov.uk/id/local-authority/29UP,Tonbridge & Malling Borough Council,7/14/2021,0021037295/1,21037295, 432.00,TMS Protection Ltd,01744300,,Gates / Security,Leybourne Lakes Country Park,B22LK000044017,210056332
http://statistics.data.gov.uk/id/local-authority/29UP,Tonbridge & Malling Borough Council,7/14/2021,0021037296/1,21037296, 135.00,Downderry Nursery Ltd,01803800,,Purchases,Tonbridge Castle Grounds,B22LB000040101,210056348
http://statistics.data.gov.uk/id/local-authority/29UP,Tonbridge & Malling Borough Council,7/14/2021,0021037297/1,21037297, 1460.00,Amethyst Horticulture,01546900,,Purchases,Open Spaces & Amenity Areas,B22LE000040101,210056020
http://statistics.data.gov.uk/id/local-authority/29UP,Tonbridge & Malling Borough Council,7/14/2021,0021037298/1,21037298, 86.64,B&Q/Screwfix Direct,00141300,,Purchases,Leybourne Lakes Country Park,B22LK000040101,
http://statistics.data.gov.uk/id/local-authority/29UP,Tonbridge & Malling Borough Council,7/14/2021,0021037299/1,21037299, 1015.00,Cleveland Biotech Limited,01804500,,Initial Furniture & Equipment,Capital Renewals Leisure,P05KGBC0309906,210056347
http://statistics.data.gov.uk/id/local-authority/29UP,Tonbridge & Malling Borough Council,7/14/2021,0021037300/1,21037300, 169.50,British Telecommunications Plc,00012800,,Telephones - General,Leybourne Lakes Country Park,B22LK000045010,
http://statistics.data.gov.uk/id/local-authority/29UP,Tonbridge & Malling Borough Council,7/14/2021,0021037302/1,21037302, 960.00,Twig Trading Ltd,01602200,,Maintenance of Grounds,Leybourne Lakes Country Park,B22LK000020402,210056327
http://statistics.data.gov.uk/id/local-authority/29UP,Tonbridge & Malling Borough Council,7/14/2021,0022025584/10,22025584, 66.06,Urbaser LTD,01718800,,Maintenance of Grounds,Leybourne Lakes Country Park,B22LK000020402,
http://statistics.data.gov.uk/id/local-authority/29UP,Tonbridge & Malling Borough Council,7/14/2021,0022025584/11,22025584, 23.91,Urbaser LTD,01718800,,Dog Bin Emptying,Leybourne Lakes Country Park,B22LK000044012,
http://statistics.data.gov.uk/id/local-authority/29UP,Tonbridge & Malling Borough Council,7/14/2021,0022025584/12,22025584, 55.10,Urbaser LTD,01718800,,Maintenance of Grounds,Grounds,D21FF000020402,
http://statistics.data.gov.uk/id/local-authority/29UP,Tonbridge & Malling Borough Council,7/14/2021,0022025584/13,22025584, 168.53,Urbaser LTD,01718800,,Maintenance of Grounds,Parking Off-Street,E10HA000020402,
http://statistics.data.gov.uk/id/local-authority/29UP,Tonbridge & Malling Borough Council,7/14/2021,0022025584/14,22025584, 4288.11,Urbaser LTD,01718800,,Maintenance of Grounds,Parking Off-Street,E10HAE00120402,
http://statistics.data.gov.uk/id/local-authority/29UP,Tonbridge & Malling Borough Council,7/14/2021,0022025584/15,22025584, 461.92,Urbaser LTD,01718800,,Maintenance of Grounds,Parking Off-Street,E10HAE00220402,
http://statistics.data.gov.uk/id/local-authority/29UP,Tonbridge & Malling Borough Council,7/14/2021,0022025584/16,22025584, 288.97,Urbaser LTD,01718800,,Maintenance of Grounds,Parking Off-Street,E10HAE00320402,
http://statistics.data.gov.uk/id/local-authority/29UP,Tonbridge & Malling Borough Council,7/14/2021,0022025584/17,22025584, 1511.29,Urbaser LTD,01718800,,Maintenance of Grounds,Parking Off-Street,E10HAE00420402,
http://statistics.data.gov.uk/id/local-authority/29UP,Tonbridge & Malling Borough Council,7/14/2021,0022025584/18,22025584, 251.14,Urbaser LTD,01718800,,Maintenance of Grounds,Parking Off-Street,E10HAE00520402,
http://statistics.data.gov.uk/id/local-authority/29UP,Tonbridge & Malling Borough Council,7/14/2021,0022025584/19,22025584, 936.67,Urbaser LTD,01718800,,Maintenance of Grounds,Parking Off-Street,E10HAE00620402,
http://statistics.data.gov.uk/id/local-authority/29UP,Tonbridge & Malling Borough Council,7/14/2021,0022025584/20,22025584, 7.90,Urbaser LTD,01718800,,Maintenance of Grounds,Parking Off-Street,E10HAE00820402,
http://statistics.data.gov.uk/id/local-authority/29UP,Tonbridge & Malling Borough Council,7/14/2021,0022025584/21,22025584, 7.80,Urbaser LTD,01718800,,Maintenance of Grounds,Parking Off-Street,E10HAE00920402,
http://statistics.data.gov.uk/id/local-authority/29UP,Tonbridge & Malling Borough Council,7/14/2021,0022025584/22,22025584, 18.51,Urbaser LTD,01718800,,Maintenance of Grounds,Parking Off-Street,E10HAE01020402,
http://statistics.data.gov.uk/id/local-authority/29UP,Tonbridge & Malling Borough Council,7/14/2021,0022025584/23,22025584, 87.95,Urbaser LTD,01718800,,Maintenance of Grounds,Parking Off-Street,E10HAE01120402,
http://statistics.data.gov.uk/id/local-authority/29UP,Tonbridge & Malling Borough Council,7/14/2021,0022025584/24,22025584, 55.34,Urbaser LTD,01718800,,Maintenance of Grounds,Parking Off-Street,E10HAE01220402,
http://statistics.data.gov.uk/id/local-authority/29UP,Tonbridge & Malling Borough Council,7/14/2021,0022025584/25,22025584, 1049.30,Urbaser LTD,01718800,,Maintenance of Grounds,Parking Off-Street,E10HAE01320402,
http://statistics.data.gov.uk/id/local-authority/29UP,Tonbridge & Malling Borough Council,7/14/2021,0022025584/26,22025584, 79.80,Urbaser LTD,01718800,,Maintenance of Grounds,Parking Off-Street,E10HAE01420402,
http://statistics.data.gov.uk/id/local-authority/29UP,Tonbridge & Malling Borough Council,7/14/2021,0022025584/27,22025584, 245.93,Urbaser LTD,01718800,,Maintenance of Grounds,Parking Off-Street,E10HAE01520402,
http://statistics.data.gov.uk/id/local-authority/29UP,Tonbridge & Malling Borough Council,7/14/2021,0022025584/28,22025584, 264.50,Urbaser LTD,01718800,,Maintenance of Grounds,Parking Off-Street,E10HAE01620402,
http://statistics.data.gov.uk/id/local-authority/29UP,Tonbridge & Malling Borough Council,7/14/2021,0022025584/29,22025584, 780.85,Urbaser LTD,01718800,,Maintenance of Grounds,Parking Off-Street,E10HAE01720402,
http://statistics.data.gov.uk/id/local-authority/29UP,Tonbridge & Malling Borough Council,7/14/2021,0022025584/3,22025584, 354.43,Urbaser LTD,01718800,,Maintenance of Grounds,Sports Grounds,B13ET000020402,
http://statistics.data.gov.uk/id/local-authority/29UP,Tonbridge & Malling Borough Council,7/14/2021,0022025584/30,22025584, 224.12,Urbaser LTD,01718800,,Maintenance of Grounds,Parking Off-Street,E10HAE01920402,
http://statistics.data.gov.uk/id/local-authority/29UP,Tonbridge & Malling Borough Council,7/14/2021,0022025584/31,22025584, 492.32,Urbaser LTD,01718800,,Maintenance of Grounds,Parking Off-Street,E10HAE02020402,
http://statistics.data.gov.uk/id/local-authority/29UP,Tonbridge & Malling Borough Council,7/14/2021,0022025584/32,22025584, 17.09,Urbaser LTD,01718800,,Maintenance of Grounds,Parking Off-Street,E10HAE02120402,
http://statistics.data.gov.uk/id/local-authority/29UP,Tonbridge & Malling Borough Council,7/14/2021,0022025584/33,22025584, 112.54,Urbaser LTD,01718800,,Maintenance of Grounds,Parking Off-Street,E10HAE02220402,
http://statistics.data.gov.uk/id/local-authority/29UP,Tonbridge & Malling Borough Council,7/14/2021,0022025584/34,22025584, 946.10,Urbaser LTD,01718800,,Maintenance of Grounds,Parking Off-Street,E10HAE02320402,
http://statistics.data.gov.uk/id/local-authority/29UP,Tonbridge & Malling Borough Council,7/14/2021,0022025584/35,22025584, 2.44,Urbaser LTD,01718800,,Maintenance of Grounds,Parking Off-Street,E10HAE02720402,
http://statistics.data.gov.uk/id/local-authority/29UP,Tonbridge & Malling Borough Council,7/14/2021,0022025584/36,22025584, 343.77,Urbaser LTD,01718800,,Maintenance of Grounds,Parking Off-Street,E10HAE02820402,
http://statistics.data.gov.uk/id/local-authority/29UP,Tonbridge & Malling Borough Council,7/14/2021,0022025584/37,22025584, 6.19,Urbaser LTD,01718800,,Maintenance of Grounds,Parking Off-Street,E10HAE02920402,
http://statistics.data.gov.uk/id/local-authority/29UP,Tonbridge & Malling Borough Council,7/14/2021,0022025584/38,22025584, 36.43,Urbaser LTD,01718800,,Maintenance of Grounds,Parking Off-Street,E10HAE03020402,
http://statistics.data.gov.uk/id/local-authority/29UP,Tonbridge & Malling Borough Council,7/14/2021,0022025584/39,22025584, 31.00,Urbaser LTD,01718800,,Maintenance of Grounds,Parking Off-Street,E10HAE03120402,
http://statistics.data.gov.uk/id/local-authority/29UP,Tonbridge & Malling Borough Council,7/14/2021,0022025584/4,22025584, 75.43,Urbaser LTD,01718800,,Maintenance of Grounds,Poult Wood Golf Centre,B21KE000020402,
http://statistics.data.gov.uk/id/local-authority/29UP,Tonbridge & Malling Borough Council,7/14/2021,0022025584/40,22025584, 657.32,Urbaser LTD,01718800,,Maintenance of Grounds,Parking Off-Street,E10HAE04020402,
http://statistics.data.gov.uk/id/local-authority/29UP,Tonbridge & Malling Borough Council,7/14/2021,0022025584/41,22025584, 455.90,Urbaser LTD,01718800,,Maintenance of Grounds,Parking Off-Street,E10HAE04220402,
http://statistics.data.gov.uk/id/local-authority/29UP,Tonbridge & Malling Borough Council,7/14/2021,0022025584/42,22025584, 1308.55,Urbaser LTD,01718800,,Maintenance of Grounds,Parking Off-Street,E10HAE04520402,
http://statistics.data.gov.uk/id/local-authority/29UP,Tonbridge & Malling Borough Council,7/14/2021,0022025584/43,22025584, 81773.77,Urbaser LTD,01718800,,Contract Payments,Refuse Collection,H20SA000054001,
http://statistics.data.gov.uk/id/local-authority/29UP,Tonbridge & Malling Borough Council,7/14/2021,0022025584/44,22025584, 865.70,Urbaser LTD,01718800,,Responsible Dog Ownership,Street Scene,H23SD000044050,
http://statistics.data.gov.uk/id/local-authority/29UP,Tonbridge & Malling Borough Council,7/14/2021,0022025584/45,22025584, 51717.72,Urbaser LTD,01718800,,Contract Payments,Street Scene,H23SD000054001,
http://statistics.data.gov.uk/id/local-authority/29UP,Tonbridge & Malling Borough Council,7/14/2021,0022025584/46,22025584, 819.23,Urbaser LTD,01718800,,General Maintenance,Dry Recycling,H34SR000020301,
http://statistics.data.gov.uk/id/local-authority/29UP,Tonbridge & Malling Borough Council,7/14/2021,0022025584/47,22025584, 73613.88,Urbaser LTD,01718800,,Contract Payments,Dry Recycling,H34SR000054001,
http://statistics.data.gov.uk/id/local-authority/29UP,Tonbridge & Malling Borough Council,7/14/2021,0022025584/48,22025584, 3803.64,Urbaser LTD,01718800,,Bring Sites Mixed Recycling,Dry Recycling,H34SR000054026,
http://statistics.data.gov.uk/id/local-authority/29UP,Tonbridge & Malling Borough Council,7/14/2021,0022025584/49,22025584, 28804.34,Urbaser LTD,01718800,,Contract Payments,Food Recycling,H34SS000054001,
http://statistics.data.gov.uk/id/local-authority/29UP,Tonbridge & Malling Borough Council,7/14/2021,0022025584/5,22025584, 31.13,Urbaser LTD,01718800,,Maintenance of Grounds,Haysden Country Park,B22LC000020402,
http://statistics.data.gov.uk/id/local-authority/29UP,Tonbridge & Malling Borough Council,7/14/2021,0022025584/50,22025584, 16367.16,Urbaser LTD,01718800,,Contract Payments,Garden Waste Recycling,H34ST000054001,
http://statistics.data.gov.uk/id/local-authority/29UP,Tonbridge & Malling Borough Council,7/14/2021,0022025584/6,22025584, 23.91,Urbaser LTD,01718800,,Dog Bin Emptying,Haysden Country Park,B22LC000044012,
http://statistics.data.gov.uk/id/local-authority/29UP,Tonbridge & Malling Borough Council,7/14/2021,0022025584/7,22025584, 677.66,Urbaser LTD,01718800,,Maintenance of Grounds,Open Spaces & Amenity Areas,B22LE000020402,
http://statistics.data.gov.uk/id/local-authority/29UP,Tonbridge & Malling Borough Council,7/14/2021,0022025584/8,22025584, 12.75,Urbaser LTD,01718800,,Dog Bin Emptying,Open Spaces & Amenity Areas,B22LE000044012,
http://statistics.data.gov.uk/id/local-authority/29UP,Tonbridge & Malling Borough Council,7/14/2021,0022025584/9,22025584, 22.00,Urbaser LTD,01718800,,Maintenance of Grounds,Countryside/Woodland Mgt,B22LG000020402,
http://statistics.data.gov.uk/id/local-authority/29UP,Tonbridge & Malling Borough Council,7/14/2021,0022025585/10,22025585, 66.06,Urbaser LTD,01718800,,Maintenance of Grounds,Leybourne Lakes Country Park,B22LK000020402,
http://statistics.data.gov.uk/id/local-authority/29UP,Tonbridge & Malling Borough Council,7/14/2021,0022025585/11,22025585, 23.91,Urbaser LTD,01718800,,Dog Bin Emptying,Leybourne Lakes Country Park,B22LK000044012,
http://statistics.data.gov.uk/id/local-authority/29UP,Tonbridge & Malling Borough Council,7/14/2021,0022025585/12,22025585, 55.10,Urbaser LTD,01718800,,Maintenance of Grounds,Grounds,D21FF000020402,
http://statistics.data.gov.uk/id/local-authority/29UP,Tonbridge & Malling Borough Council,7/14/2021,0022025585/13,22025585, 168.53,Urbaser LTD,01718800,,Maintenance of Grounds,Parking Off-Street,E10HA000020402,
http://statistics.data.gov.uk/id/local-authority/29UP,Tonbridge & Malling Borough Council,7/14/2021,0022025585/14,22025585, 4288.11,Urbaser LTD,01718800,,Maintenance of Grounds,Parking Off-Street,E10HAE00120402,
http://statistics.data.gov.uk/id/local-authority/29UP,Tonbridge & Malling Borough Council,7/14/2021,0022025585/15,22025585, 461.92,Urbaser LTD,01718800,,Maintenance of Grounds,Parking Off-Street,E10HAE00220402,
http://statistics.data.gov.uk/id/local-authority/29UP,Tonbridge & Malling Borough Council,7/14/2021,0022025585/16,22025585, 288.97,Urbaser LTD,01718800,,Maintenance of Grounds,Parking Off-Street,E10HAE00320402,
http://statistics.data.gov.uk/id/local-authority/29UP,Tonbridge & Malling Borough Council,7/14/2021,0022025585/17,22025585, 1511.29,Urbaser LTD,01718800,,Maintenance of Grounds,Parking Off-Street,E10HAE00420402,
http://statistics.data.gov.uk/id/local-authority/29UP,Tonbridge & Malling Borough Council,7/14/2021,0022025585/18,22025585, 251.14,Urbaser LTD,01718800,,Maintenance of Grounds,Parking Off-Street,E10HAE00520402,
http://statistics.data.gov.uk/id/local-authority/29UP,Tonbridge & Malling Borough Council,7/14/2021,0022025585/19,22025585, 936.67,Urbaser LTD,01718800,,Maintenance of Grounds,Parking Off-Street,E10HAE00620402,
http://statistics.data.gov.uk/id/local-authority/29UP,Tonbridge & Malling Borough Council,7/14/2021,0022025585/20,22025585, 7.90,Urbaser LTD,01718800,,Maintenance of Grounds,Parking Off-Street,E10HAE00820402,
http://statistics.data.gov.uk/id/local-authority/29UP,Tonbridge & Malling Borough Council,7/14/2021,0022025585/21,22025585, 7.80,Urbaser LTD,01718800,,Maintenance of Grounds,Parking Off-Street,E10HAE00920402,
http://statistics.data.gov.uk/id/local-authority/29UP,Tonbridge & Malling Borough Council,7/14/2021,0022025585/22,22025585, 18.51,Urbaser LTD,01718800,,Maintenance of Grounds,Parking Off-Street,E10HAE01020402,
http://statistics.data.gov.uk/id/local-authority/29UP,Tonbridge & Malling Borough Council,7/14/2021,0022025585/23,22025585, 87.95,Urbaser LTD,01718800,,Maintenance of Grounds,Parking Off-Street,E10HAE01120402,
http://statistics.data.gov.uk/id/local-authority/29UP,Tonbridge & Malling Borough Council,7/14/2021,0022025585/24,22025585, 55.34,Urbaser LTD,01718800,,Maintenance of Grounds,Parking Off-Street,E10HAE01220402,
http://statistics.data.gov.uk/id/local-authority/29UP,Tonbridge & Malling Borough Council,7/14/2021,0022025585/25,22025585, 1049.30,Urbaser LTD,01718800,,Maintenance of Grounds,Parking Off-Street,E10HAE01320402,
http://statistics.data.gov.uk/id/local-authority/29UP,Tonbridge & Malling Borough Council,7/14/2021,0022025585/26,22025585, 79.80,Urbaser LTD,01718800,,Maintenance of Grounds,Parking Off-Street,E10HAE01420402,
http://statistics.data.gov.uk/id/local-authority/29UP,Tonbridge & Malling Borough Council,7/14/2021,0022025585/27,22025585, 245.93,Urbaser LTD,01718800,,Maintenance of Grounds,Parking Off-Street,E10HAE01520402,
http://statistics.data.gov.uk/id/local-authority/29UP,Tonbridge & Malling Borough Council,7/14/2021,0022025585/28,22025585, 264.50,Urbaser LTD,01718800,,Maintenance of Grounds,Parking Off-Street,E10HAE01620402,
http://statistics.data.gov.uk/id/local-authority/29UP,Tonbridge & Malling Borough Council,7/14/2021,0022025585/29,22025585, 780.85,Urbaser LTD,01718800,,Maintenance of Grounds,Parking Off-Street,E10HAE01720402,
http://statistics.data.gov.uk/id/local-authority/29UP,Tonbridge & Malling Borough Council,7/14/2021,0022025585/3,22025585, 354.43,Urbaser LTD,01718800,,Maintenance of Grounds,Sports Grounds,B13ET000020402,
http://statistics.data.gov.uk/id/local-authority/29UP,Tonbridge & Malling Borough Council,7/14/2021,0022025585/30,22025585, 224.12,Urbaser LTD,01718800,,Maintenance of Grounds,Parking Off-Street,E10HAE01920402,
http://statistics.data.gov.uk/id/local-authority/29UP,Tonbridge & Malling Borough Council,7/14/2021,0022025585/31,22025585, 492.32,Urbaser LTD,01718800,,Maintenance of Grounds,Parking Off-Street,E10HAE02020402,
http://statistics.data.gov.uk/id/local-authority/29UP,Tonbridge & Malling Borough Council,7/14/2021,0022025585/32,22025585, 17.09,Urbaser LTD,01718800,,Maintenance of Grounds,Parking Off-Street,E10HAE02120402,
http://statistics.data.gov.uk/id/local-authority/29UP,Tonbridge & Malling Borough Council,7/14/2021,0022025585/33,22025585, 112.54,Urbaser LTD,01718800,,Maintenance of Grounds,Parking Off-Street,E10HAE02220402,
http://statistics.data.gov.uk/id/local-authority/29UP,Tonbridge & Malling Borough Council,7/14/2021,0022025585/34,22025585, 946.10,Urbaser LTD,01718800,,Maintenance of Grounds,Parking Off-Street,E10HAE02320402,
http://statistics.data.gov.uk/id/local-authority/29UP,Tonbridge & Malling Borough Council,7/14/2021,0022025585/35,22025585, 2.44,Urbaser LTD,01718800,,Maintenance of Grounds,Parking Off-Street,E10HAE02720402,
http://statistics.data.gov.uk/id/local-authority/29UP,Tonbridge & Malling Borough Council,7/14/2021,0022025585/36,22025585, 343.77,Urbaser LTD,01718800,,Maintenance of Grounds,Parking Off-Street,E10HAE02820402,
http://statistics.data.gov.uk/id/local-authority/29UP,Tonbridge & Malling Borough Council,7/14/2021,0022025585/37,22025585, 6.19,Urbaser LTD,01718800,,Maintenance of Grounds,Parking Off-Street,E10HAE02920402,
http://statistics.data.gov.uk/id/local-authority/29UP,Tonbridge & Malling Borough Council,7/14/2021,0022025585/38,22025585, 36.43,Urbaser LTD,01718800,,Maintenance of Grounds,Parking Off-Street,E10HAE03020402,
http://statistics.data.gov.uk/id/local-authority/29UP,Tonbridge & Malling Borough Council,7/14/2021,0022025585/39,22025585, 31.00,Urbaser LTD,01718800,,Maintenance of Grounds,Parking Off-Street,E10HAE03120402,
http://statistics.data.gov.uk/id/local-authority/29UP,Tonbridge & Malling Borough Council,7/14/2021,0022025585/4,22025585, 75.43,Urbaser LTD,01718800,,Maintenance of Grounds,Poult Wood Golf Centre,B21KE000020402,
http://statistics.data.gov.uk/id/local-authority/29UP,Tonbridge & Malling Borough Council,7/14/2021,0022025585/40,22025585, 657.32,Urbaser LTD,01718800,,Maintenance of Grounds,Parking Off-Street,E10HAE04020402,
http://statistics.data.gov.uk/id/local-authority/29UP,Tonbridge & Malling Borough Council,7/14/2021,0022025585/41,22025585, 455.90,Urbaser LTD,01718800,,Maintenance of Grounds,Parking Off-Street,E10HAE04220402,
http://statistics.data.gov.uk/id/local-authority/29UP,Tonbridge & Malling Borough Council,7/14/2021,0022025585/42,22025585, 1308.55,Urbaser LTD,01718800,,Maintenance of Grounds,Parking Off-Street,E10HAE04520402,
http://statistics.data.gov.uk/id/local-authority/29UP,Tonbridge & Malling Borough Council,7/14/2021,0022025585/43,22025585, 81773.77,Urbaser LTD,01718800,,Contract Payments,Refuse Collection,H20SA000054001,
http://statistics.data.gov.uk/id/local-authority/29UP,Tonbridge & Malling Borough Council,7/14/2021,0022025585/44,22025585, 865.70,Urbaser LTD,01718800,,Responsible Dog Ownership,Street Scene,H23SD000044050,
http://statistics.data.gov.uk/id/local-authority/29UP,Tonbridge & Malling Borough Council,7/14/2021,0022025585/45,22025585, 51717.72,Urbaser LTD,01718800,,Contract Payments,Street Scene,H23SD000054001,
http://statistics.data.gov.uk/id/local-authority/29UP,Tonbridge & Malling Borough Council,7/14/2021,0022025585/46,22025585, 819.23,Urbaser LTD,01718800,,General Maintenance,Dry Recycling,H34SR000020301,
http://statistics.data.gov.uk/id/local-authority/29UP,Tonbridge & Malling Borough Council,7/14/2021,0022025585/47,22025585, 73613.88,Urbaser LTD,01718800,,Contract Payments,Dry Recycling,H34SR000054001,
http://statistics.data.gov.uk/id/local-authority/29UP,Tonbridge & Malling Borough Council,7/14/2021,0022025585/48,22025585, 3803.64,Urbaser LTD,01718800,,Bring Sites Mixed Recycling,Dry Recycling,H34SR000054026,
http://statistics.data.gov.uk/id/local-authority/29UP,Tonbridge & Malling Borough Council,7/14/2021,0022025585/49,22025585, 28804.34,Urbaser LTD,01718800,,Contract Payments,Food Recycling,H34SS000054001,
http://statistics.data.gov.uk/id/local-authority/29UP,Tonbridge & Malling Borough Council,7/14/2021,0022025585/5,22025585, 31.13,Urbaser LTD,01718800,,Maintenance of Grounds,Haysden Country Park,B22LC000020402,
http://statistics.data.gov.uk/id/local-authority/29UP,Tonbridge & Malling Borough Council,7/14/2021,0022025585/50,22025585, 16367.16,Urbaser LTD,01718800,,Contract Payments,Garden Waste Recycling,H34ST000054001,
http://statistics.data.gov.uk/id/local-authority/29UP,Tonbridge & Malling Borough Council,7/14/2021,0022025585/6,22025585, 23.91,Urbaser LTD,01718800,,Dog Bin Emptying,Haysden Country Park,B22LC000044012,
http://statistics.data.gov.uk/id/local-authority/29UP,Tonbridge & Malling Borough Council,7/14/2021,0022025585/7,22025585, 677.66,Urbaser LTD,01718800,,Maintenance of Grounds,Open Spaces & Amenity Areas,B22LE000020402,
http://statistics.data.gov.uk/id/local-authority/29UP,Tonbridge & Malling Borough Council,7/14/2021,0022025585/8,22025585, 12.75,Urbaser LTD,01718800,,Dog Bin Emptying,Open Spaces & Amenity Areas,B22LE000044012,
http://statistics.data.gov.uk/id/local-authority/29UP,Tonbridge & Malling Borough Council,7/14/2021,0022025585/9,22025585, 22.00,Urbaser LTD,01718800,,Maintenance of Grounds,Countryside/Woodland Mgt,B22LG000020402,
http://statistics.data.gov.uk/id/local-authority/29UP,Tonbridge & Malling Borough Council,7/14/2021,0022025586/10,22025586, 66.06,Urbaser LTD,01718800,,Maintenance of Grounds,Leybourne Lakes Country Park,B22LK000020402,
http://statistics.data.gov.uk/id/local-authority/29UP,Tonbridge & Malling Borough Council,7/14/2021,0022025586/11,22025586, 23.91,Urbaser LTD,01718800,,Dog Bin Emptying,Leybourne Lakes Country Park,B22LK000044012,
http://statistics.data.gov.uk/id/local-authority/29UP,Tonbridge & Malling Borough Council,7/14/2021,0022025586/12,22025586, 55.10,Urbaser LTD,01718800,,Maintenance of Grounds,Grounds,D21FF000020402,
http://statistics.data.gov.uk/id/local-authority/29UP,Tonbridge & Malling Borough Council,7/14/2021,0022025586/13,22025586, 168.53,Urbaser LTD,01718800,,Maintenance of Grounds,Parking Off-Street,E10HA000020402,
http://statistics.data.gov.uk/id/local-authority/29UP,Tonbridge & Malling Borough Council,7/14/2021,0022025586/14,22025586, 4288.11,Urbaser LTD,01718800,,Maintenance of Grounds,Parking Off-Street,E10HAE00120402,
http://statistics.data.gov.uk/id/local-authority/29UP,Tonbridge & Malling Borough Council,7/14/2021,0022025586/15,22025586, 461.92,Urbaser LTD,01718800,,Maintenance of Grounds,Parking Off-Street,E10HAE00220402,
http://statistics.data.gov.uk/id/local-authority/29UP,Tonbridge & Malling Borough Council,7/14/2021,0022025586/16,22025586, 288.97,Urbaser LTD,01718800,,Maintenance of Grounds,Parking Off-Street,E10HAE00320402,
http://statistics.data.gov.uk/id/local-authority/29UP,Tonbridge & Malling Borough Council,7/14/2021,0022025586/17,22025586, 1511.29,Urbaser LTD,01718800,,Maintenance of Grounds,Parking Off-Street,E10HAE00420402,
http://statistics.data.gov.uk/id/local-authority/29UP,Tonbridge & Malling Borough Council,7/14/2021,0022025586/18,22025586, 251.14,Urbaser LTD,01718800,,Maintenance of Grounds,Parking Off-Street,E10HAE00520402,
http://statistics.data.gov.uk/id/local-authority/29UP,Tonbridge & Malling Borough Council,7/14/2021,0022025586/19,22025586, 936.67,Urbaser LTD,01718800,,Maintenance of Grounds,Parking Off-Street,E10HAE00620402,
http://statistics.data.gov.uk/id/local-authority/29UP,Tonbridge & Malling Borough Council,7/14/2021,0022025586/20,22025586, 7.90,Urbaser LTD,01718800,,Maintenance of Grounds,Parking Off-Street,E10HAE00820402,
http://statistics.data.gov.uk/id/local-authority/29UP,Tonbridge & Malling Borough Council,7/14/2021,0022025586/21,22025586, 7.80,Urbaser LTD,01718800,,Maintenance of Grounds,Parking Off-Street,E10HAE00920402,
http://statistics.data.gov.uk/id/local-authority/29UP,Tonbridge & Malling Borough Council,7/14/2021,0022025586/22,22025586, 18.51,Urbaser LTD,01718800,,Maintenance of Grounds,Parking Off-Street,E10HAE01020402,
http://statistics.data.gov.uk/id/local-authority/29UP,Tonbridge & Malling Borough Council,7/14/2021,0022025586/23,22025586, 87.95,Urbaser LTD,01718800,,Maintenance of Grounds,Parking Off-Street,E10HAE01120402,
http://statistics.data.gov.uk/id/local-authority/29UP,Tonbridge & Malling Borough Council,7/14/2021,0022025586/24,22025586, 55.34,Urbaser LTD,01718800,,Maintenance of Grounds,Parking Off-Street,E10HAE01220402,
http://statistics.data.gov.uk/id/local-authority/29UP,Tonbridge & Malling Borough Council,7/14/2021,0022025586/25,22025586, 1049.30,Urbaser LTD,01718800,,Maintenance of Grounds,Parking Off-Street,E10HAE01320402,
http://statistics.data.gov.uk/id/local-authority/29UP,Tonbridge & Malling Borough Council,7/14/2021,0022025586/26,22025586, 79.80,Urbaser LTD,01718800,,Maintenance of Grounds,Parking Off-Street,E10HAE01420402,
http://statistics.data.gov.uk/id/local-authority/29UP,Tonbridge & Malling Borough Council,7/14/2021,0022025586/27,22025586, 245.93,Urbaser LTD,01718800,,Maintenance of Grounds,Parking Off-Street,E10HAE01520402,
http://statistics.data.gov.uk/id/local-authority/29UP,Tonbridge & Malling Borough Council,7/14/2021,0022025586/28,22025586, 264.50,Urbaser LTD,01718800,,Maintenance of Grounds,Parking Off-Street,E10HAE01620402,
http://statistics.data.gov.uk/id/local-authority/29UP,Tonbridge & Malling Borough Council,7/14/2021,0022025586/29,22025586, 780.85,Urbaser LTD,01718800,,Maintenance of Grounds,Parking Off-Street,E10HAE01720402,
http://statistics.data.gov.uk/id/local-authority/29UP,Tonbridge & Malling Borough Council,7/14/2021,0022025586/3,22025586, 354.43,Urbaser LTD,01718800,,Maintenance of Grounds,Sports Grounds,B13ET000020402,
http://statistics.data.gov.uk/id/local-authority/29UP,Tonbridge & Malling Borough Council,7/14/2021,0022025586/30,22025586, 224.12,Urbaser LTD,01718800,,Maintenance of Grounds,Parking Off-Street,E10HAE01920402,
http://statistics.data.gov.uk/id/local-authority/29UP,Tonbridge & Malling Borough Council,7/14/2021,0022025586/31,22025586, 492.32,Urbaser LTD,01718800,,Maintenance of Grounds,Parking Off-Street,E10HAE02020402,
http://statistics.data.gov.uk/id/local-authority/29UP,Tonbridge & Malling Borough Council,7/14/2021,0022025586/32,22025586, 17.09,Urbaser LTD,01718800,,Maintenance of Grounds,Parking Off-Street,E10HAE02120402,
http://statistics.data.gov.uk/id/local-authority/29UP,Tonbridge & Malling Borough Council,7/14/2021,0022025586/33,22025586, 112.54,Urbaser LTD,01718800,,Maintenance of Grounds,Parking Off-Street,E10HAE02220402,
http://statistics.data.gov.uk/id/local-authority/29UP,Tonbridge & Malling Borough Council,7/14/2021,0022025586/34,22025586, 946.10,Urbaser LTD,01718800,,Maintenance of Grounds,Parking Off-Street,E10HAE02320402,
http://statistics.data.gov.uk/id/local-authority/29UP,Tonbridge & Malling Borough Council,7/14/2021,0022025586/35,22025586, 2.44,Urbaser LTD,01718800,,Maintenance of Grounds,Parking Off-Street,E10HAE02720402,
http://statistics.data.gov.uk/id/local-authority/29UP,Tonbridge & Malling Borough Council,7/14/2021,0022025586/36,22025586, 343.77,Urbaser LTD,01718800,,Maintenance of Grounds,Parking Off-Street,E10HAE02820402,
http://statistics.data.gov.uk/id/local-authority/29UP,Tonbridge & Malling Borough Council,7/14/2021,0022025586/37,22025586, 6.19,Urbaser LTD,01718800,,Maintenance of Grounds,Parking Off-Street,E10HAE02920402,
http://statistics.data.gov.uk/id/local-authority/29UP,Tonbridge & Malling Borough Council,7/14/2021,0022025586/38,22025586, 36.43,Urbaser LTD,01718800,,Maintenance of Grounds,Parking Off-Street,E10HAE03020402,
http://statistics.data.gov.uk/id/local-authority/29UP,Tonbridge & Malling Borough Council,7/14/2021,0022025586/39,22025586, 31.00,Urbaser LTD,01718800,,Maintenance of Grounds,Parking Off-Street,E10HAE03120402,
http://statistics.data.gov.uk/id/local-authority/29UP,Tonbridge & Malling Borough Council,7/14/2021,0022025586/4,22025586, 75.43,Urbaser LTD,01718800,,Maintenance of Grounds,Poult Wood Golf Centre,B21KE000020402,
http://statistics.data.gov.uk/id/local-authority/29UP,Tonbridge & Malling Borough Council,7/14/2021,0022025586/40,22025586, 657.32,Urbaser LTD,01718800,,Maintenance of Grounds,Parking Off-Street,E10HAE04020402,
http://statistics.data.gov.uk/id/local-authority/29UP,Tonbridge & Malling Borough Council,7/14/2021,0022025586/41,22025586, 455.90,Urbaser LTD,01718800,,Maintenance of Grounds,Parking Off-Street,E10HAE04220402,
http://statistics.data.gov.uk/id/local-authority/29UP,Tonbridge & Malling Borough Council,7/14/2021,0022025586/42,22025586, 1308.55,Urbaser LTD,01718800,,Maintenance of Grounds,Parking Off-Street,E10HAE04520402,
http://statistics.data.gov.uk/id/local-authority/29UP,Tonbridge & Malling Borough Council,7/14/2021,0022025586/43,22025586, 81773.77,Urbaser LTD,01718800,,Contract Payments,Refuse Collection,H20SA000054001,
http://statistics.data.gov.uk/id/local-authority/29UP,Tonbridge & Malling Borough Council,7/14/2021,0022025586/44,22025586, 865.70,Urbaser LTD,01718800,,Responsible Dog Ownership,Street Scene,H23SD000044050,
http://statistics.data.gov.uk/id/local-authority/29UP,Tonbridge & Malling Borough Council,7/14/2021,0022025586/45,22025586, 51717.72,Urbaser LTD,01718800,,Contract Payments,Street Scene,H23SD000054001,
http://statistics.data.gov.uk/id/local-authority/29UP,Tonbridge & Malling Borough Council,7/14/2021,0022025586/46,22025586, 819.23,Urbaser LTD,01718800,,General Maintenance,Dry Recycling,H34SR000020301,
http://statistics.data.gov.uk/id/local-authority/29UP,Tonbridge & Malling Borough Council,7/14/2021,0022025586/47,22025586, 73613.88,Urbaser LTD,01718800,,Contract Payments,Dry Recycling,H34SR000054001,
http://statistics.data.gov.uk/id/local-authority/29UP,Tonbridge & Malling Borough Council,7/14/2021,0022025586/48,22025586, 3803.64,Urbaser LTD,01718800,,Bring Sites Mixed Recycling,Dry Recycling,H34SR000054026,
http://statistics.data.gov.uk/id/local-authority/29UP,Tonbridge & Malling Borough Council,7/14/2021,0022025586/49,22025586, 28804.34,Urbaser LTD,01718800,,Contract Payments,Food Recycling,H34SS000054001,
http://statistics.data.gov.uk/id/local-authority/29UP,Tonbridge & Malling Borough Council,7/14/2021,0022025586/5,22025586, 31.13,Urbaser LTD,01718800,,Maintenance of Grounds,Haysden Country Park,B22LC000020402,
http://statistics.data.gov.uk/id/local-authority/29UP,Tonbridge & Malling Borough Council,7/14/2021,0022025586/50,22025586, 16367.16,Urbaser LTD,01718800,,Contract Payments,Garden Waste Recycling,H34ST000054001,
http://statistics.data.gov.uk/id/local-authority/29UP,Tonbridge & Malling Borough Council,7/14/2021,0022025586/6,22025586, 23.91,Urbaser LTD,01718800,,Dog Bin Emptying,Haysden Country Park,B22LC000044012,
http://statistics.data.gov.uk/id/local-authority/29UP,Tonbridge & Malling Borough Council,7/14/2021,0022025586/7,22025586, 677.66,Urbaser LTD,01718800,,Maintenance of Grounds,Open Spaces & Amenity Areas,B22LE000020402,
http://statistics.data.gov.uk/id/local-authority/29UP,Tonbridge & Malling Borough Council,7/14/2021,0022025586/8,22025586, 12.75,Urbaser LTD,01718800,,Dog Bin Emptying,Open Spaces & Amenity Areas,B22LE000044012,
http://statistics.data.gov.uk/id/local-authority/29UP,Tonbridge & Malling Borough Council,7/14/2021,0022025586/9,22025586, 22.00,Urbaser LTD,01718800,,Maintenance of Grounds,Countryside/Woodland Mgt,B22LG000020402,
http://statistics.data.gov.uk/id/local-authority/29UP,Tonbridge & Malling Borough Council,7/14/2021,0022025587/1,22025587, 4687.17,Clarion Housing,01776300,,Temporary Accommodation,Homelessness,C01AA000044051,
http://statistics.data.gov.uk/id/local-authority/29UP,Tonbridge & Malling Borough Council,7/14/2021,0022025588/1,22025588, 880.00,Craemer UK LTD,01616400,,Purchases,Garden Waste Recycling,H34ST000040101,220003123
http://statistics.data.gov.uk/id/local-authority/29UP,Tonbridge & Malling Borough Council,7/14/2021,0022025588/2,22025588, 580.00,Craemer UK LTD,01616400,,Purchases,Garden Waste Recycling,H34ST000040101,220003123
http://statistics.data.gov.uk/id/local-authority/29UP,Tonbridge & Malling Borough Council,7/14/2021,0022025590/3,22025590, 585.75,KH Recruitment Ltd,01738900,,Temporary Staff,St Scene & Leis Sals&Overheads,D01AGDG3011300,
http://statistics.data.gov.uk/id/local-authority/29UP,Tonbridge & Malling Borough Council,7/14/2021,0022025591/1,22025591, 14175.00,Craemer UK LTD,01616400,,Initial Furniture & Equipment,Refuse Bins Growth/Replacement,P02DA000009906,220003110
http://statistics.data.gov.uk/id/local-authority/29UP,Tonbridge & Malling Borough Council,7/14/2021,0022025592/1,22025592, 2458.97,Aran Services LTD,01562900,,Other Expenses,Housing Assistance,P03AD000009908,
http://statistics.data.gov.uk/id/local-authority/29UP,Tonbridge & Malling Borough Council,7/14/2021,0022025593/1,22025593, 3.00,Tonbridge & Malling Borough Council,00103700,,Professional Fees,Private Sector Housing Renewal,C03BD000044001,
http://statistics.data.gov.uk/id/local-authority/29UP,Tonbridge & Malling Borough Council,7/14/2021,0022025594/1,22025594, 2075.73,Aran Services LTD,01562900,,Other Expenses,Housing Assistance,P03AD000009908,
http://statistics.data.gov.uk/id/local-authority/29UP,Tonbridge & Malling Borough Council,7/14/2021,0022025595/1,22025595, 3.00,Tonbridge & Malling Borough Council,00103700,,Professional Fees,Private Sector Housing Renewal,C03BD000044001,
http://statistics.data.gov.uk/id/local-authority/29UP,Tonbridge & Malling Borough Council,7/14/2021,0022025596/1,22025596, 6721.81,Adaptec Mobilty Ltd,01785800,,Other Expenses,Disabled Facilities Grant Mand,P03AC000009908,
http://statistics.data.gov.uk/id/local-authority/29UP,Tonbridge & Malling Borough Council,7/14/2021,0022025597/1,22025597, 967.94,Peabody South East LTD,01680900,,Other Expenses,Disabled Facilities Grant Mand,P03AC000009908,
http://statistics.data.gov.uk/id/local-authority/29UP,Tonbridge & Malling Borough Council,7/14/2021,0022025598/1,22025598, 3515.43,G2 Recruitment Solutions,01786000,,Temporary Staff,Env Hlth & Hsg Sals&Overheads,D01AVDV0711300,
http://statistics.data.gov.uk/id/local-authority/29UP,Tonbridge & Malling Borough Council,7/14/2021,0022025600/1,22025600, 904.50,Vivid Resourcing,01773700,,Temporary Staff,Env Hlth & Hsg Sals&Overheads,D01AVDV0911300,
http://statistics.data.gov.uk/id/local-authority/29UP,Tonbridge & Malling Borough Council,7/14/2021,0022025601/1,22025601, 125.00,PSR Lighting & Signs Ltd,01265400,,Purchases,Environmental Protection,H32SN000040101,
http://statistics.data.gov.uk/id/local-authority/29UP,Tonbridge & Malling Borough Council,7/14/2021,0022025602/1,22025602, 2446.40,Lucy and Martin Recycling LTD,01694200,,Vehicle Licences,Dry Recycling,H34SR000030105,
http://statistics.data.gov.uk/id/local-authority/29UP,Tonbridge & Malling Borough Council,7/14/2021,0022025603/1,22025603, 387.19,QED Environmental Systems LTD,00038700,,Air Quality Monitoring,Environmental Protection,H32SN000054016,220003121
http://statistics.data.gov.uk/id/local-authority/29UP,Tonbridge & Malling Borough Council,7/14/2021,0022025604/1,22025604, 7077.00,Specialist Hygiene Services,01466100,,Contract Payments,Public Conveniences,H22SC000054001,220003093
http://statistics.data.gov.uk/id/local-authority/29UP,Tonbridge & Malling Borough Council,7/14/2021,0022025605/1,22025605, 2060.00,Under My Roof Ltd,01806700,,Temporary Accommodation,Homelessness,C01AA000044051,
http://statistics.data.gov.uk/id/local-authority/29UP,Tonbridge & Malling Borough Council,7/14/2021,0022025606/1,22025606, 2.40,EDF Energy Customers plc,01035000,,Electricity,Homelessness,C01AATNHS21002,
http://statistics.data.gov.uk/id/local-authority/29UP,Tonbridge & Malling Borough Council,7/14/2021,0022025607/1,22025607, 618.75,KH Recruitment Ltd,01738900,,Temporary Staff,St Scene & Leis Sals&Overheads,D01AGDG3011300,
http://statistics.data.gov.uk/id/local-authority/29UP,Tonbridge & Malling Borough Council,7/14/2021,0022025608/1,22025608, 32.69,Maidstone Borough Council,01173700,,Temporary Accommodation,Homelessness,C01AA000044051,
http://statistics.data.gov.uk/id/local-authority/29UP,Tonbridge & Malling Borough Council,7/14/2021,0022025609/1,22025609, 25.43,Maidstone Borough Council,01173700,,Temporary Accommodation,Homelessness,C01AA000044051,
http://statistics.data.gov.uk/id/local-authority/29UP,Tonbridge & Malling Borough Council,7/14/2021,0022025610/1,22025610, 554.00,Acoustic Calibration Services Ltd,00775900,,Air Quality Monitoring,Environmental Protection,H32SN000054016,220003102
http://statistics.data.gov.uk/id/local-authority/29UP,Tonbridge & Malling Borough Council,7/14/2021,0031018038/1,31018038, 32.40,Flowbird Smart City UK Limited,00898700,,Premises Repairs & Maintenance,Parking Off-Street,E10HA000020601,310042691
http://statistics.data.gov.uk/id/local-authority/29UP,Tonbridge & Malling Borough Council,7/14/2021,0031018038/2,31018038, 649.00,Flowbird Smart City UK Limited,00898700,,Premises Repairs & Maintenance,Parking Off-Street,E10HA000020601,310042691
http://statistics.data.gov.uk/id/local-authority/29UP,Tonbridge & Malling Borough Council,7/14/2021,0031018039/1,31018039, 291.48,KM Media Group Ltd,00053900,,Advertising General,Parking On-Street,E10HD000044216,310042682
http://statistics.data.gov.uk/id/local-authority/29UP,Tonbridge & Malling Borough Council,7/14/2021,0031018040/1,31018040, 281.07,KM Media Group Ltd,00053900,,Advertising General,Parking On-Street,E10HD000044216,310042680
http://statistics.data.gov.uk/id/local-authority/29UP,Tonbridge & Malling Borough Council,7/14/2021,0031018041/1,31018041, 175.00,PSR Lighting & Signs Ltd,01265400,,Premises Repairs & Maintenance,Parking Off-Street,E10HA000020601,310042679
http://statistics.data.gov.uk/id/local-authority/29UP,Tonbridge & Malling Borough Council,7/14/2021,0031018042/1,31018042, 410.00,Wellden Land Surveys,01410600,,Professional Fees,Boro Drainage & Land Drainage,E20MA000044001,310042644
http://statistics.data.gov.uk/id/local-authority/29UP,Tonbridge & Malling Borough Council,7/14/2021,0031018047/1,31018047, 3866.25,Chroma Vision Ltd,00891600,,CCTV Monitoring Station,Security Services Management,E09GA000051020,310042616
http://statistics.data.gov.uk/id/local-authority/29UP,Tonbridge & Malling Borough Council,7/14/2021,0031018048/1,31018048, 250.00,SKF Contractors Ltd,00092000,,Premises Repairs & Maintenance,Parking Off-Street,E10HA000020601,
http://statistics.data.gov.uk/id/local-authority/29UP,Tonbridge & Malling Borough Council,7/14/2021,0031018049/1,31018049, 86.70,Ark Trading,01607200,,Uniforms,Parking Off-Street,E10HA000042002,310042649
http://statistics.data.gov.uk/id/local-authority/29UP,Tonbridge & Malling Borough Council,7/14/2021,0031018049/2,31018049, 6.95,Ark Trading,01607200,,Uniforms,Parking Off-Street,E10HA000042002,310042649
http://statistics.data.gov.uk/id/local-authority/29UP,Tonbridge & Malling Borough Council,7/14/2021,0032009182/1,32009182, 168.75,Charles & Associates,01739200,,Application & Appeals,Development Management,A01AB000044194,320003297
http://statistics.data.gov.uk/id/local-authority/29UP,Tonbridge & Malling Borough Council,7/14/2021,0032009183/1,32009183, 660.00,G2 Recruitment Solutions,01786000,,Temporary Staff,Planning Sals&Overheads,D01AJDJ0111300,320003308
http://statistics.data.gov.uk/id/local-authority/29UP,Tonbridge & Malling Borough Council,7/14/2021,0032009185/1,32009185, 1258.55,Tunbridge Wells Borough Council,00844600,,Temporary Staff,Planning Sals&Overheads,D01AJDJ0311300,
http://statistics.data.gov.uk/id/local-authority/29UP,Tonbridge & Malling Borough Council,7/14/2021,0032009186/1,32009186, 270.66,KM Media Group Ltd,00053900,,Advertising General,Development Management,A01ABZ99944216,320003313
http://statistics.data.gov.uk/id/local-authority/29UP,Tonbridge & Malling Borough Council,7/14/2021,0032009187/1,32009187, 1500.00,DHA Planning Ltd,01553900,,Professional Fees,Planning Policy,A01AF000044001,320003289
http://statistics.data.gov.uk/id/local-authority/29UP,Tonbridge & Malling Borough Council,7/14/2021,0032009188/1,32009188, 2000.00,The Arch Company Properties Limited,01807200,,H&CG Fund Council Specific,Eco Dev & Reg Gen Bus Support,D52TD000047027,
http://statistics.data.gov.uk/id/local-authority/29UP,Tonbridge & Malling Borough Council,7/14/2021,0032009189/1,32009189, 1500.00,The Arch Company Properties Limited,01807200,,H&CG Fund Council Specific,Eco Dev & Reg Gen Bus Support,D52TD000047027,
http://statistics.data.gov.uk/id/local-authority/29UP,Tonbridge & Malling Borough Council,7/14/2021,0032009190/1,32009190, 2500.00,The Arch Company Properties Limited,01807200,,H&CG Fund Council Specific,Eco Dev & Reg Gen Bus Support,D52TD000047027,
http://statistics.data.gov.uk/id/local-authority/29UP,Tonbridge & Malling Borough Council,7/14/2021,0032009191/1,32009191, 2000.00,The Arch Company Properties Limited,01807200,,H&CG Fund Council Specific,Eco Dev & Reg Gen Bus Support,D52TD000047027,
http://statistics.data.gov.uk/id/local-authority/29UP,Tonbridge & Malling Borough Council,7/14/2021,0041033229/1,41033229, 8235.00,Link Asset Services,01039400,,Professional Fees,Treasury Management,D43QT000044001,
http://statistics.data.gov.uk/id/local-authority/29UP,Tonbridge & Malling Borough Council,7/14/2021,0041033230/1,41033230, 129.60,Adelante Software Limited,01393800,812115871,Credit Card Commission,Banking Arrangements,D43QK000044082,
http://statistics.data.gov.uk/id/local-authority/29UP,Tonbridge & Malling Borough Council,7/14/2021,0041033231/1,41033231, 4000.00,TransUnion International Limited,01493000,,Other Expenses,Local Revenue & NNDR Collect,D41QA000048010,
http://statistics.data.gov.uk/id/local-authority/29UP,Tonbridge & Malling Borough Council,7/14/2021,0041033231/2,41033231, 250.00,TransUnion International Limited,01493000,,Other Expenses,Local Revenue & NNDR Collect,D41QA000048010,
http://statistics.data.gov.uk/id/local-authority/29UP,Tonbridge & Malling Borough Council,7/14/2021,0041033232/1,41033232, 450.00,TransUnion International Limited,01493000,,Other Expenses,Local Revenue & NNDR Collect,D41QA000048010,
http://statistics.data.gov.uk/id/local-authority/29UP,Tonbridge & Malling Borough Council,7/14/2021,0041033233/1,41033233, 4250.00,TransUnion International Limited,01493000,,Other Expenses,Local Revenue & NNDR Collect,D41QA000048010,
http://statistics.data.gov.uk/id/local-authority/29UP,Tonbridge & Malling Borough Council,7/14/2021,0041033234/1,41033234, 354.00,Morgan Hunt UK Ltd,01086900,,Temporary Staff,Finance Sals&Overheads,D01AFDF1111300,
http://statistics.data.gov.uk/id/local-authority/29UP,Tonbridge & Malling Borough Council,7/14/2021,0041033235/1,41033235, 534.00,Morgan Hunt UK Ltd,01086900,,Temporary Staff,Finance Sals&Overheads,D01AFDF1111300,
http://statistics.data.gov.uk/id/local-authority/29UP,Tonbridge & Malling Borough Council,7/14/2021,0041033236/1,41033236, 925.00,Morgan Hunt UK Ltd,01086900,,Temporary Staff,Finance Sals&Overheads,D01AFDF1111300,
http://statistics.data.gov.uk/id/local-authority/29UP,Tonbridge & Malling Borough Council,7/14/2021,0041033237/1,41033237, 306.72,Rundle & Co Ltd,00087200,,Bailiffs Commission,Local Revenue & NNDR Collect,D41QA000044075,
http://statistics.data.gov.uk/id/local-authority/29UP,Tonbridge & Malling Borough Council,7/15/2021,0041033241/1,41033241, 1386.00,PortalPlanQuest LTD,01698100,,BRREP Response - General,Pleasure Grounds & Open Spaces,M15HHP50001997,
http://statistics.data.gov.uk/id/local-authority/29UP,Tonbridge & Malling Borough Council,7/15/2021,0041033241/2,41033241, 23.33,PortalPlanQuest LTD,01698100,,BRREP Response - General,Pleasure Grounds & Open Spaces,M15HHP50001997,
http://statistics.data.gov.uk/id/local-authority/29UP,Tonbridge & Malling Borough Council,7/19/2021,0041033240/10,41033240, 23.33,National Westminster Bank Plc,00894500,,Maintenance of Grounds,Sports Grounds,B13ET000020402,
http://statistics.data.gov.uk/id/local-authority/29UP,Tonbridge & Malling Borough Council,7/19/2021,0041033240/11,41033240, 40.00,National Westminster Bank Plc,00894500,,Data Protection Act Registrati,Admin & Prop Sals&Overheads,D01AADA0048013,
http://statistics.data.gov.uk/id/local-authority/29UP,Tonbridge & Malling Borough Council,7/19/2021,0041033240/12,41033240, 375.00,National Westminster Bank Plc,00894500,,Recruitment Advertising,Recruitment Expenses,D10DADJ0113110,
http://statistics.data.gov.uk/id/local-authority/29UP,Tonbridge & Malling Borough Council,7/19/2021,0041033240/13,41033240, 90.00,National Westminster Bank Plc,00894500,,Ext Fees/Prof & Tech,Training,D10DCDJ0113561,
http://statistics.data.gov.uk/id/local-authority/29UP,Tonbridge & Malling Borough Council,7/19/2021,0041033240/16,41033240, 159.00,National Westminster Bank Plc,00894500,,Miscellaneous Services,Cleaning & Security,D21FD000044015,
http://statistics.data.gov.uk/id/local-authority/29UP,Tonbridge & Malling Borough Council,7/19/2021,0041033240/17,41033240, 69.95,National Westminster Bank Plc,00894500,,Purchases,Information Technology,D27KD000040101,
http://statistics.data.gov.uk/id/local-authority/29UP,Tonbridge & Malling Borough Council,7/19/2021,0041033240/18,41033240, 107.49,National Westminster Bank Plc,00894500,,Maintenance - Ancillary Equip,Information Technology,D27KD000040137,
http://statistics.data.gov.uk/id/local-authority/29UP,Tonbridge & Malling Borough Council,7/19/2021,0041033240/19,41033240, 107.49,National Westminster Bank Plc,00894500,,Maintenance - Micros,Information Technology,D27KD000040140,
http://statistics.data.gov.uk/id/local-authority/29UP,Tonbridge & Malling Borough Council,7/19/2021,0041033240/20,41033240, 74.51,National Westminster Bank Plc,00894500,,Subscriptions,Information Technology,D27KD000047002,
http://statistics.data.gov.uk/id/local-authority/29UP,Tonbridge & Malling Borough Council,7/19/2021,0041033240/21,41033240, 99.99,National Westminster Bank Plc,00894500,,Information & Publicity,Information & Publicity,D32MJ000044076,
http://statistics.data.gov.uk/id/local-authority/29UP,Tonbridge & Malling Borough Council,7/19/2021,0041033240/23,41033240, 153.00,National Westminster Bank Plc,00894500,,H&CG Fund Council Specific,Eco Dev & Reg Gen Bus Support,D52TD000047027,
http://statistics.data.gov.uk/id/local-authority/29UP,Tonbridge & Malling Borough Council,7/19/2021,0041033240/24,41033240, 39.43,National Westminster Bank Plc,00894500,,Sales,TIC Stock Account,K18AX000002002,
http://statistics.data.gov.uk/id/local-authority/29UP,Tonbridge & Malling Borough Council,7/19/2021,0041033240/7,41033240, 234.00,National Westminster Bank Plc,00894500,,Maintenance of Grounds,Sports Grounds,B13ET000020402,
http://statistics.data.gov.uk/id/local-authority/29UP,Tonbridge & Malling Borough Council,7/19/2021,0041033240/8,41033240, 23.33,National Westminster Bank Plc,00894500,,Maintenance of Grounds,Sports Grounds,B13ET000020402,
http://statistics.data.gov.uk/id/local-authority/29UP,Tonbridge & Malling Borough Council,7/19/2021,0041033240/9,41033240, 462.00,National Westminster Bank Plc,00894500,,Maintenance of Grounds,Sports Grounds,B13ET000020402,
http://statistics.data.gov.uk/id/local-authority/29UP,Tonbridge & Malling Borough Council,7/19/2021,0041033258/1,41033258, 50.00,National Westminster Bank Plc,00069400,,Direct Debit / Bank Charges,Local Revenue & NNDR Collect,D41QA000044079,
http://statistics.data.gov.uk/id/local-authority/29UP,Tonbridge & Malling Borough Council,7/19/2021,0041033259/1,41033259, 200.80,National Westminster Bank Plc,00069400,,Direct Debit / Bank Charges,Local Revenue & NNDR Collect,D41QA000044079,
http://statistics.data.gov.uk/id/local-authority/29UP,Tonbridge & Malling Borough Council,7/20/2021,0041033262/1,41033262, 2900.00,Information Commisioners Office,01417900,,Data Protection Act Registrati,Admin & Prop Sals&Overheads,D01AADA0048013,
http://statistics.data.gov.uk/id/local-authority/29UP,Tonbridge & Malling Borough Council,7/20/2021,0041033264/1,41033264, 1078.47,H.M. Revenue & Customs,00048400,,Payment re Prev Yrs Cred Acc,Sundry Creditors Finance,J80TF000001101,
http://statistics.data.gov.uk/id/local-authority/29UP,Tonbridge & Malling Borough Council,7/21/2021,0011042890/1,11042890, 1950.00,Raigins,01769400,,Office Security,Cleaning & Security,D21FD000044047,110068912
http://statistics.data.gov.uk/id/local-authority/29UP,Tonbridge & Malling Borough Council,7/21/2021,0011042891/1,11042891, 220.44,DORMA UK Ltd,00413500,549361128,BRREP Servicing-entrance doors,Tonbridge Castle / CAB,M15KFP20001927,110069041
http://statistics.data.gov.uk/id/local-authority/29UP,Tonbridge & Malling Borough Council,7/21/2021,0011042892/1,11042892, 208.00,BML Building Services Ltd,01505000,,BRREP Response - General,Shops & Maisonettes,M15NAP50001997,110069092
http://statistics.data.gov.uk/id/local-authority/29UP,Tonbridge & Malling Borough Council,7/21/2021,0011042893/1,11042893, 52.00,Edmundson Electrical Ltd,01210900,,Cleaning & Domestic Supplies,Cleaning & Security,D21FD000026001,110069071
http://statistics.data.gov.uk/id/local-authority/29UP,Tonbridge & Malling Borough Council,7/21/2021,0011042894/1,11042894, 504.00,BML Building Services Ltd,01505000,,BRREP Response - General,Tonbridge Castle / CAB,M15KFP50001997,110069097
http://statistics.data.gov.uk/id/local-authority/29UP,Tonbridge & Malling Borough Council,7/21/2021,0011042895/1,11042895, 616.00,BML Building Services Ltd,01505000,,BRREP Response - General,Larkfield Leisure Centre,M15HDP50001997,110069098
http://statistics.data.gov.uk/id/local-authority/29UP,Tonbridge & Malling Borough Council,7/21/2021,0011042896/1,11042896, 232.00,Hadene Engineering Ltd,00041900,,BRREP Servicing - boilers,Larkfield Leisure Centre,M15HDP20001929,110069111
http://statistics.data.gov.uk/id/local-authority/29UP,Tonbridge & Malling Borough Council,7/21/2021,0011042897/1,11042897, 138.00,K T Fire Protection Ltd,00057000,,BRREP Servicing - FireAlarmSys,Gibson Building West,M15KBP20001937,110069100
http://statistics.data.gov.uk/id/local-authority/29UP,Tonbridge & Malling Borough Council,7/21/2021,0011042898/1,11042898, 138.00,K T Fire Protection Ltd,00057000,,BRREP Servicing - FireAlarmSys,Angel Centre,M15HAP20001937,110069112
http://statistics.data.gov.uk/id/local-authority/29UP,Tonbridge & Malling Borough Council,7/21/2021,0011042899/1,11042899, 68.00,K T Fire Protection Ltd,00057000,,BRREP Servicing - FireAlarmSys,Tonbridge Castle Gatehouse,M15HKP20001937,110069113
http://statistics.data.gov.uk/id/local-authority/29UP,Tonbridge & Malling Borough Council,7/21/2021,0011042900/1,11042900, 68.00,K T Fire Protection Ltd,00057000,,BRREP Servicing - FireAlarmSys,Tonbridge Castle / CAB,M15KFP20001937,110069102
http://statistics.data.gov.uk/id/local-authority/29UP,Tonbridge & Malling Borough Council,7/21/2021,0011042901/1,11042901, 99.00,K T Fire Protection Ltd,00057000,,BRREP Servicing - FireAlarmSys,Tonbridge Farm Pavillion,M15HGP20001937,110069105
http://statistics.data.gov.uk/id/local-authority/29UP,Tonbridge & Malling Borough Council,7/21/2021,0011042902/1,11042902, 113.50,K T Fire Protection Ltd,00057000,,BRREP Servicing - FireAlarmSys,Leis Man Poult Wood Golf Centr,M15HEP20001937,110069103
http://statistics.data.gov.uk/id/local-authority/29UP,Tonbridge & Malling Borough Council,7/21/2021,0011042903/1,11042903, 195.70,K T Fire Protection Ltd,00057000,,BRREP Servicing - FireAlarmSys,Gibson Building East,M15KGP20001937,110069101
http://statistics.data.gov.uk/id/local-authority/29UP,Tonbridge & Malling Borough Council,7/21/2021,0011042904/1,11042904, 185.00,K T Fire Protection Ltd,00057000,,BRREP Servicing - FireAlarmSys,Larkfield Leisure Centre,M15HDP20001937,110069104
http://statistics.data.gov.uk/id/local-authority/29UP,Tonbridge & Malling Borough Council,7/21/2021,0011042905/1,11042905, 48.30,KCS,00054200,,Cleaning & Domestic Supplies,Cleaning & Security,D21FD000026001,110069115
http://statistics.data.gov.uk/id/local-authority/29UP,Tonbridge & Malling Borough Council,7/21/2021,0011042905/2,11042905, 134.40,KCS,00054200,,Cleaning & Domestic Supplies,Cleaning & Security,D21FD000026001,110069115
http://statistics.data.gov.uk/id/local-authority/29UP,Tonbridge & Malling Borough Council,7/21/2021,0011042905/3,11042905, 48.00,KCS,00054200,,Cleaning & Domestic Supplies,Cleaning & Security,D21FD000026001,110069115
http://statistics.data.gov.uk/id/local-authority/29UP,Tonbridge & Malling Borough Council,7/21/2021,0011042905/4,11042905, 18.10,KCS,00054200,,Cleaning & Domestic Supplies,Cleaning & Security,D21FD000026001,110069115
http://statistics.data.gov.uk/id/local-authority/29UP,Tonbridge & Malling Borough Council,7/21/2021,0011042906/1,11042906, 117.00,Southern Care Maintenance,01282600,,BRREP Servicing - Diasbled Acc,Tonbridge Castle / CAB,M15KFP20001981,110069126
http://statistics.data.gov.uk/id/local-authority/29UP,Tonbridge & Malling Borough Council,7/21/2021,0011042907/1,11042907, 12050.00,Kent County Council,00322500,,H&CG Fund Council Specific,Eco Dev & Reg Gen Bus Support,D52TD000047027,110069122
http://statistics.data.gov.uk/id/local-authority/29UP,Tonbridge & Malling Borough Council,7/21/2021,0011042909/1,11042909, 9080.00,M Jenner & Son,00905500,,BRREP External decoration,Leis Man Poult Wood Golf Centr,M15HEP20001921,110069033
http://statistics.data.gov.uk/id/local-authority/29UP,Tonbridge & Malling Borough Council,7/21/2021,0011042910/1,11042910, 7266.45,Wallgate Ltd,00850000,,BRREP General Maintenance,PC - General,M15JAP10001900,110069086
http://statistics.data.gov.uk/id/local-authority/29UP,Tonbridge & Malling Borough Council,7/21/2021,0011042911/1,11042911, 481.00,BML Building Services Ltd,01505000,,BRREP General Maintenance,PC - General,M15JAP10001900,110069052
http://statistics.data.gov.uk/id/local-authority/29UP,Tonbridge & Malling Borough Council,7/21/2021,0011042913/1,11042913, 337.47,Glaze-Tech Services Ltd,00779500,,BRREP Window/door repairs,Larkfield Leisure Centre,M15HDP20001919,
http://statistics.data.gov.uk/id/local-authority/29UP,Tonbridge & Malling Borough Council,7/21/2021,0011042914/1,11042914, 27.87,Viridor Waste Management Ltd,00682900,,Trade Refuse Charges,Cleaning & Security,D21FD000044008,
http://statistics.data.gov.uk/id/local-authority/29UP,Tonbridge & Malling Borough Council,7/21/2021,0011042915/1,11042915, 464.55,Viridor Waste Management Ltd,00682900,,Trade Refuse Charges,Cleaning & Security,D21FD000044008,
http://statistics.data.gov.uk/id/local-authority/29UP,Tonbridge & Malling Borough Council,7/21/2021,0011042916/1,11042916, 27.87,Viridor Waste Management Ltd,00682900,,Trade Refuse Charges,Cleaning & Security,D21FD000044008,
http://statistics.data.gov.uk/id/local-authority/29UP,Tonbridge & Malling Borough Council,7/21/2021,0011042917/1,11042917, 81.20,Viridor Waste Management Ltd,00682900,,Trade Refuse Charges,Cleaning & Security,D21FD000044008,
http://statistics.data.gov.uk/id/local-authority/29UP,Tonbridge & Malling Borough Council,7/21/2021,0011042918/1,11042918, 65.00,SJC Door Security Installations,01278600,,BRREP Servicing - access syst,Gibson Building West,M15KBP20001940,
http://statistics.data.gov.uk/id/local-authority/29UP,Tonbridge & Malling Borough Council,7/21/2021,0011042919/1,11042919, 100.45,Duplo International Ltd,00973200,,Purchases - Paper,Printing,D22GA000040102,
http://statistics.data.gov.uk/id/local-authority/29UP,Tonbridge & Malling Borough Council,7/21/2021,0011042920/1,11042920, 325.31,Initial Washroom Hygiene,00048300,,Laundry - Roller Towels,Cleaning & Security,D21FD000042003,
http://statistics.data.gov.uk/id/local-authority/29UP,Tonbridge & Malling Borough Council,7/21/2021,0011042921/1,11042921, 374.53,TwoFold Limited,00518000,,Maintenance - General,Electoral Registration,D31MF000040135,
http://statistics.data.gov.uk/id/local-authority/29UP,Tonbridge & Malling Borough Council,7/21/2021,0011042922/1,11042922, 6.47,Royal Mail,00086200,,Purchases,Mailsort Stock Account,K37BR000001002,
http://statistics.data.gov.uk/id/local-authority/29UP,Tonbridge & Malling Borough Council,7/21/2021,0011042922/2,11042922, 1359.13,Royal Mail,00086200,,Purchases,Mailsort Stock Account,K37BR000001002,
http://statistics.data.gov.uk/id/local-authority/29UP,Tonbridge & Malling Borough Council,7/21/2021,0011042923/1,11042923, 4179.00,TMS Protection Ltd,01744300,,Re-opening High Streets,Eco Dev & Reg Gen Bus Support,D52TDCV1948076,
http://statistics.data.gov.uk/id/local-authority/29UP,Tonbridge & Malling Borough Council,7/21/2021,0011042924/1,11042924, 956.71,KCS,00054200,,Electricity,Buildings,D21FEDD5021002,
http://statistics.data.gov.uk/id/local-authority/29UP,Tonbridge & Malling Borough Council,7/21/2021,0011042925/1,11042925, 2810.76,KCS,00054200,,Electricity,Buildings,D21FEDD1021002,
http://statistics.data.gov.uk/id/local-authority/29UP,Tonbridge & Malling Borough Council,7/21/2021,0011042926/3,11042926, 1076.61,KCS,00054200,,Electricity,Buildings,D21FEDD6021002,
http://statistics.data.gov.uk/id/local-authority/29UP,Tonbridge & Malling Borough Council,7/21/2021,0011042927/3,11042927, 235.32,Atlas Facilities Managment Limited ,01075900,,Miscellaneous Services,Cleaning & Security,D21FDDD5044015,
http://statistics.data.gov.uk/id/local-authority/29UP,Tonbridge & Malling Borough Council,7/21/2021,0011042928/3,11042928, 39.22,Atlas Facilities Managment Limited ,01075900,,Miscellaneous Services,Cleaning & Security,D21FDDD1044015,
http://statistics.data.gov.uk/id/local-authority/29UP,Tonbridge & Malling Borough Council,7/21/2021,0011042929/1,11042929, 70.00,Maidstone Borough Council,01453900,,Hospitality,Mayoral & Other Member Support,D29LX000048003,
http://statistics.data.gov.uk/id/local-authority/29UP,Tonbridge & Malling Borough Council,7/21/2021,0011042930/1,11042930, 60.00,Sevenoaks District Council,01252500,,Hospitality,Mayoral & Other Member Support,D29LX000048003,
http://statistics.data.gov.uk/id/local-authority/29UP,Tonbridge & Malling Borough Council,7/21/2021,0011042931/3,11042931, 965.25,Prosec General Security Ltd,00810600,,Office Security,Cleaning & Security,D21FD000044047,
http://statistics.data.gov.uk/id/local-authority/29UP,Tonbridge & Malling Borough Council,7/21/2021,0011042931/4,11042931, 2875.50,Prosec General Security Ltd,00810600,,Office Security,Tonbridge Gateway,D23TG000044047,
http://statistics.data.gov.uk/id/local-authority/29UP,Tonbridge & Malling Borough Council,7/21/2021,0011042932/1,11042932, 40.00,Disclosure & Barring Service,00865900,,Professional Fees,Licences - Fee Paying,H27SH000044001,
http://statistics.data.gov.uk/id/local-authority/29UP,Tonbridge & Malling Borough Council,7/21/2021,0011042933/1,11042933, 237.41,Emap Communications Ltd,00575500,,Reference Books & Publications,Admin & Prop Sals&Overheads,D01AADA0043010,
http://statistics.data.gov.uk/id/local-authority/29UP,Tonbridge & Malling Borough Council,7/21/2021,0011042933/2,11042933, 237.41,Emap Communications Ltd,00575500,,Reference Books & Publications,Finance Sals&Overheads,D01AFDF0043010,
http://statistics.data.gov.uk/id/local-authority/29UP,Tonbridge & Malling Borough Council,7/21/2021,0011042933/3,11042933, 237.41,Emap Communications Ltd,00575500,,Subscriptions,St Scene & Leis Sals&Overheads,D01AG000047002,
http://statistics.data.gov.uk/id/local-authority/29UP,Tonbridge & Malling Borough Council,7/21/2021,0011042933/4,11042933, 237.40,Emap Communications Ltd,00575500,,Reference Books & Publications,Planning Sals&Overheads,D01AJ000043010,
http://statistics.data.gov.uk/id/local-authority/29UP,Tonbridge & Malling Borough Council,7/21/2021,0011042933/5,11042933, 237.40,Emap Communications Ltd,00575500,,Reference Books & Publications,Legal Sals&Overheads,D01AR000043010,
http://statistics.data.gov.uk/id/local-authority/29UP,Tonbridge & Malling Borough Council,7/21/2021,0012008041/1,12008041, 1500.00,Civica UK Ltd,01051800,,Initial Furniture & Equipment,CMS Web Sol'n,P06EX000009906,410031861
http://statistics.data.gov.uk/id/local-authority/29UP,Tonbridge & Malling Borough Council,7/21/2021,0012008042/3,12008042, 573.03,Epos Group (Kent),01017800,,Software Hire & Support,Information Technology,D27KD000044059,
http://statistics.data.gov.uk/id/local-authority/29UP,Tonbridge & Malling Borough Council,7/21/2021,0012008043/3,12008043, 1049.25,KH Recruitment Ltd,01738900,,Salaries & On Costs,Information Technology,D27KD000015100,
http://statistics.data.gov.uk/id/local-authority/29UP,Tonbridge & Malling Borough Council,7/21/2021,0012008044/1,12008044, 1066.21,NEC Software Solutions UK Ltd,01073900,202159745,Software Hire & Support,Information Technology,D27KD000044059,410031961
http://statistics.data.gov.uk/id/local-authority/29UP,Tonbridge & Malling Borough Council,7/21/2021,0012008045/1,12008045, 11442.25,NTT United Kingdom Ltd,01747000,,Initial Furniture & Equipment,CMS Web Sol'n,P06EX000009906,410031955
http://statistics.data.gov.uk/id/local-authority/29UP,Tonbridge & Malling Borough Council,7/21/2021,0012008046/1,12008046, 950.00,Phoenix Software Ltd,00077400,755349015,Consultancy Fees,Information Technology,D27KD000044011,410031992
http://statistics.data.gov.uk/id/local-authority/29UP,Tonbridge & Malling Borough Council,7/21/2021,0012008047/1,12008047, 12500.00,Squiz UK Ltd,01261600,,Software Hire & Support,Information Technology,D27KD000044059,410031964
http://statistics.data.gov.uk/id/local-authority/29UP,Tonbridge & Malling Borough Council,7/21/2021,0012008048/1,12008048, 895.00,Frontier Software Plc,00231900,,Consultancy Fees,Information Technology,D27KD000044011,410032004
http://statistics.data.gov.uk/id/local-authority/29UP,Tonbridge & Malling Borough Council,7/21/2021,0012008049/1,12008049, 143.99,Kingsfield Computer Products Ltd,00942800,,Purchases,St Scene & Leis Sals&Overheads,D01AGDG3040101,410031999
http://statistics.data.gov.uk/id/local-authority/29UP,Tonbridge & Malling Borough Council,7/21/2021,0012008049/2,12008049, 9.95,Kingsfield Computer Products Ltd,00942800,,Purchases,St Scene & Leis Sals&Overheads,D01AGDG3040101,410031999
http://statistics.data.gov.uk/id/local-authority/29UP,Tonbridge & Malling Borough Council,7/21/2021,0012008050/1,12008050, 1067.76,Phoenix Software Ltd,00077400,755349015,Software Hire & Support,Information Technology,D27KD000044059,
http://statistics.data.gov.uk/id/local-authority/29UP,Tonbridge & Malling Borough Council,7/21/2021,0021037305/1,21037305, 2000.00,The East Malling Centre,01168000,,Youth Initiatives,Youth Partnerships,B33PG000048124,210056373
http://statistics.data.gov.uk/id/local-authority/29UP,Tonbridge & Malling Borough Council,7/21/2021,0021037306/1,21037306, 170.00,Metrosigns 2000,00893000,,Printing & Stationery,Leybourne Lakes Country Park,B22LK000043005,210056333
http://statistics.data.gov.uk/id/local-authority/29UP,Tonbridge & Malling Borough Council,7/21/2021,0021037307/1,21037307, 378.00,TMS Protection Ltd,01744300,,Gates / Security,Leybourne Lakes Country Park,B22LK000044017,210056332
http://statistics.data.gov.uk/id/local-authority/29UP,Tonbridge & Malling Borough Council,7/21/2021,0021037309/1,21037309, 112.00,Landscape Services Ltd,00057600,,Purchases,Tonbridge Castle Grounds,B22LB000040101,210056345
http://statistics.data.gov.uk/id/local-authority/29UP,Tonbridge & Malling Borough Council,7/21/2021,0021037310/1,21037310, 54.21,Landscape Services Ltd,00057600,,Maintenance of Grounds,Sports Grounds,B13ET000020402,210056376
http://statistics.data.gov.uk/id/local-authority/29UP,Tonbridge & Malling Borough Council,7/21/2021,0021037311/1,21037311, 432.00,HABOKE Woodyard,01804700,,Maintenance of Grounds,Open Spaces & Amenity Areas,B22LE000020402,210056350
http://statistics.data.gov.uk/id/local-authority/29UP,Tonbridge & Malling Borough Council,7/21/2021,0021037311/2,21037311, 372.40,HABOKE Woodyard,01804700,,Maintenance of Grounds,Open Spaces & Amenity Areas,B22LE000020402,210056350
http://statistics.data.gov.uk/id/local-authority/29UP,Tonbridge & Malling Borough Council,7/21/2021,0021037312/1,21037312, 435.45,KCC - L.A.S.E.R Commercial Services ,00184300,,Electricity,Open Spaces & Amenity Areas,B22LE000021002,
http://statistics.data.gov.uk/id/local-authority/29UP,Tonbridge & Malling Borough Council,7/21/2021,0021037313/1,21037313, 184.14,KCC - L.A.S.E.R Commercial Services ,00184300,,Electricity,Leybourne Lakes Country Park,B22LK000021002,
http://statistics.data.gov.uk/id/local-authority/29UP,Tonbridge & Malling Borough Council,7/21/2021,0021037314/1,21037314, 453.00,Green Oak Services,01635000,,Maintenance of Grounds,Cemetery,B26MP000020402,210056346
http://statistics.data.gov.uk/id/local-authority/29UP,Tonbridge & Malling Borough Council,7/21/2021,0022025557/1,22025557, 58.73,Bulb Energy Ltd,01799000,214948301,Electricity,Homelessness,C01AA000021002,
http://statistics.data.gov.uk/id/local-authority/29UP,Tonbridge & Malling Borough Council,7/21/2021,0022025611/3,22025611, 1211.36,Vivid Resourcing,01773700,,Temporary Staff,Env Hlth & Hsg Sals&Overheads,D01AVDV0911300,
http://statistics.data.gov.uk/id/local-authority/29UP,Tonbridge & Malling Borough Council,7/21/2021,0022025612/1,22025612, 3108.00,Kent Assured Roofing Ltd,01808400,,Other Expenses,Housing Assistance,P03AD000009908,
http://statistics.data.gov.uk/id/local-authority/29UP,Tonbridge & Malling Borough Council,7/21/2021,0022025613/1,22025613, 3.00,Tonbridge & Malling Borough Council,00103700,,Professional Fees,Private Sector Housing Renewal,C03BD000044001,
http://statistics.data.gov.uk/id/local-authority/29UP,Tonbridge & Malling Borough Council,7/21/2021,0022025614/1,22025614, 37.74,Greenham Trading Ltd,00127900,745138823,Purchases,Environmental Protection,H32SN000040101,220003126
http://statistics.data.gov.uk/id/local-authority/29UP,Tonbridge & Malling Borough Council,7/21/2021,0022025614/2,22025614, 58.63,Greenham Trading Ltd,00127900,745138823,Purchases,Environmental Protection,H32SN000040101,220003126
http://statistics.data.gov.uk/id/local-authority/29UP,Tonbridge & Malling Borough Council,7/21/2021,0022025615/1,22025615, 950.00,Stiles Harold Williams LLP,01721700,,Temporary Accommodation,Homelessness,C01AASYRI44051,
http://statistics.data.gov.uk/id/local-authority/29UP,Tonbridge & Malling Borough Council,7/21/2021,0022025616/1,22025616, 802.23,KCC - L.A.S.E.R Commercial Services ,00184300,,Electricity,Public Conveniences,H22SCH00921002,
http://statistics.data.gov.uk/id/local-authority/29UP,Tonbridge & Malling Borough Council,7/21/2021,0022025617/1,22025617, 6.00,KCS,00054200,,Stationery,St Scene & Leis Sals&Overheads,D01AG000043003,210056378
http://statistics.data.gov.uk/id/local-authority/29UP,Tonbridge & Malling Borough Council,7/21/2021,0022025618/1,22025618, 7.50,KCS,00054200,,Stationery,Env Hlth & Hsg Sals&Overheads,D01AVDV0643003,220003115
http://statistics.data.gov.uk/id/local-authority/29UP,Tonbridge & Malling Borough Council,7/21/2021,0022025619/1,22025619, 4995.00,Higher Elevation LTD,01298700,,Other Expenses,Disabled Facilities Grant Mand,P03AC000009908,
http://statistics.data.gov.uk/id/local-authority/29UP,Tonbridge & Malling Borough Council,7/21/2021,0022025620/1,22025620, 653.28,Peabody South East LTD,01680900,,Other Expenses,Disabled Facilities Grant Mand,P03AC000009908,
http://statistics.data.gov.uk/id/local-authority/29UP,Tonbridge & Malling Borough Council,7/21/2021,0022025621/1,22025621, 540.00,Dolphin Stairlifts,00698900,,Other Expenses,Disabled Facilities Grant Mand,P03AC000009908,
http://statistics.data.gov.uk/id/local-authority/29UP,Tonbridge & Malling Borough Council,7/21/2021,0022025622/1,22025622, 726.00,Peabody South East LTD,01680900,,Other Expenses,Disabled Facilities Grant Mand,P03AC000009908,
http://statistics.data.gov.uk/id/local-authority/29UP,Tonbridge & Malling Borough Council,7/21/2021,0022025623/1,22025623, 5756.37,Adaptec Mobilty Ltd,01785800,,Other Expenses,Disabled Facilities Grant Mand,P03AC000009908,
http://statistics.data.gov.uk/id/local-authority/29UP,Tonbridge & Malling Borough Council,7/21/2021,0022025624/1,22025624, 828.91,Peabody South East LTD,01680900,,Other Expenses,Disabled Facilities Grant Mand,P03AC000009908,
http://statistics.data.gov.uk/id/local-authority/29UP,Tonbridge & Malling Borough Council,7/21/2021,0022025625/1,22025625, 1421.88,Kent Property Services,01722500,,Homelessness Reduction Initiat,Homelessness,C01AA000048019,
http://statistics.data.gov.uk/id/local-authority/29UP,Tonbridge & Malling Borough Council,7/21/2021,0022025626/1,22025626, 618.75,KH Recruitment Ltd,01738900,,Temporary Staff,St Scene & Leis Sals&Overheads,D01AGDG3011300,
http://statistics.data.gov.uk/id/local-authority/29UP,Tonbridge & Malling Borough Council,7/21/2021,0031018052/1,31018052, 134.43,Npower Ltd,01675800,,Electricity,Parking Off-Street,E10HA000021002,
http://statistics.data.gov.uk/id/local-authority/29UP,Tonbridge & Malling Borough Council,7/21/2021,0031018053/1,31018053, 54.66,Npower Ltd,01675800,,Electricity,Parking Off-Street,E10HA000021002,
http://statistics.data.gov.uk/id/local-authority/29UP,Tonbridge & Malling Borough Council,7/21/2021,0031018054/1,31018054, 28.88,Npower Ltd,01675800,,Electricity,Parking Off-Street,E10HA000021002,
http://statistics.data.gov.uk/id/local-authority/29UP,Tonbridge & Malling Borough Council,7/21/2021,0031018055/1,31018055, 1548.15,CDER Group,01773300,,Adjudication & Enforcement Ser,Parking Off-Street,E10HA000044230,
http://statistics.data.gov.uk/id/local-authority/29UP,Tonbridge & Malling Borough Council,7/21/2021,0031018056/1,31018056, 103.05,Imperial Civil Enforcement Solutions,00057200,,Adjudication & Enforcement Ser,Parking Off-Street,E10HA000044230,
http://statistics.data.gov.uk/id/local-authority/29UP,Tonbridge & Malling Borough Council,7/21/2021,0031018057/1,31018057, 65.47,Shell U.K. Oil Products Limited,01673300,,"Petrol, Diesel & Oil",Patrolling,B22LF000030106,
http://statistics.data.gov.uk/id/local-authority/29UP,Tonbridge & Malling Borough Council,7/21/2021,0031018057/2,31018057, 151.24,Shell U.K. Oil Products Limited,01673300,,"Petrol, Diesel & Oil",Parking Off-Street,E10HA000030106,
http://statistics.data.gov.uk/id/local-authority/29UP,Tonbridge & Malling Borough Council,7/21/2021,0031018057/3,31018057, 151.24,Shell U.K. Oil Products Limited,01673300,,"Petrol, Diesel & Oil",Parking On-Street,E10HD000030106,
http://statistics.data.gov.uk/id/local-authority/29UP,Tonbridge & Malling Borough Council,7/21/2021,0031018058/1,31018058, 26.38,KelticLimited,01000400,,Uniforms,Parking Off-Street,E10HA000042002,310042694
http://statistics.data.gov.uk/id/local-authority/29UP,Tonbridge & Malling Borough Council,7/21/2021,0031018058/10,31018058, 35.98,KelticLimited,01000400,,Uniforms,Parking Off-Street,E10HA000042002,310042694
http://statistics.data.gov.uk/id/local-authority/29UP,Tonbridge & Malling Borough Council,7/21/2021,0031018058/11,31018058, 26.85,KelticLimited,01000400,,Uniforms,Parking Off-Street,E10HA000042002,310042694
http://statistics.data.gov.uk/id/local-authority/29UP,Tonbridge & Malling Borough Council,7/21/2021,0031018058/12,31018058, 15.16,KelticLimited,01000400,,Uniforms,Parking Off-Street,E10HA000042002,310042694
http://statistics.data.gov.uk/id/local-authority/29UP,Tonbridge & Malling Borough Council,7/21/2021,0031018058/13,31018058, 31.98,KelticLimited,01000400,,Uniforms,Parking Off-Street,E10HA000042002,310042694
http://statistics.data.gov.uk/id/local-authority/29UP,Tonbridge & Malling Borough Council,7/21/2021,0031018058/14,31018058, 22.74,KelticLimited,01000400,,Uniforms,Parking On-Street,E10HD000042002,310042694
http://statistics.data.gov.uk/id/local-authority/29UP,Tonbridge & Malling Borough Council,7/21/2021,0031018058/15,31018058, 47.97,KelticLimited,01000400,,Uniforms,Parking On-Street,E10HD000042002,310042694
http://statistics.data.gov.uk/id/local-authority/29UP,Tonbridge & Malling Borough Council,7/21/2021,0031018058/16,31018058, 23.85,KelticLimited,01000400,,Uniforms,Parking On-Street,E10HD000042002,310042694
http://statistics.data.gov.uk/id/local-authority/29UP,Tonbridge & Malling Borough Council,7/21/2021,0031018058/17,31018058, 53.97,KelticLimited,01000400,,Uniforms,Parking On-Street,E10HD000042002,310042694
http://statistics.data.gov.uk/id/local-authority/29UP,Tonbridge & Malling Borough Council,7/21/2021,0031018058/18,31018058, 59.31,KelticLimited,01000400,,Uniforms,Parking On-Street,E10HD000042002,310042694
http://statistics.data.gov.uk/id/local-authority/29UP,Tonbridge & Malling Borough Council,7/21/2021,0031018058/19,31018058, 16.17,KelticLimited,01000400,,Uniforms,Parking On-Street,E10HD000042002,310042694
http://statistics.data.gov.uk/id/local-authority/29UP,Tonbridge & Malling Borough Council,7/21/2021,0031018058/2,31018058, 24.00,KelticLimited,01000400,,Uniforms,Parking Off-Street,E10HA000042002,310042694
http://statistics.data.gov.uk/id/local-authority/29UP,Tonbridge & Malling Borough Council,7/21/2021,0031018058/20,31018058, 17.90,KelticLimited,01000400,,Uniforms,Parking On-Street,E10HD000042002,310042694
http://statistics.data.gov.uk/id/local-authority/29UP,Tonbridge & Malling Borough Council,7/21/2021,0031018058/21,31018058, 36.57,KelticLimited,01000400,,Uniforms,Parking On-Street,E10HD000042002,310042694
http://statistics.data.gov.uk/id/local-authority/29UP,Tonbridge & Malling Borough Council,7/21/2021,0031018058/22,31018058, 53.97,KelticLimited,01000400,,Uniforms,Parking On-Street,E10HD000042002,310042694
http://statistics.data.gov.uk/id/local-authority/29UP,Tonbridge & Malling Borough Council,7/21/2021,0031018058/23,31018058, 39.57,KelticLimited,01000400,,Uniforms,Parking On-Street,E10HD000042002,310042694
http://statistics.data.gov.uk/id/local-authority/29UP,Tonbridge & Malling Borough Council,7/21/2021,0031018058/3,31018058, 35.98,KelticLimited,01000400,,Uniforms,Parking Off-Street,E10HA000042002,310042694
http://statistics.data.gov.uk/id/local-authority/29UP,Tonbridge & Malling Borough Council,7/21/2021,0031018058/4,31018058, 24.38,KelticLimited,01000400,,Uniforms,Parking Off-Street,E10HA000042002,310042694
http://statistics.data.gov.uk/id/local-authority/29UP,Tonbridge & Malling Borough Council,7/21/2021,0031018058/5,31018058, 26.95,KelticLimited,01000400,,Uniforms,Parking Off-Street,E10HA000042002,310042694
http://statistics.data.gov.uk/id/local-authority/29UP,Tonbridge & Malling Borough Council,7/21/2021,0031018058/6,31018058, 21.65,KelticLimited,01000400,,Uniforms,Parking Off-Street,E10HA000042002,310042694
http://statistics.data.gov.uk/id/local-authority/29UP,Tonbridge & Malling Borough Council,7/21/2021,0031018058/7,31018058, 10.78,KelticLimited,01000400,,Uniforms,Parking Off-Street,E10HA000042002,310042694
http://statistics.data.gov.uk/id/local-authority/29UP,Tonbridge & Malling Borough Council,7/21/2021,0031018058/8,31018058, 15.90,KelticLimited,01000400,,Uniforms,Parking Off-Street,E10HA000042002,310042694
http://statistics.data.gov.uk/id/local-authority/29UP,Tonbridge & Malling Borough Council,7/21/2021,0031018058/9,31018058, 39.54,KelticLimited,01000400,,Uniforms,Parking Off-Street,E10HA000042002,310042694
http://statistics.data.gov.uk/id/local-authority/29UP,Tonbridge & Malling Borough Council,7/21/2021,0031018062/1,31018062, 7548.00,Flowbird Smart City UK Limited,00898700,,Maintenance - General,Parking Off-Street,E10HA000040135,310042697
http://statistics.data.gov.uk/id/local-authority/29UP,Tonbridge & Malling Borough Council,7/21/2021,0031018062/2,31018062, 204.00,Flowbird Smart City UK Limited,00898700,,Maintenance - General,Parking Off-Street,E10HA000040135,310042697
http://statistics.data.gov.uk/id/local-authority/29UP,Tonbridge & Malling Borough Council,7/21/2021,0031018062/3,31018062, 34.00,Flowbird Smart City UK Limited,00898700,,Maintenance - General,Parking On-Street,E10HD000040135,310042697
http://statistics.data.gov.uk/id/local-authority/29UP,Tonbridge & Malling Borough Council,7/21/2021,0031018062/4,31018062, 1632.00,Flowbird Smart City UK Limited,00898700,,Maintenance - General,Parking On-Street,E10HD000040135,310042697
http://statistics.data.gov.uk/id/local-authority/29UP,Tonbridge & Malling Borough Council,7/21/2021,0032009192/1,32009192, 660.00,G2 Recruitment Solutions,01786000,,Temporary Staff,Planning Sals&Overheads,D01AJDJ0111300,320003308
http://statistics.data.gov.uk/id/local-authority/29UP,Tonbridge & Malling Borough Council,7/21/2021,0032009194/1,32009194, 7.50,KCS,00054200,,Stationery,Planning Sals&Overheads,D01AJDJ0143003,320003310
http://statistics.data.gov.uk/id/local-authority/29UP,Tonbridge & Malling Borough Council,7/21/2021,0032009195/1,32009195, 104.10,KM Media Group Ltd,00053900,,Advertising General,Development Management,A01ABZ99944216,320003314
http://statistics.data.gov.uk/id/local-authority/29UP,Tonbridge & Malling Borough Council,7/21/2021,0032009196/1,32009196, 325.00,Planning Officers Society,00079200,,Professional Membership,Planning Sals&Overheads,D01AJDJ0047001,
http://statistics.data.gov.uk/id/local-authority/29UP,Tonbridge & Malling Borough Council,7/21/2021,0041033253/1,41033253, 15.54,DG Consultancy,01617000,,Temporary Staff,Finance Sals&Overheads,D01AFDF0811300,410031726
http://statistics.data.gov.uk/id/local-authority/29UP,Tonbridge & Malling Borough Council,7/21/2021,0041033253/2,41033253, 386.96,DG Consultancy,01617000,,Temporary Staff,Finance Sals&Overheads,D01AFDF0811300,410031726
http://statistics.data.gov.uk/id/local-authority/29UP,Tonbridge & Malling Borough Council,7/21/2021,0041033254/3,41033254, 507.38,KH Recruitment Ltd,01738900,,Temporary Staff,Finance Sals&Overheads,D01AFDF1111300,
http://statistics.data.gov.uk/id/local-authority/29UP,Tonbridge & Malling Borough Council,7/21/2021,0041033254/4,41033254, 305.25,KH Recruitment Ltd,01738900,,Temporary Staff,Finance Sals&Overheads,D01AFDF1111300,
http://statistics.data.gov.uk/id/local-authority/29UP,Tonbridge & Malling Borough Council,7/21/2021,0041033255/3,41033255, 297.00,KH Recruitment Ltd,01738900,,Temporary Staff,Finance Sals&Overheads,D01AFDF1111300,
http://statistics.data.gov.uk/id/local-authority/29UP,Tonbridge & Malling Borough Council,7/21/2021,0041033263/1,41033263, 540.00,Morgan Hunt UK Ltd,01086900,,Temporary Staff,Finance Sals&Overheads,D01AFDF1111300,
http://statistics.data.gov.uk/id/local-authority/29UP,Tonbridge & Malling Borough Council,7/21/2021,0041033265/1,41033265, 925.00,Morgan Hunt UK Ltd,01086900,,Temporary Staff,Finance Sals&Overheads,D01AFDF1111300,
http://statistics.data.gov.uk/id/local-authority/29UP,Tonbridge & Malling Borough Council,7/21/2021,0041033271/1,41033271, 2286.00,H.M. Revenue & Customs,00048400,,Levy Payment,Apprenticeship Scheme,D10DE000013700,
http://statistics.data.gov.uk/id/local-authority/29UP,Tonbridge & Malling Borough Council,7/21/2021,0051008561/1,51008561, 2400.00,Redactive Publishing Limited,01791300,,Recruitment Advertising,Recruitment Expenses,D10DADJ0113110,510010497
http://statistics.data.gov.uk/id/local-authority/29UP,Tonbridge & Malling Borough Council,7/21/2021,0051008573/1,51008573, 295.00,CIPFA Business Limited,01216800,,Ext Fees/Prof & Tech,Training,D10DCDF1113561,510010488
http://statistics.data.gov.uk/id/local-authority/29UP,Tonbridge & Malling Borough Council,7/21/2021,0051008574/1,51008574, 7500.00,Jobs Go Public Limited,00556100,,Recruitment Advertising,Recruitment Expenses,D10DA000013110,510010500
http://statistics.data.gov.uk/id/local-authority/29UP,Tonbridge & Malling Borough Council,7/21/2021,0051008575/1,51008575, 85.00,Irrv,00050300,,Ext Fees/Prof & Tech,Training,D10DCDF1113561,510010499
http://statistics.data.gov.uk/id/local-authority/29UP,Tonbridge & Malling Borough Council,7/22/2021,0041033272/1,41033272, 267.95,National Westminster Bank Plc,00069400,,Bank Charges,Banking Arrangements,D43QK000044222,
http://statistics.data.gov.uk/id/local-authority/29UP,Tonbridge & Malling Borough Council,7/22/2021,0041033276/1,41033276, 200.88,National Westminster Bank Plc,00069400,,Direct Debit / Bank Charges,Local Revenue & NNDR Collect,D41QA000044079,
http://statistics.data.gov.uk/id/local-authority/29UP,Tonbridge & Malling Borough Council,7/22/2021,0041033277/1,41033277, 15.00,WorldPay ,01568000,,Credit Card Commission,Banking Arrangements,D43QK000044082,
http://statistics.data.gov.uk/id/local-authority/29UP,Tonbridge & Malling Borough Council,7/22/2021,0041033278/1,41033278, 195.92,WorldPay ,01568000,,Credit Card Commission,Banking Arrangements,D43QK000044082,
http://statistics.data.gov.uk/id/local-authority/29UP,Tonbridge & Malling Borough Council,7/22/2021,0041033279/1,41033279, 1185.15,WorldPay ,01568000,,Credit Card Commission,Banking Arrangements,D43QK000044082,
http://statistics.data.gov.uk/id/local-authority/29UP,Tonbridge & Malling Borough Council,7/22/2021,0041033280/1,41033280, 227.41,WorldPay ,01568000,,Credit Card Commission,Banking Arrangements,D43QK000044082,
http://statistics.data.gov.uk/id/local-authority/29UP,Tonbridge & Malling Borough Council,7/22/2021,0041033280/2,41033280, 2456.97,WorldPay ,01568000,,Credit Card Commission,Banking Arrangements,D43QK000044082,
http://statistics.data.gov.uk/id/local-authority/29UP,Tonbridge & Malling Borough Council,7/22/2021,0041033281/1,41033281, 20.03,WorldPay Ltd,01402000,991280207,Credit Card Commission,Banking Arrangements,D43QK000044082,
http://statistics.data.gov.uk/id/local-authority/29UP,Tonbridge & Malling Borough Council,7/26/2021,0041033285/1,41033285, 2350.00,Reach Publishing Services Ltd,01806900,,Re-opening High Streets,Eco Dev & Reg Gen Bus Support,D52TDCV1948076,
http://statistics.data.gov.uk/id/local-authority/29UP,Tonbridge & Malling Borough Council,7/26/2021,0041033286/1,41033286, 36.00,YESpay International Limited,01068000,991280207,Contract Services,Banking Arrangements,D43QK000044005,
http://statistics.data.gov.uk/id/local-authority/29UP,Tonbridge & Malling Borough Council,7/28/2021,0011042934/1,11042934, 49.00,Absolute Creative Print,01801100,,H&CG Fund Council Specific,Eco Dev & Reg Gen Bus Support,D52TD000047027,110069119
http://statistics.data.gov.uk/id/local-authority/29UP,Tonbridge & Malling Borough Council,7/28/2021,0011042935/1,11042935, 2464.00,BML Building Services Ltd,01505000,,BRREP Response - General,Land Review,M15MAP50001997,110069129
http://statistics.data.gov.uk/id/local-authority/29UP,Tonbridge & Malling Borough Council,7/28/2021,0011042936/1,11042936, 846.85,Vertiv Infrastructure Limited,00158300,,Maintenance - Ancillary Equip,Information Technology,D27KD000040137,110069095
http://statistics.data.gov.uk/id/local-authority/29UP,Tonbridge & Malling Borough Council,7/28/2021,0011042937/1,11042937, 400.00,G C Industrial Heating Services,00578100,,BRREP Servicing - Sadia Tea,Tonbridge Castle / CAB,M15KFP20001932,110069117
http://statistics.data.gov.uk/id/local-authority/29UP,Tonbridge & Malling Borough Council,7/28/2021,0011042938/1,11042938, 2095.51,Kent County Council,00322500,,Kent Highways,Local Land Charges,D35NK000044240,110069044
http://statistics.data.gov.uk/id/local-authority/29UP,Tonbridge & Malling Borough Council,7/28/2021,0011042940/1,11042940, 85.60,Premier Paper Group,01421800,,Purchases - Paper,Printing,D22GA000040102,
http://statistics.data.gov.uk/id/local-authority/29UP,Tonbridge & Malling Borough Council,7/28/2021,0011042941/1,11042941, 171.20,Premier Paper Group,01421800,,Purchases - Paper,Printing,D22GA000040102,
http://statistics.data.gov.uk/id/local-authority/29UP,Tonbridge & Malling Borough Council,7/28/2021,0011042942/1,11042942, 6.30,KCS,00054200,,Cleaning & Domestic Supplies,Cleaning & Security,D21FD000026001,
http://statistics.data.gov.uk/id/local-authority/29UP,Tonbridge & Malling Borough Council,7/28/2021,0011042943/1,11042943, 1220.05,Royal Mail,00086200,,Purchases,Mailsort Stock Account,K37BR000001002,
http://statistics.data.gov.uk/id/local-authority/29UP,Tonbridge & Malling Borough Council,7/28/2021,0011042944/1,11042944, 320.00,Premier Group Recycling Ltd,01365300,,Confidential Waste,Cleaning & Security,D21FD000044009,
http://statistics.data.gov.uk/id/local-authority/29UP,Tonbridge & Malling Borough Council,7/28/2021,0011042945/1,11042945, 2319.87,Royal Mail,00086200,,Purchases,Mailsort Stock Account,K37BR000001002,
http://statistics.data.gov.uk/id/local-authority/29UP,Tonbridge & Malling Borough Council,7/28/2021,0011042945/2,11042945, 14.47,Royal Mail,00086200,,Purchases,Mailsort Stock Account,K37BR000001002,
http://statistics.data.gov.uk/id/local-authority/29UP,Tonbridge & Malling Borough Council,7/28/2021,0011042945/3,11042945, 4.80,Royal Mail,00086200,,Purchases,Mailsort Stock Account,K37BR000001002,
http://statistics.data.gov.uk/id/local-authority/29UP,Tonbridge & Malling Borough Council,7/28/2021,0011042946/1,11042946, 1791.74,Royal Mail,00086200,,Purchases,Mailsort Stock Account,K37BR000001002,
http://statistics.data.gov.uk/id/local-authority/29UP,Tonbridge & Malling Borough Council,7/28/2021,0011042946/2,11042946, 16.30,Royal Mail,00086200,,Purchases,Mailsort Stock Account,K37BR000001002,
http://statistics.data.gov.uk/id/local-authority/29UP,Tonbridge & Malling Borough Council,7/28/2021,0011042946/3,11042946, 3.00,Royal Mail,00086200,,Purchases,Mailsort Stock Account,K37BR000001002,
http://statistics.data.gov.uk/id/local-authority/29UP,Tonbridge & Malling Borough Council,7/28/2021,0011042947/1,11042947, 289.52,KCS,00054200,,Gas,Buildings,D21FEDD1021003,
http://statistics.data.gov.uk/id/local-authority/29UP,Tonbridge & Malling Borough Council,7/28/2021,0011042948/1,11042948, 68.25,KCS,00054200,,Cleaning & Domestic Supplies,Cleaning & Security,D21FD000026001,
http://statistics.data.gov.uk/id/local-authority/29UP,Tonbridge & Malling Borough Council,7/28/2021,0011042952/1,11042952, 125.00,A One Event Services,01776600,,Re-opening High Streets,Eco Dev & Reg Gen Bus Support,D52TDCV1948076,
http://statistics.data.gov.uk/id/local-authority/29UP,Tonbridge & Malling Borough Council,7/28/2021,0012008051/1,12008051, 8854.00,ESRI (UK) Ltd,00746300,,Software Hire & Support,Information Technology,D27KD000044059,410032006
http://statistics.data.gov.uk/id/local-authority/29UP,Tonbridge & Malling Borough Council,7/28/2021,0012008051/10,12008051, 2460.00,ESRI (UK) Ltd,00746300,,Software Hire & Support,Information Technology,D27KD000044059,410032006
http://statistics.data.gov.uk/id/local-authority/29UP,Tonbridge & Malling Borough Council,7/28/2021,0012008051/11,12008051, 1974.00,ESRI (UK) Ltd,00746300,,Software Hire & Support,Information Technology,D27KD000044059,410032006
http://statistics.data.gov.uk/id/local-authority/29UP,Tonbridge & Malling Borough Council,7/28/2021,0012008051/2,12008051, 250.00,ESRI (UK) Ltd,00746300,,Software Hire & Support,Information Technology,D27KD000044059,410032006
http://statistics.data.gov.uk/id/local-authority/29UP,Tonbridge & Malling Borough Council,7/28/2021,0012008051/3,12008051, 2380.00,ESRI (UK) Ltd,00746300,,Software Hire & Support,Information Technology,D27KD000044059,410032006
http://statistics.data.gov.uk/id/local-authority/29UP,Tonbridge & Malling Borough Council,7/28/2021,0012008051/4,12008051, 913.00,ESRI (UK) Ltd,00746300,,Software Hire & Support,Information Technology,D27KD000044059,410032006
http://statistics.data.gov.uk/id/local-authority/29UP,Tonbridge & Malling Borough Council,7/28/2021,0012008051/5,12008051, 580.00,ESRI (UK) Ltd,00746300,,Software Hire & Support,Information Technology,D27KD000044059,410032006
http://statistics.data.gov.uk/id/local-authority/29UP,Tonbridge & Malling Borough Council,7/28/2021,0012008051/6,12008051, 1662.00,ESRI (UK) Ltd,00746300,,Software Hire & Support,Information Technology,D27KD000044059,410032006
http://statistics.data.gov.uk/id/local-authority/29UP,Tonbridge & Malling Borough Council,7/28/2021,0012008051/7,12008051, 913.00,ESRI (UK) Ltd,00746300,,Software Hire & Support,Information Technology,D27KD000044059,410032006
http://statistics.data.gov.uk/id/local-authority/29UP,Tonbridge & Malling Borough Council,7/28/2021,0012008051/8,12008051, 2052.00,ESRI (UK) Ltd,00746300,,Software Hire & Support,Information Technology,D27KD000044059,410032006
http://statistics.data.gov.uk/id/local-authority/29UP,Tonbridge & Malling Borough Council,7/28/2021,0012008051/9,12008051, 588.00,ESRI (UK) Ltd,00746300,,Software Hire & Support,Information Technology,D27KD000044059,410032006
http://statistics.data.gov.uk/id/local-authority/29UP,Tonbridge & Malling Borough Council,7/28/2021,0012008052/3,12008052, 1049.25,KH Recruitment Ltd,01738900,,Salaries & On Costs,Information Technology,D27KD000015100,
http://statistics.data.gov.uk/id/local-authority/29UP,Tonbridge & Malling Borough Council,7/28/2021,0012008053/1,12008053, 10764.00,Phoenix Software Ltd,00077400,755349015,Software Hire & Support,Information Technology,D27KD000044059,410032003
http://statistics.data.gov.uk/id/local-authority/29UP,Tonbridge & Malling Borough Council,7/28/2021,0012008053/2,12008053, 14894.16,Phoenix Software Ltd,00077400,755349015,Software Hire & Support,Information Technology,D27KD000044059,410032003
http://statistics.data.gov.uk/id/local-authority/29UP,Tonbridge & Malling Borough Council,7/28/2021,0012008054/1,12008054, 3274.00,ESRI (UK) Ltd,00746300,,Software Hire & Support,Information Technology,D27KD000044059,410032005
http://statistics.data.gov.uk/id/local-authority/29UP,Tonbridge & Malling Borough Council,7/28/2021,0012008055/1,12008055, 284.85,Kingsfield Computer Products Ltd,00942800,,Purchases,Information Technology,D27KD000040101,410032009
http://statistics.data.gov.uk/id/local-authority/29UP,Tonbridge & Malling Borough Council,7/28/2021,0012008055/2,12008055, 9.95,Kingsfield Computer Products Ltd,00942800,,Delivery Expenses,Information Technology,D27KD000044069,410032009
http://statistics.data.gov.uk/id/local-authority/29UP,Tonbridge & Malling Borough Council,7/28/2021,0012008056/1,12008056, 1151.58,NEC Software Solutions UK Ltd,01073900,202159745,Software Hire & Support,Information Technology,D27KD000044059,410031995
http://statistics.data.gov.uk/id/local-authority/29UP,Tonbridge & Malling Borough Council,7/28/2021,0021037315/1,21037315, 225.00,David Hodgkinson Photographer,01068900,,Poster Sites,Events Development,B41TJ000040134,210056388
http://statistics.data.gov.uk/id/local-authority/29UP,Tonbridge & Malling Borough Council,7/28/2021,0021037316/1,21037316, 46.00,South East Water Ltd,01330300,,Maintenance of Grounds,Leybourne Lakes Country Park,B22LK000020402,210056322
http://statistics.data.gov.uk/id/local-authority/29UP,Tonbridge & Malling Borough Council,7/28/2021,0021037327/1,21037327, 2396.00,Defib Warehouse,01809300,,Initial Furniture & Equipment,Capital Renewals Leisure,P05KGBC0209906,210056404
http://statistics.data.gov.uk/id/local-authority/29UP,Tonbridge & Malling Borough Council,7/28/2021,0021037328/1,21037328, 324.00,TMS Protection Ltd,01744300,,Gates / Security,Leybourne Lakes Country Park,B22LK000044017,210056332
http://statistics.data.gov.uk/id/local-authority/29UP,Tonbridge & Malling Borough Council,7/28/2021,0021037329/1,21037329, 154.96,Wicksteed Leisure Limited,00167900,,Maintenance of Play Equipment,Open Spaces & Amenity Areas,B22LE000020503,210056228
http://statistics.data.gov.uk/id/local-authority/29UP,Tonbridge & Malling Borough Council,7/28/2021,0021037329/2,21037329, 1867.00,Wicksteed Leisure Limited,00167900,,Maintenance of Play Equipment,Open Spaces & Amenity Areas,B22LE000020503,210056228
http://statistics.data.gov.uk/id/local-authority/29UP,Tonbridge & Malling Borough Council,7/28/2021,0021037330/1,21037330, 1288.30,SWS Countryside & Landscape,01567200,,Maintenance of Grounds,Leybourne Lakes Country Park,B22LK000020402,210056257
http://statistics.data.gov.uk/id/local-authority/29UP,Tonbridge & Malling Borough Council,7/28/2021,0021037331/1,21037331, 450.00,SWS Countryside & Landscape,01567200,,Health & Safety - Trees,Countryside/Woodland Mgt,B22LG000044045,210056337
http://statistics.data.gov.uk/id/local-authority/29UP,Tonbridge & Malling Borough Council,7/28/2021,0021037332/1,21037332, 550.00,SWS Countryside & Landscape,01567200,,Health & Safety - Trees,Countryside/Woodland Mgt,B22LG000044045,210056338
http://statistics.data.gov.uk/id/local-authority/29UP,Tonbridge & Malling Borough Council,7/28/2021,0021037333/1,21037333, 550.00,SWS Countryside & Landscape,01567200,,Maintenance of Grounds,Countryside/Woodland Mgt,B22LGB40120402,210056296
http://statistics.data.gov.uk/id/local-authority/29UP,Tonbridge & Malling Borough Council,7/28/2021,0021037334/1,21037334, 550.00,SWS Countryside & Landscape,01567200,,Health & Safety - Trees,Countryside/Woodland Mgt,B22LG000044045,210056353
http://statistics.data.gov.uk/id/local-authority/29UP,Tonbridge & Malling Borough Council,7/28/2021,0021037335/1,21037335, 350.00,SWS Countryside & Landscape,01567200,,Health & Safety - Trees,Countryside/Woodland Mgt,B22LG000044045,210056318
http://statistics.data.gov.uk/id/local-authority/29UP,Tonbridge & Malling Borough Council,7/28/2021,0021037336/1,21037336, 28.59,Scottish Water Business Stream Ltd,01641100,,Sewerage Charges,Cemetery,B26MP000024003,
http://statistics.data.gov.uk/id/local-authority/29UP,Tonbridge & Malling Borough Council,7/28/2021,0021037337/1,21037337, 126.00,The Columbaria Company,00023700,,Purchases,Cemetery,B26MP000040101,210056398
http://statistics.data.gov.uk/id/local-authority/29UP,Tonbridge & Malling Borough Council,7/28/2021,0021037338/1,21037338, 200.00,G & S Brown Drainage Contractors,00392100,,Maintenance of Grounds,Sports Grounds,B13ET000020402,210056343
http://statistics.data.gov.uk/id/local-authority/29UP,Tonbridge & Malling Borough Council,7/28/2021,0021037339/1,21037339, 26.81,B&Q/Screwfix Direct,00141300,,Purchases,Leybourne Lakes Country Park,B22LK000040101,
http://statistics.data.gov.uk/id/local-authority/29UP,Tonbridge & Malling Borough Council,7/28/2021,0021037340/1,21037340, 92.00,Toilets+ Ltd,01039000,,Maintenance of Grounds,Leybourne Lakes Country Park,B22LK000020402,
http://statistics.data.gov.uk/id/local-authority/29UP,Tonbridge & Malling Borough Council,7/28/2021,0021037341/3,21037341, 200.00,SWS Countryside & Landscape,01567200,,Health & Safety - Trees,Countryside/Woodland Mgt,B22LG000044045,
http://statistics.data.gov.uk/id/local-authority/29UP,Tonbridge & Malling Borough Council,7/28/2021,0021037342/3,21037342, 350.00,SWS Countryside & Landscape,01567200,,Health & Safety - Trees,Countryside/Woodland Mgt,B22LG000044045,
http://statistics.data.gov.uk/id/local-authority/29UP,Tonbridge & Malling Borough Council,7/28/2021,0021037343/3,21037343, 350.00,SWS Countryside & Landscape,01567200,,Health & Safety - Trees,Countryside/Woodland Mgt,B22LG000044045,
http://statistics.data.gov.uk/id/local-authority/29UP,Tonbridge & Malling Borough Council,7/28/2021,0022025627/1,22025627, 6996.00,Craemer UK LTD,01616400,,Initial Furniture & Equipment,Refuse Bins Growth/Replacement,P02DA000009906,220003127
http://statistics.data.gov.uk/id/local-authority/29UP,Tonbridge & Malling Borough Council,7/28/2021,0022025628/1,22025628, 16.09,Wybone Ltd,00815800,,Responsible Dog Ownership,Street Scene,H23SD000044050,220003105
http://statistics.data.gov.uk/id/local-authority/29UP,Tonbridge & Malling Borough Council,7/28/2021,0022025628/2,22025628, 2324.85,Wybone Ltd,00815800,,Responsible Dog Ownership,Street Scene,H23SD000044050,220003105
http://statistics.data.gov.uk/id/local-authority/29UP,Tonbridge & Malling Borough Council,7/28/2021,0022025628/3,22025628, 749.85,Wybone Ltd,00815800,,Responsible Dog Ownership,Street Scene,H23SD000044050,220003105
http://statistics.data.gov.uk/id/local-authority/29UP,Tonbridge & Malling Borough Council,7/28/2021,0022025628/4,22025628, 1042.50,Wybone Ltd,00815800,,Responsible Dog Ownership,Street Scene,H23SD000044050,220003105
http://statistics.data.gov.uk/id/local-authority/29UP,Tonbridge & Malling Borough Council,7/28/2021,0022025629/1,22025629, 9.85,KCS,00054200,,Stationery,Env Hlth & Hsg Sals&Overheads,D01AVDV0643003,220003125
http://statistics.data.gov.uk/id/local-authority/29UP,Tonbridge & Malling Borough Council,7/28/2021,0022025630/3,22025630, 4645.60,Countrystyle Group,00835900,781981681,Plastic Recycling,Dry Recycling,H34SR000054019,
http://statistics.data.gov.uk/id/local-authority/29UP,Tonbridge & Malling Borough Council,7/28/2021,0022025631/1,22025631, 20.00,Streamline (Kent) Limited,01043100,,Public Transport,Homelessness,C01AA000033001,
http://statistics.data.gov.uk/id/local-authority/29UP,Tonbridge & Malling Borough Council,7/28/2021,0022025632/1,22025632, 1239.50,Vivid Resourcing,01773700,,Temporary Staff,Env Hlth & Hsg Sals&Overheads,D01AVDV0911300,
http://statistics.data.gov.uk/id/local-authority/29UP,Tonbridge & Malling Borough Council,7/28/2021,0022025633/1,22025633, 21120.00,On Site Wheelie Washers,01069700,,Other Expenses,Garden Waste Recycling,H34ST000048010,
http://statistics.data.gov.uk/id/local-authority/29UP,Tonbridge & Malling Borough Council,7/28/2021,0022025634/1,22025634, 2535.00,Ascendit Lifts Ltd,00446600,,Other Expenses,Disabled Facilities Grant Mand,P03AC000009908,
http://statistics.data.gov.uk/id/local-authority/29UP,Tonbridge & Malling Borough Council,7/28/2021,0022025635/1,22025635, 303.84,Peabody South East LTD,01680900,,Other Expenses,Disabled Facilities Grant Mand,P03AC000009908,
http://statistics.data.gov.uk/id/local-authority/29UP,Tonbridge & Malling Borough Council,7/28/2021,0022025636/1,22025636, 5744.88,Peabody South East LTD,01680900,,Countywide DFG Project,Private Sector Housing Renewal,C03BD000044031,
http://statistics.data.gov.uk/id/local-authority/29UP,Tonbridge & Malling Borough Council,7/28/2021,0022025637/1,22025637, 9196.30,Peabody South East LTD,01680900,,Countywide DFG Project,Private Sector Housing Renewal,C03BD000044031,
http://statistics.data.gov.uk/id/local-authority/29UP,Tonbridge & Malling Borough Council,7/28/2021,0022025638/1,22025638, 16085.65,Peabody South East LTD,01680900,,Countywide DFG Project,Private Sector Housing Renewal,C03BD000044031,
http://statistics.data.gov.uk/id/local-authority/29UP,Tonbridge & Malling Borough Council,7/28/2021,0022025639/1,22025639, 400.00,Counterweight LTD,01506600,,Healthy Living Initiatives,Public Health - Healthy Living,H40SYVH0048145,220003129
http://statistics.data.gov.uk/id/local-authority/29UP,Tonbridge & Malling Borough Council,7/28/2021,0031018063/1,31018063, 200.00,Arnold & Court Ltd,01411300,,Repair & Mtce of Fixed Plant,Boro Highways & Emergency Oper,E01AA000020501,
http://statistics.data.gov.uk/id/local-authority/29UP,Tonbridge & Malling Borough Council,7/28/2021,0031018063/2,31018063, 57.14,Arnold & Court Ltd,01411300,,Winter Maintenance,Parking Off-Street,E10HA000020701,
http://statistics.data.gov.uk/id/local-authority/29UP,Tonbridge & Malling Borough Council,7/28/2021,0031018063/3,31018063, 57.14,Arnold & Court Ltd,01411300,,Premises Repairs & Maintenance,Parking Off-Street,E10HAE01520601,
http://statistics.data.gov.uk/id/local-authority/29UP,Tonbridge & Malling Borough Council,7/28/2021,0031018063/4,31018063, 57.15,Arnold & Court Ltd,01411300,,Premises Repairs & Maintenance,Parking Off-Street,E10HAE01520601,
http://statistics.data.gov.uk/id/local-authority/29UP,Tonbridge & Malling Borough Council,7/28/2021,0031018063/5,31018063, 28.57,Arnold & Court Ltd,01411300,,BRREP General Maintenance,Land Review,M15MAP10001900,
http://statistics.data.gov.uk/id/local-authority/29UP,Tonbridge & Malling Borough Council,7/28/2021,0031018064/1,31018064, 312.15,Arnold & Court Ltd,01411300,,Repair & Mtce of Fixed Plant,Boro Highways & Emergency Oper,E01AA000020501,
http://statistics.data.gov.uk/id/local-authority/29UP,Tonbridge & Malling Borough Council,7/28/2021,0031018064/2,31018064, 114.28,Arnold & Court Ltd,01411300,,Maintenance - General,Security Services Management,E09GA000040135,
http://statistics.data.gov.uk/id/local-authority/29UP,Tonbridge & Malling Borough Council,7/28/2021,0031018064/3,31018064, 28.57,Arnold & Court Ltd,01411300,,Premises Repairs & Maintenance,Parking Off-Street,E10HA000020601,
http://statistics.data.gov.uk/id/local-authority/29UP,Tonbridge & Malling Borough Council,7/28/2021,0031018065/1,31018065, 57.15,Arnold & Court Ltd,01411300,,Repair & Mtce of Fixed Plant,Boro Highways & Emergency Oper,E01AA000020501,
http://statistics.data.gov.uk/id/local-authority/29UP,Tonbridge & Malling Borough Council,7/28/2021,0031018065/2,31018065, 85.71,Arnold & Court Ltd,01411300,,Premises Repairs & Maintenance,Parking Off-Street,E10HA000020601,
http://statistics.data.gov.uk/id/local-authority/29UP,Tonbridge & Malling Borough Council,7/28/2021,0031018065/3,31018065, 200.00,Arnold & Court Ltd,01411300,,Premises Repairs & Maintenance,Parking Off-Street,E10HAE00320601,
http://statistics.data.gov.uk/id/local-authority/29UP,Tonbridge & Malling Borough Council,7/28/2021,0031018065/4,31018065, 57.14,Arnold & Court Ltd,01411300,,Purchases,Parking On-Street,E10HD000040101,
http://statistics.data.gov.uk/id/local-authority/29UP,Tonbridge & Malling Borough Council,7/28/2021,0031018066/1,31018066, 8640.00,Flowbird Smart City UK Limited,00898700,,Premises Repairs & Maintenance,Parking Off-Street,E10HA000020601,310042673
http://statistics.data.gov.uk/id/local-authority/29UP,Tonbridge & Malling Borough Council,7/28/2021,0031018066/2,31018066, 5760.00,Flowbird Smart City UK Limited,00898700,,Premises Repairs & Maintenance,Parking On-Street,E10HD000020601,310042673
http://statistics.data.gov.uk/id/local-authority/29UP,Tonbridge & Malling Borough Council,7/28/2021,0031018067/1,31018067, 570.00,Lemon Drainage Services LTD,01761600,,Sewerage Charges,Haysden Country Park,B22LC000024003,210056379
http://statistics.data.gov.uk/id/local-authority/29UP,Tonbridge & Malling Borough Council,7/28/2021,0031018068/3,31018068, 71.69,KCC - L.A.S.E.R Commercial Services ,00184300,,Electricity,Parking Off-Street,E10HA000021002,
http://statistics.data.gov.uk/id/local-authority/29UP,Tonbridge & Malling Borough Council,7/28/2021,0031018072/1,31018072, 156.30,British Telecommunications Plc,00012800,,Maintenance - General,Security Services Management,E09GA000040135,
http://statistics.data.gov.uk/id/local-authority/29UP,Tonbridge & Malling Borough Council,7/28/2021,0032009197/1,32009197, 843.15,G2 Recruitment Solutions,01786000,,Temporary Staff,Planning Sals&Overheads,D01AJDJ0111300,320003308
http://statistics.data.gov.uk/id/local-authority/29UP,Tonbridge & Malling Borough Council,7/28/2021,0032009198/1,32009198, 840.00,GRS Arboricultural Consultant,01405600,,Application & Appeals,Development Management,A01AB000044194,320003324
http://statistics.data.gov.uk/id/local-authority/29UP,Tonbridge & Malling Borough Council,7/28/2021,0032009199/1,32009199, 300.00,Planning Jungle Limited,01517100,,Subscriptions,Planning Sals&Overheads,D01AJDJ0147002,320003325
http://statistics.data.gov.uk/id/local-authority/29UP,Tonbridge & Malling Borough Council,7/28/2021,0032009200/1,32009200, 197.79,KM Media Group Ltd,00053900,,Advertising General,Development Management,A01ABZ99944216,320003315
http://statistics.data.gov.uk/id/local-authority/29UP,Tonbridge & Malling Borough Council,7/28/2021,0041033266/1,41033266, 6.70,KCS,00054200,,Stationery,Finance Sals&Overheads,D01AFDF1143003,410032001
http://statistics.data.gov.uk/id/local-authority/29UP,Tonbridge & Malling Borough Council,7/28/2021,0041033267/3,41033267, 636.05,Maidstone Borough Council,01173700,,Bailiffs Commission,Local Revenue & NNDR Collect,D41QA000044075,
http://statistics.data.gov.uk/id/local-authority/29UP,Tonbridge & Malling Borough Council,7/28/2021,0041033268/3,41033268, 420.78,Rundle & Co Ltd,00087200,,Bailiffs Commission,Local Revenue & NNDR Collect,D41QA000044075,
http://statistics.data.gov.uk/id/local-authority/29UP,Tonbridge & Malling Borough Council,7/28/2021,0041033269/3,41033269, 1.94,Rundle & Co Ltd,00087200,,Bailiffs Commission,Local Revenue & NNDR Collect,D41QA000044075,
http://statistics.data.gov.uk/id/local-authority/29UP,Tonbridge & Malling Borough Council,7/28/2021,0041033270/3,41033270, 400.00,Airey Consultancy Services Ltd,01760800,,Disc Business Support Grants,Eco Dev & Reg Gen Bus Support,D52TDCV1948074,
http://statistics.data.gov.uk/id/local-authority/29UP,Tonbridge & Malling Borough Council,7/28/2021,0041033270/4,41033270, 400.00,Airey Consultancy Services Ltd,01760800,,Disc Business Support Grants,Eco Dev & Reg Gen Bus Support,D52TDCV1948074,
http://statistics.data.gov.uk/id/local-authority/29UP,Tonbridge & Malling Borough Council,7/28/2021,0041033287/1,41033287, 80.00,WorldPay Ltd,01402000,991280207,Credit Card Commission,Banking Arrangements,D43QK000044082,
http://statistics.data.gov.uk/id/local-authority/29UP,Tonbridge & Malling Borough Council,7/28/2021,0041033287/2,41033287, 80.24,WorldPay Ltd,01402000,991280207,Credit Card Commission,Banking Arrangements,D43QK000044082,
http://statistics.data.gov.uk/id/local-authority/29UP,Tonbridge & Malling Borough Council,7/28/2021,0041033287/3,41033287, 0.48,WorldPay Ltd,01402000,991280207,Credit Card Commission,Banking Arrangements,D43QK000044082,
http://statistics.data.gov.uk/id/local-authority/29UP,Tonbridge & Malling Borough Council,7/28/2021,0041033288/1,41033288, 80.00,WorldPay Ltd,01402000,991280207,Credit Card Commission,Banking Arrangements,D43QK000044082,
http://statistics.data.gov.uk/id/local-authority/29UP,Tonbridge & Malling Borough Council,7/28/2021,0041033288/2,41033288, 90.16,WorldPay Ltd,01402000,991280207,Credit Card Commission,Banking Arrangements,D43QK000044082,
http://statistics.data.gov.uk/id/local-authority/29UP,Tonbridge & Malling Borough Council,7/28/2021,0041033288/3,41033288, 1.60,WorldPay Ltd,01402000,991280207,Credit Card Commission,Banking Arrangements,D43QK000044082,
http://statistics.data.gov.uk/id/local-authority/29UP,Tonbridge & Malling Borough Council,7/28/2021,0041033289/1,41033289, 80.00,WorldPay Ltd,01402000,991280207,Credit Card Commission,Banking Arrangements,D43QK000044082,
http://statistics.data.gov.uk/id/local-authority/29UP,Tonbridge & Malling Borough Council,7/28/2021,0041033289/2,41033289, 156.40,WorldPay Ltd,01402000,991280207,Credit Card Commission,Banking Arrangements,D43QK000044082,
http://statistics.data.gov.uk/id/local-authority/29UP,Tonbridge & Malling Borough Council,7/28/2021,0041033289/3,41033289, 0.24,WorldPay Ltd,01402000,991280207,Credit Card Commission,Banking Arrangements,D43QK000044082,
http://statistics.data.gov.uk/id/local-authority/29UP,Tonbridge & Malling Borough Council,7/28/2021,0041033290/1,41033290, 138.59,Rundle & Co Ltd,00087200,,Bailiffs Commission,Local Revenue & NNDR Collect,D41QA000044075,
http://statistics.data.gov.uk/id/local-authority/29UP,Tonbridge & Malling Borough Council,7/28/2021,0041033291/1,41033291, 456.78,Rundle & Co Ltd,00087200,,Bailiffs Commission,Local Revenue & NNDR Collect,D41QA000044075,
http://statistics.data.gov.uk/id/local-authority/29UP,Tonbridge & Malling Borough Council,7/28/2021,0041033292/1,41033292, 925.00,Morgan Hunt UK Ltd,01086900,,Temporary Staff,Finance Sals&Overheads,D01AFDF1111300,
http://statistics.data.gov.uk/id/local-authority/29UP,Tonbridge & Malling Borough Council,7/28/2021,0041033293/1,41033293, 888.00,Morgan Hunt UK Ltd,01086900,,Temporary Staff,Finance Sals&Overheads,D01AFDF1111300,
http://statistics.data.gov.uk/id/local-authority/29UP,Tonbridge & Malling Borough Council,7/28/2021,0041033295/1,41033295, 39.15,KCS,00054200,,Stationery,Finance Sals&Overheads,D01AF000043003,410032010
http://statistics.data.gov.uk/id/local-authority/29UP,Tonbridge & Malling Borough Council,7/28/2021,0041033295/2,41033295, 4.75,KCS,00054200,,Stationery,Finance Sals&Overheads,D01AF000043003,410032010
http://statistics.data.gov.uk/id/local-authority/29UP,Tonbridge & Malling Borough Council,7/28/2021,0041033295/3,41033295, 7.70,KCS,00054200,,Stationery,Finance Sals&Overheads,D01AF000043003,410032010
http://statistics.data.gov.uk/id/local-authority/29UP,Tonbridge & Malling Borough Council,7/28/2021,0041033297/1,41033297, 1600.00,"Dep for Business, Energy & Industial Str",01793500,,Payment re Prev Yrs Cred Acc,Sundry Creditors Finance,J80TF000001101,
http://statistics.data.gov.uk/id/local-authority/29UP,Tonbridge & Malling Borough Council,7/28/2021,0051008564/1,51008564, 2780.00,Civica UK Ltd,01051800,,Ext Fees/Prof & Tech,Training,D10DCDF1113561,510010494
http://statistics.data.gov.uk/id/local-authority/29UP,Tonbridge & Malling Borough Council,7/28/2021,0051008576/1,51008576, 80.00,Kent Community Health NHS,00964600,,Ext Fees/Prof & Tech,Training,D10DCDV0213561,
http://statistics.data.gov.uk/id/local-authority/29UP,Tonbridge & Malling Borough Council,7/28/2021,0051008576/2,51008576, 80.00,Kent Community Health NHS,00964600,,Ext Fees/Prof & Tech,Training,D10DCDV0913561,
http://statistics.data.gov.uk/id/local-authority/29UP,Tonbridge & Malling Borough Council,7/30/2021,0012008057/3,12008057, 17525.00,NEC Software Solutions UK Ltd,01073900,202159745,Software Hire & Support,Information Technology,D27KD000044059,
http://statistics.data.gov.uk/id/local-authority/29UP,Tonbridge & Malling Borough Council,7/30/2021,0012008058/1,12008058, 29.95,Kingsfield Computer Products Ltd,00942800,,Purchases,Information Technology,D27KD000040101,410032011
http://statistics.data.gov.uk/id/local-authority/29UP,Tonbridge & Malling Borough Council,7/30/2021,0012008058/2,12008058, 5.95,Kingsfield Computer Products Ltd,00942800,,Delivery Expenses,Information Technology,D27KD000044069,410032011
http://statistics.data.gov.uk/id/local-authority/29UP,Tonbridge & Malling Borough Council,7/30/2021,0012008059/3,12008059, 1049.25,KH Recruitment Ltd,01738900,,Salaries & On Costs,Information Technology,D27KD000015100,
http://statistics.data.gov.uk/id/local-authority/29UP,Tonbridge & Malling Borough Council,7/30/2021,0021037344/1,21037344, 151.84,Kingsfield Computer Products Ltd,00942800,,Purchases,St Scene & Leis Sals&Overheads,D01AGDG3040101,210056401
http://statistics.data.gov.uk/id/local-authority/29UP,Tonbridge & Malling Borough Council,7/30/2021,0021037344/2,21037344, 9.95,Kingsfield Computer Products Ltd,00942800,,Purchases,St Scene & Leis Sals&Overheads,D01AGDG3040101,210056401
http://statistics.data.gov.uk/id/local-authority/29UP,Tonbridge & Malling Borough Council,7/30/2021,0022025640/3,22025640, 313.50,KH Recruitment Ltd,01738900,,Temporary Staff,St Scene & Leis Sals&Overheads,D01AGDG3011300,
http://statistics.data.gov.uk/id/local-authority/29UP,Tonbridge & Malling Borough Council,7/30/2021,0022025641/3,22025641, 17.99,Elite Group,01478100,,Health General,Env Hlth & Hsg Sals&Overheads,D01AV000044049,
http://statistics.data.gov.uk/id/local-authority/29UP,Tonbridge & Malling Borough Council,7/30/2021,0032009201/1,32009201, 1995.00,Robinson Escott Planning LLP,01653000,,Application & Appeals,Development Management,A01AB000044194,320003327
http://statistics.data.gov.uk/id/local-authority/29UP,Tonbridge & Malling Borough Council,7/30/2021,0041033302/3,41033302, 202.13,KH Recruitment Ltd,01738900,,Temporary Staff,Finance Sals&Overheads,D01AFDF1111300,
http://statistics.data.gov.uk/id/local-authority/29UP,Tonbridge & Malling Borough Council,7/30/2021,0041033303/3,41033303, 888.00,Morgan Hunt UK Ltd,01086900,,Temporary Staff,Finance Sals&Overheads,D01AFDF1111300,
http://statistics.data.gov.uk/id/local-authority/29UP,Tonbridge & Malling Borough Council,7/30/2021,0041033304/3,41033304, 950.00,Morgan Hunt UK Ltd,01086900,,Temporary Staff,Finance Sals&Overheads,D01AFDF1111300,
